{"text_format":"1","workbook":"xlsx","n_sheets":3,"sheets":["lista do wyboru","wybrane produkty - podsumowanie","Arkusz2"],"not_rendered":{"charts":0,"images":129,"macros":1,"external_links":0,"defined_names":3,"comments":0,"pivot_tables":0},"unopened":[],"bounds":{"document_bytes":16777216,"sheet_cells":100000,"rows_first":2000,"rows_last":500,"rows_between":2000,"halvings":0,"cell_chars":16384,"cell_head_chars":4096},"cells_cut":0,"cells_raw":0,"read":"whole","date_system":"1900"}

{"sheet":"lista do wyboru","index":0,"n_rows":136,"n_cols":8,"rows_kept":136,"cut":false,"hidden":false,"merged":[[128,6,131,6],[2,5,3,6],[2,0,3,1],[0,0,0,6],[1,0,1,6],[128,5,131,5]]}
["Szanowni Państwo, \nponiżej znajdują sie wyselekcjonowane produkty prezentowane na organizowanej przez naszą firmę Konferencji. \n\nDecydując się na wybrany produkt prosimy o wpisanie odpowiedniej ilości w kolumnie pod nazwą \"Ilość\".\nW drugim arkuszu tego pliku o nazwie \"wybrane produkty - podsumowanie\" automatycznie wyświetli się Państwu kalkulacja wybranych produktów.\n\nJeżeli mają Państwo życzenie korzystać tylko z jednej kategorii produktów proszę dokonać jej wyboru w oknie znajdującym się poniżej.\n\nPromocja dla uczestników konferencji - przy zamówieniu o wartości powyżej 100 zł dostawa GRATIS"]
["Dane placówki:\n"]
["Wybierz kategorię:"]
[]
["Kategoria","Kod","Nazwa","Ilość","Cena\nbrutto","Opis","Zdjęcie"]
["Aranżacje","092186","Quadro - regał uniwersalny",0,579.9,"Regał należy wyposażyć w 2 wąskie szuflady (092262-092273, sprzedawane osobno). • wym. 41,5 x 41,5 x 124,2 cm • w komplecie tablica suchościeralna o wym. 30 x 60 cm",null,{"$f":"D6>0","v":false}]
["Aranżacje","SET6014","Quadro - zestaw 11",0,799.8,"Drzwiczki i szuflady wyposażone we wpuszczane uchwyty w kolorze aluminium.\n• 092101 Quadro - mobilny pojemnik-biblioteczka, 1 szt.\n• 092102 Quadro - biblioteczka z ławeczką, 1 szt.",null,{"$f":"D7>0","v":false}]
["Aranżacje","092138","Quadro - szafka S na 4 szuflady na kółkach",0,289.89999999999998,"Szafka dostosowana do wąskich szuflad (092262-092273, sprzedawane osobno).\n• wym. 79,2 x 41,5 x 49,4 cm",null,false]
["Aranżacje","092266","Quadro - szuflada wąska - limonkowa",0,79.900000000000006,"• wym. frontu 37 x 18,3 cm",null,false]
["Aranżacje","092270","Quadro - szuflada wąska - jasnoróżowa",0,79.900000000000006,"• wym. frontu 37 x 18,3 cm",null,false]
["Aranżacje","092263","Quadro - szuflada wąska - szara",0,79.900000000000006,"• wym. frontu 37 x 18,3 cm",null,false]
["Aranżacje","092262","Quadro - szuflada wąska - biała",0,79.900000000000006,"• wym. frontu 37 x 18,3 cm",null,false]
["Aranżacje","092195","Quadro - szafka-domek",0,799.9,"Szafka - kryjówka w kształcie domku z aplikacją - ścianką z oknem. Dzieci mogą usiąść wygodnie w środku, zrelaksować i wyciszyć. Do uzupełnienia szafki można wykorzystać siedziska (101486 lub 101487, sprzedawane osobno). • wym. 130 x 60 x 173,5 cm",null,false]
["Aranżacje","101486","Materac - siedzisko szare do domku Colores Plus",0,359.9,"Wygodny materac uzupełniający szafkę-domek Quadro (092195), można go wykorzystać także jako osobne siedzisko. • wym. 126 x 55,5 x 14 cm • wys. boków 94 i 75 cm",null,false]
["Aranżacje","101577","Duży zestaw materacy Quadro 2",0,1259.5,"Piankowe materace w różnych kolorach, kształtach i rozmiarach. Wykonane z trudnopalnej pianki i trudnopalnej tkaniny. Dzięki bardzo dużej odporności na plamy i zabrudzenia idealnie sprawdzi się w przedszkolach i szkołach. Parametry tkaniny: 100 % poliester; gramatura: 476 g/mb; klasa palności: B1; ścieralność: 96 000 cykli.\n• 101581 Materac Quadro 2 brązowy, wys. 10 cm\n• 101582 Materac Quadro 2 ciemnoszary, wys. 10 cm\n• 101583 Materac Quadro 2 zielony, wys. 15 cm\n• 101584 Materac Quadro 2 żółty, wys. 15 cm\n• 101585 Materac Quadro 2 jasnozielony, wys. 15 cm\n• wymiary po złożeniu są zależne od sposobu ułożenia materacy",null,false]
["Aranżacje","SET6047","Quadro - zestaw 44",0,499.8,"Drzwiczki i szuflady są wyposażone we wpuszczane uchwyty w kolorze aluminium.\n• 092136 Quadro - szafka S z 1 półką na kółkach, 1 szt.\n• 101488 Quadro - kącik kuchenny - nakrycie na szafkę, 1 szt.",null,false]
["Aranżacje","100887","Kącik Poczta z akcesoriami",0,499.9,"Kącik zabaw dla małego listonosza, wykonany z płyty laminowanej w tonacji brzozy, o gr. 18 mm. Wyposażony w praktyczne makatki z kieszonkami do segregowania listów (po 4 z każdej strony), skrzynkę oraz gałkę do zawieszania torby. • wys. blatu 62,5 cm • wym. 73 x 51 x 159,5 cm \nDodatkowo w komplecie akcesoria:\n• okienko kartonowe z telefonem na jednym i skrzynką pocztową na drugim boku, o wym. 32 x 13 x 21 cm\n• tabliczka &quot;okienko czynne&quot;\n• paczka\n• karta bankowa\n• karta telefoniczna\n• kartki pocztowe, 6 szt.\n• koperta, 1 szt. \n• arkusz znaczków samoprzylepnych, 55 szt.\n• stempel\n• potwierdzenie nadania, 6 szt.\n• druk przelewu, 6 szt.\n• dowód nadania paczki, 3 szt.\n• druk nadania przesyłki kurierskiej, 6 szt.\n• druk przekazu pocztowego, 6 szt.\n• banknoty w nominałach od 10 zł do 200 zł, 48 szt. \n• monety w nominałach od 1 gr do 5 zł, 24 szt.",null,false]
["Aranżacje","101444","Fotel Inflamea 1, 2 os. - jasnozielony",0,959.9,"Wygodne fotele o nowoczesnym kształcie, w wielu kolorach do wyboru. Metalowe okrągłe nóżki umożliwiają poziomowanie mebla. Siedziska i oparcia są pokryte wysokiej jakości, bardzo wytrzymałą tkaniną. Dzięki bardzo dużej odporności na plamy i zabrudzenia idealnie sprawdzi się w przedszkolach i szkołach. 100 % poliester. Gramatura: 476 g/mb. Klasa palności: B1. Ścieralność: 96 000 cykli. • wys. siedziska 41 cm • gł. siedziska 52 cm • wym. 123 x 70 x 80 cm",null,false]
["Aranżacje","101421","Piankowa lokomotywa",0,1199.9000000000001,"Zestaw pianek składający się z 15 części (w tym 6 kół). Elementy tworzą wielobarwną lokomotywę, która zachęci dzieci do ćwiczeń i rozwijania swojej koordynacji ruchowej. • wym. po złożeniu 160 x 60 x 117 cm • wym. elem. od 50 x 50 x 40 cm do 25 x 10 cm",null,false]
["Aranżacje","056101","Dywan okrągły o śr. 2 m - szaro-zielony",0,459.9,"Skład runa 100% PP heat-set frise, przędza pojedyncza. Posiadają Certyfikat Zgodności tzn. Atest Higieniczny. • śr. 2 m",null,false]
["Aranżacje","101409","Pufa krowa",0,159.9,"Miękkie pufy-zwierzątka w wesołych kolorach, wykonane z pianki, z pokrowcem z trwałej tkaniny PCV, łatwej do utrzymania w czystości. • wym. 46 x 54 x 43 cm • wym. siedziska 30 x 50 x 26 cm",null,false]
["Aranżacje","101416","Pufa smok Bambik",0,159.9,"Miękkie pufy-zwierzątka w wesołych kolorach, wykonane z pianki, z pokrowcem z trwałej tkaniny PCV, łatwej do utrzymania w czystości. • wym. 46 x 54 x 43 cm • wym. siedziska 30 x 50 x 26 cm",null,false]
["Aranżacje","511038","Ocean",0,39.9,"Podczas poruszania przemieszczające się wewnątrz metalowe kuleczki imitują dźwięk szumu fal. • śr. 25 cm",null,false]
["Aranżacje","511037","Deszcz",0,59.9,"Instrument wykonany z tworzywa sztucznego. W środku umieszczono małe kolorowe koraliki, które spadając w dół wywołują charakterystyczny dla deszczu dźwięk. • dł. 53,5 cm • śr. 4,5 cm",null,false]
["Aranżacje","604020","Tarka mała",0,99.9,"• śr. 6 cm",null,false]
["Aranżacje","089028","Pokrywa do kolorowych tacek",0,11.9,"Pozwala zamknąć cały zestaw tacek (089029, sprzedawany osobno) zapobiegając wysypaniu się kaszy. Do zestawu tacek ułożonych w stos wystarczy jedna pokrywka. • drewniana pokrywka o wym. 32 x 23,5 x 0,5 cm",null,false]
["Aranżacje","089029","Zestaw kolorowych tacek",0,149.9,"Zdarzają się czasem tak odważne drzewa, że próbują powstrzymać napór piaskowej wydmy. Walka pomiędzy nimi bywa dynamiczna i piękna. Drewniane tacki nie tyko przyjaźnią się z piaskiem, ale pozwalają dziecku na:\n• nieskrępowaną twórczość napędzaną siłą wyobraźni,\n• ćwiczenie małych dłoni przed podjęciem trudu nauki pisania,\n• wesołą zabawę ze zmieniającą się fabułą - tak, jak tylko dzieci potrafią,\n• sprawianie nowych przyjemności i wizualnych niespodzianek.\nDrzewo, jeśli napiera na nie piasek, przeciwstawia mu się przybierając niejednokrotnie fantastyczne kształty. Drewno, z którego powstały tacki i piasek będący tworzywem zaprzyjaźnią się z dzieckiem, z jego rączkami i nauczą je piękna.\n• 4 tacki z drewna bukowego o wym. 32 x 23 x 1,5 cm",null,false]
["Aranżacje","F041515-6-08-05","Stół świetlicowy Mila 120 x 80 cm Nr 6 aluminiowy - klon",0,259.89999999999998,"Stoły na stelażu metalowym z okrągłymi nogami. Blaty z płyty laminowanej w tonacji klonu o gr. 18 mm , wykończonej obrzeżem o gr. 2 mm. • wym. blatu 120 x 80 cm • stelaż metalowy z profilu 40 x 20 mm i rury fi 40 mm",null,false]
["Aranżacje","F041515-6-08-08","Stół świetlicowy Mila 120 x 80 cm Nr 6 aluminiowy - buk",0,249.9,"Stóły na stelażu metalowym z nogami okrągłymi. Blaty wykonane z płyty laminowanej o gr. 18 mm, wykończonej obrzeżem o gr. 2 mm.\n • wym. 120 x 80 cm",null,false]
["Stół kreatywny","092788","Blat Flexi okrągły- niebieski",0,559.9,"Blaty wykonane ze sklejki o grubości 25 mm, z kolorowym lamiatem HPL. Rogi blatów delikatnie zaokrąglone. Dwa rodzaje nóg w 7 długościach do wyboru, sprzedawane osobno: nogi okrągłe o śr. 55 mm bez kółek (092790-092797) lub mix- dwie nogi z kółkami i dwie nogi bez kółek (092798-092805). • 5 kształtów: kwadratowy, prostokątny, trapezowy, okrągły, półokrągły • 4 kolory: bukowy, zielony, niebieski, żółty\n• śr. 120 cm",null,false]
["Stół kreatywny","092797","Komplet nóg do blatów Flexi - wys. 76 cm",0,159.9,"Podane długości nóg odpowiadają wysokości stolika po ich zamontowaniu. Śruby do zamontowania nóg zawsze umieszczane są przy blatach. • 4 szt.",null,false]
["Stół kreatywny","256090","Krzesełko Colores rozm. 6 - szare",0,219.9,"Krzesła wykonane z tworzywa sztucznego, wyróżniające się nowoczesnym i ergonomicznym kształtem. Stelaż w kolorze srebrnym wykonany z rury okrągłej o śr. 18 mm w rozmiarach 1-4 i 22 mm w rozmiarach 5-6. Lekko sprężyste oparcie w naturalny sposób dostosowuje się do pleców dziecka, a szeroko rozstawione tylne nogi zapewniają wysoką stabilność. Krzesło jest odporne na zabrudzenia i wilgoć, a powierzchnia siedziska moletowana, odporna na zarysowania, antypoślizgowa. Zatyczki z tworzywa chronią podłogę przed zarysowaniem. Krzesło można stawiać jedno na drugim. Otwór w oparciu stanowi wygodny uchwyt wykorzystywany podczas przemieszczania. Nie zaleca się czyszczenia krzesełek żadnymi preparatami zawierającymi alkohol w składzie. • dostępne w rozmiarach 1-6 • 6 kolorów • 2-10 lat\n• szare",null,false]
["Stół kreatywny","133147","Suszarka metalowa",0,189.9,"Funkcjonalny mebel do suszenia prac plastycznych. Metalowy stelaż na kółkach ułatwiających przemieszczanie. Suszarka pomieści 25 prac formatu A3 lub 50 A4. • wym. 42,5 x 41 x 98 cm",null,false]
["Stół kreatywny","113022","Plastelina zestaw przedszkolny 12 kolorów x 15 szt.",0,39.9,"• waga 2,8 kg • 12 kolorów po 15 szt. • śr. 1,3 cm • dł. 7,7 cm",null,false]
["Stół kreatywny","115173","Zestaw stolikowy kredek Bambino w drewnianej oprawie",0,65.900000000000006,"• 10 kolorów po 6 sztuk • dł. 12 cm • śr. rysika 0,5 cm",null,false]
["Stół kreatywny","115030","Kredki bambino - zestaw stolikowy",0,32.9,"• 12 kolorów po 6 sztuk kredek • w praktycznym pudełku z przegródkami • dł. 8 cm • śr. 0,7 cm",null,false]
["Stół kreatywny","610238","Piankowe mini kuleczki",0,75.900000000000006,"Masa z piankowymi kuleczkami, idealna do ozdabiania prac plastycznych i formowania. Zasycha na powietrzu. • 12 kolorów • 12 x 38,5 g",null,false]
["Stół kreatywny","257038","Kredki Groove TripleOne 3 w 1 - 12 szt",0,99.9,"Kredka akwarelowa, ołówkowa i woskowa w jednym. Rozpuszczalna w wodzie. Ma trójkątny, ergonomiczny kształt ułatwiający prawidłowe trzymanie kredek. • dł. 12 cm • śr. 1,5 cm • śr. rysika 1 cm",null,false]
["Stół kreatywny","024101","Pastele suche 12 szt.",0,39.9,"Pastele w różnych kolorach można łatwo ze sobą mieszać, stosować na mokro i na sucho, a także łączyć z innymi technikami. Posiadają certyfikaty zgodności z normą EN-71 i atesty. • wym. 1 x 1 x 6,6 cm\n• 12 szt.",null,false]
["Stół kreatywny","257064","Giotto - kredki do szkła",0,24.9,"Akwarelowe kredki woskowe z obwolutą. Idealne do rysowania na szkle lub lustrze. Łatwe do usunięcia przy użyciu wilgotnej szmatki. • 10 kolorów • dł. 9 cm • śr. 1 cm",null,false]
["Stół kreatywny","115421","Kredki trójkątne - zestaw stolikowy Bambino w drewnianej oprawie - 60 szt",0,72.900000000000006,"W zestawie złota i srebrna kredka. • różne wzory pudełek, wysyłane losowo • dł. 15 cm • śr. 1 cm • śr. rysika 0,5 cm\n• 10 kolorów",null,false]
["Stół kreatywny","500106","Podkładki do frottage'u",0,39.9,"Umożliwiają tworzenie obrazków poprzez pocieranie kredką po wypukłych elementach podkładek. Rozwijają wyobraźnię i inspiracje artystyczne.\n• 12 szt. • wym. 13 x 13 cm",null,false]
["Stół kreatywny","024004","Kredki świecowe trójkąty 10 kolorów",0,59.9,"Kredki w kształcie trójkąta w intensywnych kolorach, wygodne w użyciu. Idealne do malowania dużych powierzchni oraz malowania techniką frottage, z zastosowaniem podkładek (500106). • wym. 4,5 cm • grubość 0,8 cm ",null,false]
["Stół kreatywny",610230,"Kartony wydrapywanki czarne",0,63.9,"Grube, mocne kartony do wydrapywania wzorów, pod warstwą zewnętrzną ukazuje się kolorowe tło. Pokryte nietoksyczną farbą. *100 szt.",null,false]
["Stół kreatywny",202121,"Uczymy się rysować krok po kroku - zwierzęta",0,39.9,"Zestaw zawiera karty ze wzorami oraz planszę wielokrotnego użytku, po której pisze się załączonym mazakiem. Gdy rysunek jest skończony lub coś nie wyjdzie, możemy w łatwy sposób zetrzeć go ściereczką. • plansza o wym. 21 x 21 x 1 cm • 24 karty • mazak • ściereczka",null,false]
["Stół kreatywny",202122,"Uczymy się rysować krok po kroku - księżniczka",0,39.9,"Zestaw zawiera karty ze wzorami oraz planszę wielokrotnego użytku, po której pisze się załączonym mazakiem. Gdy rysunek jest skończony lub coś nie wyjdzie, możemy w łatwy sposób zetrzeć go ściereczką. • plansza o wym. 21 x 21 x 1 cm • 24 karty • mazak • ściereczka",null,false]
["Stół kreatywny",202123,"Uczymy się rysować krok po kroku - chłopiec",0,39.9,"Zestaw zawiera karty ze wzorami oraz planszę wielokrotnego użytku, po której pisze się załączonym mazakiem. Gdy rysunek jest skończony lub coś nie wyjdzie, możemy w łatwy sposób zetrzeć go ściereczką. • plansza o wym. 21 x 21 x 1 cm • 24 karty • mazak • ściereczka",null,false]
["Stół kreatywny",362016,"Okulary do dekorowania",0,9.9,"Zestaw kartonowych masek do samodzielnego dekorowania. • 12 szt. • wym. 37,5 x 8 cm",null,false]
["Stół kreatywny",610001,"Piankowe kształty 1000 szt.",0,29.9,"Piankowe kształty. • różne kształty • 1000 szt. • wym. od 1 do 5 cm",null,false]
["Stół kreatywny","543015","Wkład z papieru rysunkowego A4/250 ark.",0,27.9,"Wkład z papieru rysunkowego A4. • 250 arkuszy • 80 g/m2",null,false]
["Stół kreatywny","075091","Plastikowy kubek 0,25l mix",0,1.6,"• 1 szt. • śr. 7,7 cm • wys. 8,8 cm • różne kolory, sprzedawane losowo",null,false]
["Doświadczenia","830005","Fun goo - mini eksperyment z polimerami",0,15.9,"FUN goo to prosty i bardzo efektowny eksperyment. Zamieniasz się w szalonego naukowca, łączysz dwie interesujące substancje,  intensywnie mieszasz przez 3-4 minuty (postępując według instrukcji) i po chwili stajesz się posiadaczem zielonej rozciągliwej substancji!\nTo niezwykłe jak płyny po kilku prostych zabiegach stają się zwartą substancją w niczym nie przypominającą cieczy!\nPo wykonaniu chemicznego zadania, czas na zabawę świeżo powstałym FUN goo.\nMłodsze dzieci z pewnością poradzą sobie z wykonaniem tego eksperymentu, po zrobieniu będą miały dużo zabawy z samodzielnie zrobioną zabawką! Starsze dzieci uczą się czym są reakcje chemiczne, ciecz nienewtonowska oraz stany skupienia.\nPrzykładowe tematy naukowe, jakie można poruszyć z dzieckiem robiąc FUN goo, aby zabawa szła w parze z nauką, już wkrótce umieścimy na naszym blogu.\nW zestawie • instrukcja • 30 ml FUNgoo(PVA) • 1,5 ml boraksu • drewniane mieszadełko",null,false]
["Doświadczenia","830001","Fun bow - mini eksperyment z tęczą",0,15.9,"Tęcza w probówce? Jak zamknąć takie zjawisko w tak małym naczynku? Sprawdź sam, bądź jak naukowiec! Ten kolorowy eksperyment wymaga czasu, ale warto się potrudzić, ponieważ efekt jest zaskakujący!\nZ substancji w wyglądzie przypominającej cukier otrzymujemy coś na kształt galaretki. Po odpowiednim ułożeniu w probówce kolorowych kryształków, już po jednym dniu zaobserwujemy zmiany jakie zachodzą- w naszej małej, przenośnej tęczy!\nMłodsze dzieci przy pomocy rodziców będą miały mnóstwo zabawy przy obserwacji tęczy i doświadczaniu w niej zachodzących. Dodatkowo można pokazać małym naukowcom jakie kolory powstają z barw podstawowych.\nDla starszych dzieci zrobienie samodzielnie tęczy to fantastyczne wyzwanie!\nTaki eksperyment może wiele nauczyć, uświadomi nam czym jest absorpcja, superabsorbenty, hydrożele, wchłanianie oraz barwy i ich pochodne.\nW zestawie: • 7g kryształków hydrożelowych • 3 kolory tabletek barwiących • instrukcja obsługi",null,false]
["Doświadczenia","830003","Fun blob - mini eksperyment z robakiem",0,15.9,"Polimery mają wszechstronne zastosowanie, ale czy można z nich zrobić robaka? Można! I to z substancji używanych w produkcji żywności. Dzięki temu eksperymentowi poznasz proste sztuczki mistrzów kulinarnych. Nie ma nic fajniejszego niż nauka poprzez zabawę!\n„Ta zabawka to eksperyment” zawiera: szczegółową instrukcję wykonania eksperymentu,     wyjaśnienie zachodzących reakcji, poruszanego zagadnienia, produkty potrzebne do przeprowadzenia eksperymentu .\nW zestawie: • instrukcja • 2 g alginian sodu • 3 g mleczan wapnia • strzykawka mała • barwnik spożywczy niebieski • 2 patyczki drewniane",null,false]
["Doświadczenia","830002","Fun snow - mini eksperyment ze sztucznym śniegiem",0,15.9,"Lubicie śnieg? Dzięki naszym naukowcom możesz samodzielnie zrobić śnieg nawet w środku lata!  Wystarczy odrobina wody i nasz specjalny proszek.  Do dzieła, przygotujcie odpowiednio swoje domowe laboratorium i spróbujcie wykonać ten eksperyment,  a po chwili zobaczycie zaspę śniegu na waszym stole ;)\nFUN snow - dla kogo i po co?\nZ tym eksperymentem poradzą sobie nawet najmniejsi naukowcy!\nW zimie można nim udekorować choinkę lub parapet- ponieważ sztuczny śnieg nie roztapia się w cieple.\nStarsze dzieciaki na podstawie wykonanego eksperymentu dowiedzą się czym jest absorpcja i superabsorbenty.\nDodatkowo można zrobić w domu dekorację świąteczną z wykorzystaniem sztucznego śniegu!\nW zestawie: • 5 g poliakrylanu sodu • drewniane mieszadełko • instrukcja obsługi",null,false]
["Doświadczenia","830004","Fun air - mini eksperyment z balonem",0,15.9,"FUN air to tylko pozornie najtrudniejszy eksperyment na świecie. Czy jest możliwe nadmuchanie balona jednym dmuchnięciem&gt; I jeśli tak, to dlaczego? Czy stoi za tym magia, czy też prawa fizyki? Nie zgaduj, tylko poznaj lepiej powietrze. Nie ma nic fajniejszego niż nauka poprzez zabawę!\n„Ta zabawka to eksperyment” zawiera: szczegółową instrukcję wykonania eksperymentu, wyjaśnienie zachodzących reakcji, poruszanego zagadnienia, produkty potrzebne do przeprowadzenia eksperymentu .\nW zestawie: • instrukcja • rękaw foliowy • flamaster",null,false]
["Doświadczenia","555045","Miękka Lalka Julek",0,49.9,"Miękkie lalki pokryte pluszowym materiałem, częściowo wypełnione grochem (pupa). Można zdejmować z nich ubranka. • różne kolory, sprzedawane losowo • dł. 40 cm",null,false]
["Doświadczenia","555046","Miękka lalka Dorotka",0,49.9,"Miękkie lalki pokryte pluszowym materiałem, częściowo wypełnione grochem (pupa). Można zdejmować z nich ubranka. • różne kolory, sprzedawane losowo • dł. 40 cm",null,false]
["Doświadczenia","555050","Ubranka dla lalki-chłopca",0,35.9,"Komplet ubranek dopasowany do wym. miękkiej lalki - Julka (555045, sprzedawana osobno). W komplecie: kurtka, spodenki, ogrodniczki, koszula, czapka, buty, majtki, chustka.",null,false]
["Doświadczenia","531059","Przewlekanka - wrotka",0,32.9,"Podczas zabawy kolorowe przewlekanki rozwijają u malucha  zdolności ruchowe i koncentrację. To świetna zabawa edukacyjna, trening manualny oraz ćwiczenie precyzji ruchów, a także cierpliwości i dokładności.\n• wym. 11,5 x 6 x 10 cm",null,false]
["Doświadczenia","134013","Fartuch laboratoryjny, rozm. 116/122",0,39.9,"Fartuch laboratoryjny dziecięcy, wykonany z bawełny, z zapięciem na guziki. Sprawdzi się doskonale jako ochrona na szkolnych zajęciach z chemii, czy przy różnego rodzaju doświadczeniach naukowych.\n• wym. 37 x 65 cm • dł. rękawa 38 cm",null,false]
["Doświadczenia","604211","Okulary ochronne",0,15.9,"Okulary wykonane z tworzywa sztucznego, wyposażone w gumkę pozwalającą utrzymać je na głowie. • wym. 16 x 7 x 8 cm",null,false]
["Doświadczenia","356006","Mikroskop jajo",0,329.9,"Mikroskop i kamera w jednym, z możliwością podłączenia do komputera, powiększenie do 43x. Dzięki małym rozmiarom i swobodzie poruszania mikroskopem dzieci mogą oglądać owady, fragmenty powierzchni dużych przedmiotów itp. Mikroskop pozwala również robić zdjęcia oglądanym obiektom i zachować je na dysku, dzięki czemu praca może być kontynuowana na zgromadzonym materiale.",null,false]
["Doświadczenia","202096","Magnetyczne formy z czarną planszą",0,99.9,"Zestawy zawierają drewniane, kolorowe, geometryczne elementy, z których można układać wiele ciekawych obrazków oraz karty z propozycjami wzorów, które można ułożyć za pomocą kolorowych magnesów. Wszystko zamknięte jest w drewnianej walizeczce-pudełku z magnetyczną planszą. Zabawki edukacyjne, dzięki którym dzieci poznają kształty geometryczne, pobudzają wyobraźnię i kreatywność.\n• wym. walizki 30 x 30 x 3,7 cm • 35 elem. • 20 kart",null,false]
["Doświadczenia","604203","Termometr",0,14.9,"Szklany termometr w tubie z trwałego tworzywa sztucznego. • skala do 100° • dł. 30 cm",null,false]
["Doświadczenia","550032","Ciuciubabka - opaska na oczy",0,6.9,"Wykonana z bawełny. • wym. 16 x 8 cm • 1 szt.",null,false]
["Doświadczenia","500203","Zestaw magnesów, 120 szt.",0,62.9,"Zestaw kolorowych, okrągłych magnesów, w praktycznym, plastikowym słoiku. • 120 szt. • śr. 2,5 cm",null,false]
["Doświadczenia","500176","Piłeczki i patyczki do brył geometrycznych",0,69.900000000000006,"Zestaw kolorowych, drobnych piłeczek i patyczków różnych rozmiarów do tworzenia przestrzennych konstrukcji geometrycznych. • 40 szt. czerwonych patyczków o dł. 12,5 cm • 40 szt. niebieskich patyczków o dł. 10,5 cm • 40 szt. żółtych patyczków o dł. 8,2 cm • 40 szt. zielonych patyczków o dł. 6,9 cm • 45 szt. fioletowych patyczków o dł. 5,3 cm • 45 szt. pomarańczowych patyczków o dł. 3,3 cm • 80 szt. piłeczek z otworami w 6 kolorach • 330 elem.",null,false]
["Doświadczenia","604173","Karty do zestawu figury (500176)",0,56.9,"Karty z instrukcjami do wykonywania konstrukcji przestrzennych. Ćwiczenia przygotowują do nauki zapisywania cyfr i liter. • 10 dwustronnych kart o wym. 24 x 13 cm, ze wzorami rzeczywistego rozmiaru",null,false]
["Doświadczenia","500021","Cylindry  menzurki",0,79.900000000000006,"7 cylindrów o pojemności 10, 25, 50, 100, 250, 500 i 1000 ml z widocznie zaznaczoną skalą objętości. Każda menzurka ma „dzióbek” ułatwiający wylewanie z niej odmierzonej cieczy.",null,false]
["Doświadczenia","403003","Sortowanie - misie z kartami zadań",0,49.9,"Zestaw do nauki podstaw matematyki. Karty obejmują 3 rodzaje zadań: uzupełnienie sekwencji według wielkości i koloru; dopasowanie odpowiedniej wielkości misia do właściwej liczby patyczków oraz dodawanie i odejmowanie w zakresie 1-12. • praktyczne kartonowe pudełko z uchwytem • 24 misie z tworzywa sztucznego w 4 rozmiarach i 4 kolorach o wys. 3 - 4 cm • 25 patyczków z tworzywa sztucznego o dł. 10 cm • 12 dwustronnych kart z tektury o wym. 8,5 x 8,5 cm",null,{"$f":"D71>0","v":false}]
["Doświadczenia","451096","Klasyfikacja kolorów i nauka liczenia",0,99.9,"Gra zapewnia dzieciom rozrywkę, zachęca do zabawy dzięki wesołym kolorom liczmanów, a jednocześnie uczy liczenia, dodawania, odejmowania, klasyfikowania kolorów.  • 4 kostki o boku 3,5 cm • 300 kolorowych liczmanów o śr. 3,1 cm • 36 naklejek z kolorami, cyframi, kropkami i znakami działań matematycznych",null,false]
["Doświadczenia","453086","Dodawanie i odejmowanie",0,49.9,"Gra ucząca pierwszych działań matematycznych - dodawania i odejmowania. Zawiera aż 74 przykłady działań, zilustrowanych kolorowymi obrazkami. \nPlansze są wykonane z twardej tektury. • 8 plansz o wym. 32 x 23 cm",null,false]
["Doświadczenia","521221","Magnetyczny mini labirynt Sowa",0,24.9,"Kolorowy labirynt z płyty pilśniowej lub sklejki i pleksi, z magnetycznym patyczkiem na sznurku. • różne wzory, wysyłane losowo • wym. 12 x 14 cm • dł. sznurka 15 cm • 1 szt.",null,false]
["Doświadczenia","521220","Magnetyczny mini labirynt Wiosenne zwierzątka",0,19.899999999999999,"Kolorowy labirynt z płyty pilśniowej lub sklejki i pleksi, z magnetycznym patyczkiem na sznurku. • różne wzory, wysyłane losowo • wym. 12 x 14 cm • dł. sznurka 15 cm • 1 szt.",null,false]
["Doświadczenia","825024","Koszyk ratanowy 5 l czekoladowy",0,7.9,"Pojemnik wykonany z tworzywa sztucznego, idealny do przechowywania drobiazgów. Dzięki odpowiedniemu wyprofilowaniu puste pojemniki można przechowywać jeden w drugim. • poj. 5 l • wym. 25,3 x 19,5 x 10,5 cm",null,false]
["Doświadczenia","605074","Piasek do modelowania",0,149.9,"Piasek do modelowania, bardzo miękki, nie wysycha. Nie należy mieszać go z wodą. Idealny do budowania. W poręcznym wiaderku. • 5 kg",null,false]
["Doświadczenia",500063,"Taca malarska",0,19.899999999999999,"Podstawa z tworzywa sztucznego, pomocna przy malowaniu palcami, do mieszania farb. Przydatna również do działań plastycznych z koralikami, drobnymi elementami, które pozostaną w zasięgu dziecięcej ręki. • wym. 40 x 30 x 3 cm",null,false]
["Doświadczenia",500179,"Foremki do piasku - kształty",0,19.899999999999999,"Zestaw kolorowych foremek do piasku w 8 różnych kształtach, wykonanych z tworzywa sztucznego wysokiej jakości. Umożliwiają uformowanie na piasku ciekawych kształtów. • 16 szt. • wym. ok. 9 x 7 cm • od 18 miesięcy\n\n",null,false]
["Moje Bambino","067001","Klocki matematyczne",0,359.9,"Klocki matematyczne są rewelacyjną, bardzo wartościową pomocą dydaktyczną dla indywidualizacji nauczania matematyki od wczesnych lat dziecięcych (bo już 2-3-letnie dzieci mogą być wdrażane do myślenia logiczno-matematycznego), a także dla coraz większej liczby uczniów o zróżnicowanych możliwościach i potrzebach edukacyjnych. Nauczyciel i rodzic biorąc do ręki Klocki matematyczne ma możliwość łatwiejszego dostrzeżenia, na czym polega problem trudności w uczeniu się pojęć i działań matematycznych. Uczenie się matematyki przy pomocy Klocków matematycznych, to nic innego, jak &quot;matematyka na konkretach i na wesoło&quot;. Pamiętajmy!!! Dziecko, zanim posiądzie umiejętność dokonywania tzw. operacji formalnych, musi mieć za sobą odpowiednio długi okres dokonywania operacji myślowych na konkretach. U młodszych dzieci zwiększa się rola procesów myślowych, gdy &quot;badają&quot; i poznają otoczenie poprzez działanie. Nie można więc przy nauce matematyki zapominać o podstawowych prawidłowościach rozwojowych myślenia u dzieci. Aby dojść do jego formy najwyższej - myślenia abstrakcyjnego (jakże niezbędnego w nauce matematyki) musi być odpowiednio rozwijane myślenie konkretno-obrazowe i konkretno-wyobrażeniowe. Klocki matematyczne mają m.in. pomóc w zindywidualizowaniu nauczania matematyki i ułatwić dokonywanie różnego rodzaju operacji matematycznych na konkretach. Zadania matematyczne wykonywane przy ich pomocy zostały tak opracowane, aby podczas ich rozwiązywania usprawniać w sposób zabawowy wszelkie rodzaje pomięci (wzrokową, słuchową i ruchową). Klocki matematyczne w rękach zaangażowanego nauczyciela, a nawet rodzica, są świetną pomocą dydaktyczną w zabawowym nauczaniu wstępnym (w okresie przedszkolnym) i w początkowym okresie szkolnym nauczania matematyki. Pedagog i psycholog wykorzystać je może w procesie diagnozy i terapii dzieci w wieku 5-10 lat. Dzieci ze szkół integracyjnych (z opinią poradni psychologiczno-pedagogicznej o dyskalkulii), a także uczniowie szkół specjalnych dla dzieci upośledzonych w stopniu lekkim, powinny wykorzystywać je w ciągu całej nauki szkolnej. Cztery ściany każdego klocka zostały oznaczone w następujący sposób: jedna ze ścian każdego klocka jest kolorowa; druga ścianka klocka podzielona jest na odcinki jednostkowe; trzecia posiada kropki w odpowiedniej ilości do podziałów jednostkowych; czwarta ścianka opisana jest liczbą od 1 do 10. Wymiar najmniejszego klocka to 2 x 2 x 2 cm. • Komplet klocków zawiera:\n• 15 szt. klocków białych, jedynek (1)\n• 10 szt. klocków różowych, dwójek (2)\n• 7 szt. klocków niebieskich, trójek (3)\n• 6 szt. klocków czerwonych, czwórek (4)\n• 5 szt. klocków żółtych, piątek (5)\n• 3 szt. klocków fioletowych, szóstek (6)\n• 3 szt. klocków zielonych, siódemek (7)\n• 3 szt. klocków wiśniowych, ósemek (8)\n• 3 szt. klocków granatowych, dziewiątek (9)\n• 2 szt. klocków pomarańczowych, dziesiątek (10)\n• 2 szt. klocków czarnych (wszystkie ścianki) a na nich\n• białe znaki: +, -, •, :, &lt;, =.",null,false]
["Moje Bambino","199094","Tworzenie reprezentacji danego desygnatu - rzeczowniki",0,89.9,"Wiele dzieci z zaburzeniami mowy o różnej etiologii ma trudności z tworzeniem pojęć i reprezentacji danego desygnatu. Ta z pozoru prosta umiejętność polega na dostrzeganiu zjawiska, iż jedno słowo oznacza (najczęściej) konkretny desygnat. Desygnaty te mogą mieć jednak wiele reprezentacji różniących się między sobą szczegółami, np. słowo pies oznacza zwierzę, które ma cztery łapy, szczeka itd., a reprezentacje samego desygnatu różnią się między sobą, bo pies może być mały, duży, z ogonem długim, krótkim itd. Pomocne w  zrozumieniu tego zjawiska będą ilustracje i ćwiczenia zawarte w tej pomocy. W ramach jednego desygnatu przygotowano 5 reprezentacji.  W wybranych przykładach jedna z reprezentacji ma jakiś brak, wadę np. jeden z kubków jest wyszczerbiony. • 80 kart • format: 10,5 x 9,9 cm •",null,false]
["Moje Bambino","199099","Słowa na różne głoski",0,179.9,"To zestaw kart z ilustracjami, których nazwa rozpoczyna się określoną głoską. Karty mogą być wykorzystywane przez nauczycieli do prezentacji przy wprowadzaniu kolejnych  liter alfabetu, podczas zajęć usprawniających umiejętność czytania i pisania oraz  ćwiczeń logopedycznych przy usprawnianiu artykulacji danej głoski w nagłosie czy różnicowania głosek. • 287 obrazków • format: A6",null,false]
["Moje Bambino","199069","Krótkie opowiadania do ćw. rozumienia i czytania",0,129.9,"Zbiór opowiadań, które dziecko może wysłuchać lub samodzielnie przeczytać. Tekst został zapisany dwoma kolorami, z podziałem wyrazów na sylaby, przy zachowaniu zasady rozdzielania spółgłosek. Jest to duże ułatwienie dla dzieci, które mają trudności z opanowaniem umiejętności czytania. Do każdego opowiadania dołączone są zadania w formie 5 kart pracy, które dziecko wykonuje po jego wysłuchaniu. Tytuły opowiadań: • W ogrodzie • Na wsi • W sklepie • Pokój z zabawkami • Urodziny Oli",null,false]
["Moje Bambino","199030","Kolorowe szlaczki",0,79.900000000000006,"Kolorowe plansze z obrazkami zawierającymi różnego rodzaju linie. Pomoc do ćwiczeń usprawniających motorykę ręki i przygotowujących do pisania. Dzięki teczkom z tworzywa karty służą do wielokrotnego użytku. Dzieci wkładają karty w przezroczyste teczki i mogą po nich pisać załączonymi mazakami. • 19 kart formatu A4 • 5 teczek • 4 mazaki",null,false]
["Moje Bambino","199129","Komplet magnesów Parki narodowe w Polsce",0,39.9,"Seria magnesów przeznaczona do pracy z Magnetyczną mapą Polski (199123, sprzedawana osobno). Obejmuje temat parków narodowych, wzbogacając dyskusję o obszarach chronionych w Polsce. Pomoc umożliwia zapoznanie dzieci z rozmieszczeniem najważniejszych obszarów chronionych na terenie naszego kraju, symbolami parków oraz zagadnieniem powiększania się tych obszarów w ujęciu czasowym. Do pomocy dołączona jest tabela zwierająca zestawienie najważniejszych informacji o parkach narodowych. Połączenie percepcji wzrokowej z możliwością manipulacji znaczkiem (przekładanie, nakładanie, sortowanie) pomaga znacznie poprawić stopień przyswajania wiedzy. Piankowe magnesy z powierzchnią wykonaną z lakierowanego kartonu. • 24 szt. • śr. 3,5 cm • instrukcja",null,false]
["Moje Bambino","199127","Komplet magnesów Naj... w Polsce",0,39.9,"Seria magnesów przeznaczona do pracy z Magnetyczną mapą Polski (199123, sprzedawana osobno). Pomaga dzieciom poznać ciekawostki związane z Polską, które wzbogacają podstawową wiedzę młodego erudyty. Praca z ruchomymi elementami i mapą stymuluje rozwój orientacji przestrzennej. Pomoc zawiera obiekty przyrodnicze, kulturalne, dziedzictwa naturalnego i antropogenicznego w zakresie pojęć: największy, najwyższy, najgłębszy, najdłuższy, najstarszy, najgrubszy, najdziwniejszy, najsłynniejszy, najdalej wysunięty, najwyżej i najniżej położony. Piankowe magnesy z powierzchnią wykonaną z lakierowanego kartonu. • 30 szt. • śr. 3,5 cm • instrukcja",null,false]
["Moje Bambino",199123,"Magnetyczna mapa Polski",0,159.9,"Kolorowa mapa Polski wprowadza w świat zagadnień geografii, środowiska i miast Polski. Ruchome elementy dają możliwość omówienia danego zagadnienia w ujęciu przestrzennym. Uczeń poznaje położenie na mapie krain geograficznych, nazwy podstawowych pasm górskich , rzek oraz sąsiadów naszego państwa. Możliwość umieszczenia elementu magnetycznego w różnych obszarach na mapie daje możliwość pokazania dziecku występowania danego zjawiska w różnych rejonach kraju otwierając pole do dyskusji.\nZestaw zawiera mapę oraz 55 magnesów należących do „Zestawu podstawowego”.\nZestaw podstawowy  to serie magnesów w kategoriach: miasta, sąsiedzi Polski, poznaj swój kraj, rzeki i morze, góry, zwierzęta.\nPomoc przeznaczona do wzbogacania zajęć edukacji  przedszkolnej i wczesnoszkolnej, do pracy grupowej i indywidualnej.\nDodatkowe magnesy zawarte w kolejnych seriach obejmują tematykę z zakresu kształcenia klas 4-6.\n• mapa o wym. 60 x 52 cm\n• 55 magnesów o wym. 3 do 6 cm",null,false]
["Moje Bambino",199124,"Bezpieczeństwo w podróży",0,79.900000000000006,"Gra pomaga dzieciom poznawać i utrwalać zasady bezpiecznego podróżowania. Uwzględnia różne środki lokomocji, z których może korzystać dziecko. Gra składa się z tabliczek magnetycznych formatu A3 przedstawiających środki lokomocji oraz mniejszych magnetycznych obrazków (po 4 obrazki do każdej tabliczki), ukazujących zachowania właściwe i niewłaściwe w danym pojeździe. Zabawa polega na: · Dobieraniu przedmiotów lub zachowań dziecka, które są niezbędne by PODRÓŻ danym środkiem lokomocji BYŁA BEZPIECZNA (dziecko powinno ułożyć odpowiednie obrazki na zielonych polach). · Dobieraniu zachowań lub przedmiotów dziecka niewłaściwych w danej sytuacji, powodujących, że podróż staje się NIEBEZPIECZNA (dziecko powinno ułożyć odpowiednie obrazki na polach czerwonych). · Opowiadaniu historii (jak się należy zachować w danym środku lokomocji). Dzieci mogą pracować zarówno samodzielnie, jak i w grupach. • 4 plansze magnetyczne A3 • 16 tafelków magnetycznych o wym. 6 x 6 cm • karta - klucz poprawnych odpowiedzi, format A5 • instrukcja",null,false]
["Moje Bambino","199137","Bezpieczeństwo w podróży, cz. 2",0,79.900000000000006,"Gra pomaga dzieciom poznawać i utrwalać zasady bezpiecznego podróżowania. Uwzględnia różne środki lokomocji, z których może korzystać dziecko. Gra składa się z tabliczek magnetycznych formatu A3 przedstawiających środki lokomocji oraz mniejszych magnetycznych obrazków (po 4 obrazki do każdej tabliczki), ukazujących zachowania właściwe i niewłaściwe w danym pojeździe. Zabawa polega na: · Dobieraniu przedmiotów lub zachowań dziecka, które są niezbędne by PODRÓŻ danym środkiem lokomocji BYŁA BEZPIECZNA (dziecko powinno ułożyć odpowiednie obrazki na zielonych polach). · Dobieraniu zachowań lub przedmiotów dziecka niewłaściwych w danej sytuacji, powodujących, że podróż staje się NIEBEZPIECZNA (dziecko powinno ułożyć odpowiednie obrazki na polach czerwonych). · Opowiadaniu historii (jak się należy zachować w danym środku lokomocji). Dzieci mogą pracować zarówno samodzielnie, jak i w grupach. • 4 plansze magnetyczne A3 • 16 tafelków magnetycznych o wym. 6 x 6 cm • karta - klucz poprawnych odpowiedzi, format A5 • instrukcja",null,false]
["Moje Bambino","199140","Zestaw magnetycznych pieniędzy",0,159.9,"Skład zestawu:\n• banknot 200 zł o wym. 18,2 x 9,1 cm, 3 szt.\n• banknot 100 zł o wym. 17,4 x 8,7 cm, 3 szt.\n• banknot 50 zł o wym. 16,7 x 8,4 cm, 4 szt.\n• banknot 20 zł o wym. 15,9 x 8,0 cm, 4 szt.\n• banknot 10 zł o wym. 15,7 x 7,6 cm, 6 szt.\n• moneta 5 zł o śr. 72,7 mm, 6 szt.\n• moneta 2 zł o śr. 65,1 mm, 6 szt.\n• moneta 1 zł o śr. 70 mm, 10 szt.\n• moneta 50 gr o śr. 62 mm, 10 szt.\n• moneta 20 gr o śr. 56 mm, 5 szt.\n• moneta 10 gr o śr. 50 mm, 10 szt.\n• moneta 5 gr o śr. 59 mm, 12 szt.\n• moneta 2 gr o śr. 53 mm, 12 szt.\n• moneta 1 gr o śr. 47 mm, 12 szt.\n• żetony ze znakami działań matematycznych o śr. 60 mm, 40 szt.",null,false]
["Moje Bambino","199141","Grafomotoryka poza granicami",0,35.9,"Teczka z kartami do ćwiczeń usprawniających rękę i przygotowujących do nauki pisania.\nPrzygotowanie dziecka do nauki pisania jest długotrwałym\noraz skomplikowanym procesem. W związku z tym powstał\nzestaw kart graficznych, który ma na celu uatrakcyjnienie jego przebiegu.\nPraca z kartami - poprzez łączenie kropek, odtwarzanie\nwzorów, rysowanie prostych i owali, płynne kreślenie bez\nodrywania ręki - pomaga przy kształtowaniu prawidłowego\nnacisku na płaszczyznę i odrysowaniu kształtów\nliteropodobnych, uczy jak zmieścić się w wyznaczonym\npolu, a tym samym przygotowuje do nauki pisania w okresie\nwczesnoszkolnym.\nDo kart zostały przygotowane filmy, które etap po\netapie pokazują plastyczne propozycje przekształcania\nwykonanej wcześniej pracy graficznej (do dwóch kart z zestawu nie zostały przygotowane filmy). Podczas ich\ntworzenia dziecko tnie po linii, wydziera, odrysowuje,\nnakleja, maluje, koloruje w wyznaczonym polu,\nodwzorowuje itp. W każdym z filmów oprócz etapów\npowstawania pracy, pokazane są potrzebne do jej\nwykonania materiały plastyczne wraz z kodami\nkatalogowymi z oferty Moje Bambino.\nKażdą z kart zamieszczoną w teczce w formacie A - 4 można\npowiększyć na ksero do formatu A-3, wówczas zwiększają\nsię zarówno kratki, na których znajduje się rysunek jak i\nsam powstały obraz - jest to szczególnie zalecane dla\nmłodszych dzieci. W każdej teczce dodatkowo znajdują się\ndwie kartki w kratkę o różnej wielkości kratek - to pozwala\nna samodzielne tworzenie wzorów dla dzieci - takiego\nwłasnego Portfolio oraz stanowi gotową bazę do prac dla\ndzieci, które chcą również stać się autorami kart.\n\n\n• 28 kart A4",null,false]
["Moje Bambino","370011","Pierwsze kroki z klockami NUMICON - zestaw indywidualny (wersja polska)*",0,249.9,"Klocki Numicon wykonane są z trwałego, kolorowego tworzywa, wprowadzą małe dzieci w świat matematyki. Praca z Numiconem pomaga zrozumieć skomplikowane pojęcia matematyczne. To pomoc edukacyjna, dzięki której dzieci uczą się matematyki poprzez wszystkie zmysły. Klocki te można wykorzystywać np. w piasku, w wodzie, podczas zabawy ciastoliną itp. Uczniowie dowiadują się, że cyfry i liczby to symbole, które można łączyć. Zauważają również relacje i związki pomiędzy liczbami. Eksperymentując z klockami i innymi przedmiotami do przeliczania, można opisywać swoje działania i spostrzeżenia. Nauczyciel z łatwością może wyciągać wnioski na temat poziomu rozwoju wiedzy matematycznej swoich podopiecznych. Numicon przedstawia prawidłową kolejność działań wprowadzających wiadomości i umiejętności matematyczne. Najpierw przez doświadczanie i spontaniczne manipulowanie, rozmawianie, a następnie przez przechodzenie w typowy świat cyfr, liczb i działań arytmetycznych. • 32 kształty Numicon (10 pojedynczych, 5 podwójnych, 3 potrójne, po 2 ze wszystkich pozostałych rodzajów - aż do 10) • 52 kołeczki Numicon • podstawa • książeczka zyg-zak • 1 sznurówka • 2 dwustronne plansze z wzorami • zestaw kart 0-10 • woreczek na elementy • przewodnik z ćwiczeniami",null,false]
["Moje Bambino","370010","Waga Numicon",0,159.9,"Waga pozwala na wprowadzanie zagadnienia równoważności i ćwiczenia działań na dodawanie, wprowadzanie wyrażeń: cięższy niż/lżejszy niż. Przezroczyste kubełki ułatwiają obserwację zawartości. • 2 pojemniki o poj. 1 l",null,false]
["Moje Bambino","099639","Tabliczka do ćwiczeń oburącz - ptaszki",0,39.9,"Oryginalna pomoc do ćwiczeń w pisaniu oburącz. Na płytkach wyżłobione zostały dwa identyczne wzory w lustrzanym odbiciu. Zadaniem dziecka jest wodzenie po wzorze za pomocą specjalnych patyczków. Zadanie jest dość trudne, a jego wykonywanie doskonale trenuje koordynację wzrokowo-ruchową i koncentrację uwagi. Wykonane z płyty MDF. • wym. 41,5 x 22 cm",null,false]
["Integrancja sensoryczna","101396","Fakturowa opaska z kulką",0,39.9,"Opaska wykonana z fragmentów materiałów o różnych fakturach. Dodatkowo wewnątrz opaski ukryto kulkę, którą można przesuwać. • śr. ok. 20 cm • szer. 6,5 cm",null,false]
["Integrancja sensoryczna","306187","Sprawnościowe koło",0,179.9,"Zabawa służy głównie rozwijaniu koncentracji, motoryki oraz refleksu. Zabawa polega na przemieszczaniu kulek po torze tak, by utrzymywały się na nim. Każdy z torów ma inny kształt, co urozmaica zadanie. • 4-stronny tor o wym. 28 x 25 x 4,5 cm • 2 kulki",null,false]
["Integrancja sensoryczna","613002","Głuchy telefon",0,129.9,"To akustyczny zestaw słuchawkowy do pracy w parach np.: dwóch uczniów lub nauczyciel - uczeń. Zestaw pomaga udoskonalać umiejętność czytania. Urządzenie jest pomocą stymulującą dziecko do podejmowania wysiłku związanego z nauką czytania czy mówienia zarówno w polskim, jak i obcym języku, a jednocześnie ciekawą propozycją urozmaicenia ćwiczeń z tego zakresu.\n• zestaw 2 słuchawek o wym. 24 x 3,5 cm\n• rurka harmonijka biała łącząca słuchawki o dł. max. 186 cm, śr. 2 cm",null,false]
["Integrancja sensoryczna","555029","Komplet pacynek - emocje (6 szt.)",0,129.9,"Dzięki zabawie z pacynkami dzieci poznają świat emocji, co pozwoli im później zrozumieć i rozpoznać emocje u innych ludzi. • 6 szt.: uśmiechnięta, smutna, przestraszona, zła, neutralna, zdziwiona • wys. 26 - 28 cm",null,false]
["Integrancja sensoryczna","013102","Ołówek Twist'n'Write",0,12.9,"Unikatowy, widełkowy kształt ołówka wymusza prawidłowy, trójpalcowy chwyt dla maksymalnej kontroli jednolitości pisania, eliminując zmęczenie palców i rączki dziecka. Zabawny, intrygujący kształt i intensywne kolory ołówków sprawiają, że dzieci widzą w nich zabawki, które będą chciały wziąć do rączki i jak najszybciej spróbować rysować różne kształty. • różne kolory, sprzedawane losowo • 1 szt. • wym. 9,5 x 4 cm",null,false]
["Integrancja sensoryczna","199015","Dywanik do pracy indywidualnej",0,5.9,"Prostokątny kawałek wykładziny, przy którym uczeń w dowolnej dla siebie pozycji, bez ograniczeń ławki i krzesełka, poznaje, uczy się, liczy na konkretnych przestrzennych przykładach i pomocach, bez zapisywania i papierowej edukacji, dbając jednocześnie o ład i porządek. • 1 szt. • wym. 30 x 40 cm",null,false]
["Integrancja sensoryczna","101398","Odważniki do ćwiczeń równowagi",0,199.9,"Komplet kolorowych odważników do różnego rodzaju ćwiczeń równoważnych i wzmacniających. 3 pary o różnej wielkości i wadze, pokryte trwałą tkaniną PCV, łatwą do utrzymania w czystości. • pomarańczowy: wys. 20 cm, śr. 11 cm, 1,5 kg • zielony: wys. 18 cm, śr. 9,5 cm, 1 kg • czerwony: wys. 12,5 cm, śr. 9 cm, 0,5 kg",null,false]
["Integrancja sensoryczna","601058","Duże kamienie",0,459.9,"Różnorodne kolorystycznie i wielkościowo stopnie z tworzywa sztucznego, imitujące prawdziwe kamienie. Zadaniem uczestnika zabawy jest przeskakiwanie z kamienia na kamień z zachowaniem równowagi. Gra ćwiczy koordynację ruchową, równowagę oraz gibkość. Elementy od spodu zabezpieczone gumowymi podkładkami uniemożliwiającymi przesuwanie się podczas zabawy.• maksymalne obciążenie 100 kg\n• 2 kamienie o wym. 36 x 36 x 36 cm, wys. 8,5 cm\n• 2 kamienie o wym. 40,5 x 40,5 x 40,5 cm, wys. 17 cm • 1 kamień o wym. 42 x 42 x 42 cm, wys. 25,5 cm",null,false]
["Integrancja sensoryczna","301019","Platforma z labiryntem",0,139.9,"Wykonana z dobrej jakości tworzywa sztucznego platforma nadaje się zarówno do zabaw w pomieszczeniach, jak i na wolnym powietrzu. Zabawa służy głównie rozwijaniu koncentracji i motoryki, jak również kształtowaniu prawidłowej postawy i wzmocnieniu mięśni nóg. To świetny trening równowagi i umiejętności kontrolowania ruchów. Na osi w środkowej części platformy są umieszczone dwie gumowe kulki, które podczas ćwiczeń należy utrzymać w ruchu. • wym. 51,5 x 20 x 7,5 cm • śr. kulek 2 cm • maksymalne obciążenie 120 kg",null,false]
["Integrancja sensoryczna","522027","Dysk sensoryczny do balansowania",0,49.9,"Dysk do balansowania ciałem, do nauki utrzymania równowagi. Ma wypustki sensoryczne oraz zagłębienia umożliwiające utrzymanie się na dysku. Wykonany z bardzo trwałego tworzywa. • śr. 36 cm • grubość 4,5 cm • kolor niebiesko-czarny • maksymalne obciążenie 135 kg",null,false]
["Integrancja sensoryczna","552004","Wyceluj w puszkę - gra zręcznościowa",0,129.9,"Gra polegająca na zbiciu piłeczką jak największej liczby puszek. Łatwa do transportowania dzięki wygodnej torbie na ekspres, wykonanej z tworzywa sztucznego. • 10 puszek z pianki o wym. 8 x 9 cm • 6 piłeczek piankowych 6 cm",null,false]
["Integrancja sensoryczna","588013","Młotek z wypustkami do masażu",0,29.9,"Przyrząd do masażu z rączką, która ułatwia dotarcie do trudno dostępnych miejsc, np. pleców. Poręczny i łatwy w użyciu. Poprawia krążenie i rozluźnia mięśnie, łagodzi dolegliwości bólowe, działa odprężająco, znakomity także do masowania punktowego.\n• wym. końcowki 6 x 8 cm • dł. 29 cm",null,false]
["Integrancja sensoryczna","306195","Wiosła",0,129.9,"Służą do nauki i usprawnienia jazdy na deskorolce. Wykonane z trwałego tworzywa sztucznego i pianki EVA (uchwyty i końcówki). • dł. 69 cm • śr. 9 cm",null,false]
["Integrancja sensoryczna","601031","Mini top",0,169.9,"Mini top został opracowany, by doskonalić motorykę najmłodszych dzieci. Zachęca maluchy do skakania, huśtania się, obracania i uczy zachowania równowagi. Odpowiednie ukształtowanie dna zapewnia maluchowi bezpieczeństwo. Podczas obracania się Mini top stopniowo zwalnia i zapobiega przewracaniu się. Obrzeże zostało zaprojektowane w taki sposób, by palce oraz głowa nie były narażone na przygniecenie w trakcie zabawy. \n• śr. 68 cm • wys. 26,5 cm",null,false]
["Integrancja sensoryczna","601029","Aktywne ringo",0,49.9,"Zestaw aktywnych obręczy wykonanych z dobrej jakości tworzywa, które można rozciągać bez ryzyka odkształceń. Służy do zabaw wspomagających ruchowy rozwój dzieci: rzuty do celu, rzuty do siebie, żonglowanie, chodzenie na palcach po okręgach, taniec itp. • śr. 16,4 cm • 6 szt. • różne kolory",null,false]
["Integrancja sensoryczna","521048","Szarfa z rączką tęczowa",0,19.899999999999999,"Kolorowe szarfy z drewnianym uchwytem do zabaw taneczno-ruchowych. • dł. uchwytu 48 cm • dł. szarfy 170 cm • 1 szt.",null,false]
["Integrancja sensoryczna","610064","Tańczące szale L",0,4.9000000000000004,"Zwiewna i wytrzymała chusta. Ćwiczy zwinność, zręczność, refleks i spostrzegawczość. Doskonała do wykorzystania w czasie zabaw przy muzyce. Chusta może stanowić również element scenografii. • wym. 40 x 40 cm • 1 szt. • 100% nylonu • różne kolory, sprzedawane losowo",null,false]
["Integrancja sensoryczna","089022","Flipper logopedyczny",0,259.89999999999998,"Dzieci uwielbiają tory z przeszkodami, zarówno te, które czekają na nie w sali gimnastycznej, jak i te, które muszą pokonać podczas różnych gier. A Flipper magnetyczny to tor jedyny w swoim rodzaju. Po pierwsze, dzięki zastosowaniu magnesów, za każdym razem można go zaaranżować całkowicie inaczej. Po drugie, by go pokonać, trzeba wykazać się sprytem, zręcznością i co najważniejsze, siłą oddechu. Z Flipperem mały gracz nie tylko będzie się znakomicie bawił, ale też usprawni układ oddechowy oraz mięśnie ust, które są niezwykle ważne w procesie rozwoju mowy. Dodatkowo można wykorzystać go do gier (np. tworząc boisko i bramki) lub układać mozaiki. Magnesy są ukryte, dlatego poszczególne elementy można układać w dowolny sposób.\nDzięki Flipperowi dziecko:\n• usprawni układ oddechowy\n• udoskonali motorykę mięśni ust, które odpowiadają za rozwój mowy\n• wydłuży fazę wydechową i siłę oddechu\n• poprawi koncentrację i zdolność kontrolowania oddechu\nZabawka stanowi pomoc dydaktyczną, która sprawdzi się nie tylko w gabinecie logopedycznym, ale też w domu. Dzieci pokochają go za bajeczne kolory i magnetyczne elementy, a rodzice za to, że dba o rozwój mowy ich pociech.\n• tablica magnetyczna o wymiarach ok. 45,5 x 33,5 cm\n• 2 półkule służące jako nóżki do planszy\n• 21 drewnianych elementów magnetycznych w różnych kształtach i kolorach\n• kulka drewniana\n• kulka styropianowa\n• piłka do ping-ponga\n• 20 kolorowych słomek",null,false]
["Integrancja sensoryczna","354028","Zestaw sensorycznych piłeczek",0,139.9,"Zestaw piłek o różnej strukturze i powierzchni. Służą do ćwiczeń zmysłu dotyku, masażu rąk itp. • 20 piłek • śr. od 4 do 7,5 cm • worek na rzep z wytrzymałej tkaniny o wym.  32 x 40 cm",null,false]
["Integrancja sensoryczna","550033","Dmuchana piłka - balon",0,99.9,"Piłka składa się z balonu i trwałego pokrowca z nylonu. Jest bardzo lekka pomimo dużej średnicy, dzięki czemu dzieci mogą ją łatwo podrzucać. Zapasowy balon w komplecie. • śr. 75 cm",null,false]
["Integrancja sensoryczna","101420","Piankowy domek",0,1799.9,"Piankowa konstrukcja w kształcie domku tworzy wspaniały i bezpieczny plac zabaw dla najmłodszych. Elementy połączone na rzepy. • wym.104 x 100 x 130 cm • wym. materaca 123 x 123 cm • wym. drzwi 85 x 85 cm • wym. okna 30 x 38 cm",null,false]
["Integrancja sensoryczna","101394","Kostka kontrastowa biało-czarna",0,59.9,"Piankowe kostki ze wzorami w kontrastowych kolorach: czarnym, białym i czerwonym, z nadrukowanymi prostymi wzorami geometrycznymi (koło, kwadrat, krzyżyk, iks). Przyciągają uwagę dzieci i zachęcają do twórczej zabawy, silnie stymulują zmysł wzroku. Pokryte trwałą tkaniną PCV, łatwą do utrzymania w czystości. • dł. boku 15 cm\n• kostka w czarno-białe wzory geometryczne",null,false]
["Integrancja sensoryczna","354057","Świecące piłki z brokatem",0,119.9,"Piłki sensoryczne, które zafascynują najmłodszych migającymi kolorami i mieniącym się brokatem, który wiruje wewnątrz kulek, gdy odbija się je od podłogi lub potrząsa nimi.  Wewnątrz znajdują się diody LED z czujnikiem ruchu, co umożliwia aktywację światła i migotanie trwające 15 sekund (diody działają do 2700 cykli - w produkcie zastosowano fabryczne zasilanie bateryjne - nie ma możliwości wymiany baterii po ich zużyciu.). Zestaw 4 kul w kolorach: różowym, niebieskim, złotym i srebrnym. • śr. 10 cm",null,false]
["Integrancja sensoryczna","354058","Percepcyjne kule",0,269.89999999999998,"Transparentne, akrylowe kule w jasnych kolorach, miłe w dotyku. Dzieci mogą dzięki nim oglądać świat w różnych barwach. Patrząc przez pryzmat kuli dziecko zobaczy odwrócony obraz. W połączeniu tworzą nowe kolory. Można używać ich w komplecie z Podświetlanym stołem (356053, sprzedawany osobno). • 8 szt. • śr. 5 cm • od 0 miesięcy",null,false]
["Integrancja sensoryczna","517033","Klepsydra sensoryczna Jumbo",0,39.9,"Po odwróceniu klepsydry kolorowe, żelowe krople opadają na dno. • wym. 8 x 20 cm",null,false]
["Integrancja sensoryczna","101401","Fakturowe kwadraty - zestaw uzupełniający",0,149.9,"Kwadraty z różnymi wypełnieniami, z pokryciem z tkaniny bawełnianej, podszyte antypoślizgową gumą. Zabawy i ćwiczenia z kwadratami usprawniają motorykę i rozwijają zmysł dotyku. Kwadraty można dotykać, a także chodzić po nich. • wym. elem. 40 x 40 cm\n• 3 szt. • wypełnienia i pokrycia: piłeczki ping pongowe, skaden, trawa",null,false]
["Integrancja sensoryczna","517032","Sensoryczna klepsydra 1 szt.",0,15.9,"Przejrzysta klepsydra wykorzystująca przepływ oleistych substancji. Po odwróceniu klepsydry kolorowe krople spływają w dół pomiędzy kołeczkami. • wym. 7 x 3 x 14 cm",null,false]
["Integrancja sensoryczna","588011","Elastyczna piłka do treningu dłoni - średnica 50mm",0,14.9,"Żelowe piłka do ćwiczenia zręczności i funkcji motorycznych oraz terapii dłoni, polepsza jej funkcję chwytną, zawsze powraca do pierwotnego kształtu. Ma również właściwości antystresowe.\n• śr. 5 cm",null,false]
["Integrancja sensoryczna","588005","Elastyczny trójkąt do treningu dłoni - miękki",0,29.9,"Przyrząd do ćwiczenia zginaczy i prostowników dłoni i palców. Dostępny w 3 stopniach oporu.\nWyjątkowo prosty w obsłudze - ma otwory na każdy z palców,  obie jego strony nadają się do różnych rodzajów ćwiczeń: z jednej strony jest kulka do ściskania, a z drugiej wypustki umożliwiające ćwiczenie każdego z palców oraz kciuka osobno, by zwiększyć ich zakres ruchu i siłę. • dł. boku 12 cm\n• różowy, miękki",null,false]
["Integrancja sensoryczna","144500","Drabinka Lil'Monkey",0,689.9,"Drabinka Lil’Monkey to idealne rozwiązanie dla dzieci, które lubią ruch i rodziców, którym zależy na prawidłowym rozwoju i aktywności ruchowej swoich dzieci.\n\nKonstrukcja drabinki Lil’Monkey pozwala dzieciom na wspinaczkę, zawisanie czy huśtanie oraz może służyć jako namiot po jej przykryciu. Jeśli Twoje dziecko podobnie jak małpki wspina się na każdy możliwy element w domu lub w ogrodzie, drabinka Lil&apos;Monkey jest stworzona właśnie dla niego. Zapewniamy Cię, że będzie bawić się na niej godzinami poprawiając przy tym swoją koordynację ruchową i aktywnie ćwicząc. Twoje dziecko pokocha tą zabawkę!!! \nNajważniejszym celem konstruktorów drabinki Lil&apos;Monkey było stworzenie bezpiecznej i solidnej zabawki o optymalnej wielkości. Nie jest ani za duża ani za mała, dzięki czemu rodzice nie muszą obawiać się o bezpieczeństwo swoich dzieci. Belki i łączniki drabinki wykonane są z wytrzymałego tworzywa sztucznego, które jest bardziej elastyczne a co za tym idzie bezpieczniejsze niż elementy stalowe.\nDrabinka Lil&apos;Monkey jest bardzo stabilna i solidna o czym mogą zaświadczyć rodzice, którzy ją wcześniej testowali. Zabawka jest odporna na warunki atmosferyczne oraz łatwa do przemieszczania nawet po rozłożeniu do zabawy na podwórku.\nAplikacja, którą można pobrać bezpłatnie po wcześniejszym zakupie drabinki Lil&apos;Monkey dokładnie wykrywa lokalizację bawiącego się na niej dziecka. Kiedy dziecko bawi się na drabince, aplikacja przenosi je do wirtualnego świata zabawy. Aplikacja Lil&apos;Monkey zachęca dziecko do aktywności ruchowej, zdrowego odżywiania się, odkrywania skarbów i zbierania punktów. Grające dziecko zdobywa punkty za każde ukończone zadania w jak najkrótszym czasie.\nBy ułatwić składanie i rozkładanie drabinki warto posmarować wazeliną miejsca, w których elementy się łączą.\n• wym. 170 x 118 cm",null,false]
["Integrancja sensoryczna","517019","Kolorowa mini piłeczka z wypustkami",0,6.9,"Wykonana z twardej gumy. • śr. 4 cm",null,false]
["Multimedia","199300","System nauczania K-First",0,3999.9,"K-First jest interaktywnym środowiskiem nauczania, którego celem jest przekazanie uczniom wiedzy i umiejętności oraz ich poszerzenie za pomocą różnorodnych narzędzi technologicznych.\n\nSystem K-First obejmuje: bogate oprogramowanie edukacyjne, unikalną konsolę SenseBox wyposażoną w komplet sensorów i system rozpoznawania obiektów, zestaw akcesoriów oraz szczegółowe plany lekcji dla nauczyciela.\n\nSystem ten rozwija u uczniów zdolności rozumienia oraz nawyki uczenia się.\nDoskonali on również umiejętności myślenia i poznawania, kreatywność, a także zwiększa motywację do nauki.\n\nTematami lekcji są: Ja, Mój dom, Moje miasto, Ziemia, Natura oraz Przestrzeń kosmiczna.\n\nKażdy temat łączy naukę oraz doskonalenie umiejętności z takich dziedzin jak:\nmatematyka, nauki ścisłe, sztuka, muzyka, środowisko, recykling, bezpieczeństwo na drodze, umiejętności myślenia, rozwiązywanie problemów, rozumienie ze słuchu, pamięć, sortowanie, umiejętności komputerowe, kreatywność, praca zespołowa i inne.\n\nProgram nauczania:\nGłówne tematy:\n• Ja (Części mojego ciała, drzewo genealogiczne mojej rodziny, codzienne czynności.)\n• Mój dom (Figury geometryczne, higiena osobista, projektowanie pokoi w twoim domu.)\n• Moje miasto (Mapa miasta, znaczenie transportu, bezpieczeństwo na drodze, muzyka i animacja.)\n• Ziemia (Środowisko, recykling, fizyczna mapa świata, znane miejsca na Ziemi.)\n• Natura (Klasyfikacja zwierząt, cykl życia, pory roku.)\n• Przestrzeń kosmiczna (Nasz Układ Słoneczny.)\n• Matematyka (Poznanie liczb, podstawy matematyki, liczenie,\nsortowanie, liczebność)\n• Język angielski (Słownictwo podstawowe- liczby, kolory i inne)\n• Nauki ścisłe (Podstawowe doświadczenia z dźwiękiem, światłem i temperaturą)\n\nZdobyte umiejętności:\n• Udoskonalone umiejętności rozumienia ze słuchu\n• Liczenie, sortowanie\n• Koordynacja ręka-oko\n• Pamięć wzrokowa i słuchowa\n• Zachowanie grupowe\n• Kreatywność\n• Praca z obiektami 3D\n• Rozwiązywanie problemów\n• Praca zespołowa\n• Porządkowanie sekwencyjne\n• Czytanie i korzystanie z tabel\n• Słownictwo\n• Umiejętność pisania\n• Umiejętności komputerowe\n\nModuł K-First zawiera:\n• Oprogramowanie edukacyjne\n• Konsola interaktywna\n• Pojemnik z akcesoriami 3D (ze 180 kartami- nie jest to ilość ostateczna)\n• Podręcznik dla nauczyciela (32 lekcje)\n• Instrukcja obsługi K-first\n\nPrzy zakupie urządzenia na adres mailowy wysyłamy podręcznik K-First,który zawiera 32 propozycje prowadzenia lekcji/wersja PDF/.\n\nProgram jest dedykowany do pracy  z tablica multimedialną.",null,false]
["Multimedia","821001","Magiczny Dywan z pakietem FUN",0,9490,"Interaktywna pomoc dydaktyczna dedykowana do ćwiczeń, gier i zabaw ruchowych. Zabawa i nauka z jej wykorzystaniem rozwija u dzieci dużą motorykę, koordynację wzrokowo-ruchową, spostrzegawczość i szybkość reakcji. Interaktywny dywan to zintegrowany system czujników ruchu, który zawiera w sobie projektor, komputer oraz tablicę interaktywną. Jego funkcjonalność umożliwia szerokie spektrum zastosowania w każdym pomieszczeniu, na jasnym, jednolitym podłożu. Obraz wyświetlany ze specjalnie zaprojektowanego rzutnika tworzy „wirtualny, magiczny dywan”, na którym dzieci w wieku przedszkolnym i wczesnoszkolnym przeżywają wspaniałe przygody, począwszy od gier i zabaw ruchowych po edukację poznawczą ze wszystkich dziedzin wiedzy. Dziecko podczas zabawy ingeruje w jej tok za pomocą ruchów rękami lub nogami. Wymiary interaktywnego dywanu to ok. 2 x 3 m.  Zaletą tej jedynej na rynku pomocy jest wyjątkowa łatwość w obsłudze - nauczyciel steruje urządzeniem przy użyciu pilota /zasada działania jest taka sama, jak w przypadku pilota do TV/. Jest to możliwe, ponieważ urządzenie składa się z integralnych elementów.  \n\n1. Możliwość połączenia od internetu:\n- kablowego poprzez gniazdo RJ-45 umieszczone w tylnej płycie urządzenia\n- radiowego WiFi poprzez dongle WiFi wkładany do portu USB umieszczonego w tylnej płycie urządzenia (moduł WiFi w komplecie)\nDostęp do internetu pozwala m.in. na:\n- zdalne wykonywanie upgradów, w tym dogrywanie nowych gier (odpłatne abonamenty na nowe gry) \n- zdalne wykonanie prac konserwacyjnych i serwisowych\n- zdalne włączanie i wyłączanie urządzenia - funkcja ważna na placach zabaw \n- 3G ready\n2. Możliwość podłączenia zewnętrznych głośników:\nGniazdo AUDIO, umieszczone na tylnej płycie urządzenia pozwala na dołączenie zewnętrznego systemu nagłaśniającego.\n- głośność 20 W\n\nOpis gier:\n\n• GRA MIŚ SZUKA MIODU\nUczestnicy muszą odnaleźć jak największą ilość garnuszków z miodem, omijając fruwające pszczoły, które również mają ochotę na miód. Aby zaznaczyć garnuszek dziecko wskakuje na niego, tupie nogą, macha nad nim ręką lub głową. \n\n• GRA KAMYCZKI\nZadaniem dziecka jest skakanie po kamyczkach w kolejności pojawiających się cyferek od 9 do 1. Aby zaznaczyć kamyczek należy na niego wskoczyć, tupnąć nogą, machnąć nad nim ręką lub głową. \n\n• GRA PIANINO\nPianino umożliwia dziecku zagranie dowolnego dźwięku poprzez tupnięcie nogą lub uderzenie ręką w odpowiedni klawisz.  \n\n• GRA WODA \nZachęca dziecko do aktywności imitującej zachowania w wodzie. Dzieci mogą stąpać lub pływać w wodzie bez zamoczenia ubranka.\n\n• GRA PIŁKA NOŻNA\nPolega na strzeleniu gola przeciwnikowi. Dziecko porusza piłką poprzez wskoczenie na nią lub tupnięcie nogą. Wygrywa uczestnik, który strzeli najwięcej bramek.\n\n• GRA KWIATKI \nZadaniem dziecka jest zaznaczanie kwiatków, na których pojawiają się cyfry, w odpowiedniej kolejności od 1 do 9. Aby zaznaczyć kwiatek należy na niego wskoczyć, tupnąć nogą, machnąć nad nim ręką lub głową. Wygrywa dziecko, które pierwsze wskaże wszystkie kwiatki.\n\n• GRA LITERKI\nZadaniem dziecka jest zaznaczanie kwiatków, na których pojawiają się litery alfabetu, w odpowiedniej kolejności od A do Z. Aby zaznaczyć kwiatek należy na niego wskoczyć, tupnąć nogą, machnąć nad nim ręką lub głową. Wygrywa dziecko, które pierwsze wskaże wszystkie kwiatki.\n\n• GRA TROPICIELE ŚLADÓW\nDziecko tropi zwierzątka po ich śladach jakie zostawiają na planszy. Jeśli zadanie będzie wykonywane zbyt wolno, ślady znikają i grę należy rozpocząć od początku. Na końcu trasy wyznaczonej pojawiającymi się śladami pojawia się zwierzątko, które te ślady pozostawiło. Dzieci mogą więc zgadywać kogo tym razem tropią. Gra rozwija cierpliwość i dokładność.\n\n• GRA WESOŁE MINKI\nZadanie polega na znalezieniu smutnej minki i odczarowaniu jej na wesołą. \nAby odczarować smutną minkę na wesołą dziecko musi klepnąć ją ręką lub tupnąć na nią nogą.\n\n• GRA MINKOWA PLANSZA\nGra MINKOWA PLANSZA polega na wypełnieniu całej planszy wesołymi minkami. Zadaniem dziecka jest odszukiwanie smutnych minek i odczarowanie ich na wesołe.\nAby zamienić smutną minkę na wesołą należy klepnąć ją rączką lub tupnąć na nią nóżką. \nTrzeba się jednak spieszyć -  wesołe minki szybko się nudzą i uciekają. \n\n• GRA MINKOWE PUZZLE\nUczestnik zabawy szukając wesołych minek musi wypełnić nimi całą planszę, aby je zatrzymać na dłużej. Należy jednak unikać smutnych minek. Aby zatrzymać wesołą minkę należy klepnąć ją rączką lub tupnąć na nią nóżką. Trzeba się jednak spieszyć -  wesołe minki szybko się nudzą i uciekają. \n\n• GRA LIŚCIE\nZabawa pozwala dzieciom rozgarniać liście tak, jak to robią jesienią w parku. Należy jednak uważać, bo wiatr psotnik będzie się starał ponownie je nawiewać. Gra pozwala na zabawę i relaks większej liczby uczestników.\n\n• GRA PLANETY\nGra polega na odgadnięciu wyglądu planety. Na panelu sterującym statku kosmicznego pojawia się nazwa, a na ekranie 3 ilustracje planet. Aby wskazać właściwą, wystarczy na nią wskoczyć lub tupnąć nóżką. Odpowiedni dźwięk mówi nam czy odpowiedź była dobra czy zła, ale nie ma się czym przejmować, bo złe odpowiedzi można poprawić i bardzo dużo się nauczyć już przy pierwszej turze!\n\n• GRA ELF\nZabawa polega na zebraniu jak największej liczby prezentów w ciągu 4 minut. Aby pomóc ELFOWI złapać prezent, należy stanąć u dołu obrazu i tupnąć nóżką pod spadającą paczką. ELF przybiegnie i złapie go. W nagrodę dziecko może odkopać ze śniegu tajemniczy przycisk i nacisnąć go. Gra uczy refleksu i cierpliwości. \n\n• GRA SŁOŃ I CUKIER\nGra polega na zebraniu wszystkich kostek cukru. Aby zebrać kostkę cukru wystarczy tupnąć na nią nóżką lub machnąć nad nią rączką. Trzeba uważać na słonia, bo on też bardzo lubi cukier i chętnie go zjada. Gdy słoń zje kostkę cukru, robi sobie krótką drzemkę, wtedy mamy szansę odzyskać utracony cukier. Gra rozwija spryt i refleks.\n\n• GRA GRZYBOBRANIE \nUczestnik gry ma na celu zebranie pojawiających się na leśnej ścieżce grzybków. Aby zebrać brązowy grzybek wystarczy na niego tupnąć nóżką, jednocześnie uważając na jeże, które też mają na nie ochotę. Gdy dotkniemy jeża, ten zabiera nam zdobyty wcześniej grzybek. Należy także pamiętać, aby trzymać się wyznaczonej ścieżki i nie obudzić sowy! Gra rozwija spryt i refleks.\n\n• GRA DROGA PRZEZ LAS\n\n• GRA BANANOWA KRAINA\nGra polega na zerwaniu jak największej liczby kiści bananów zanim spadną one na ziemię. Aby pomóc małpce zerwać banany uczestnik staje na dole obrazu i tupie nóżką w odpowiednią lianę. Małpka wskoczy na nią i zerwie banany. Trzeba się spieszyć, bo banany spadają coraz szybciej! Gra uczy dokładności i refleksu.\n\n• GRA PĘKAJĄCE BALONIKI\nZabawa polega na przebijaniu latających baloników. Aby przebić balonik można go klepnąć rączką lub tupnąć nóżką. Gra pozwala wykorzystać nadmiar posiadanej przez dzieci energii przed kolejnym zadaniem lub działaniem wymagającym większego skupienia.\n\n• GRA SUPER TENIS\nUczestnicy gry mają szansę serwować i odbijać wirtualną piłką do tenisa. Aby zaserwować należy machnąć nóżką nad piłką serwisową. Aby odbić piłkę przesuwamy rakietę nogą w odpowiednie miejsce. Gra przeznaczona dla 2 graczy. \n\n• FOKA I RYBKI \nZabawa polega na złowieniu jak największej liczby płynących rybek. Aby pomóc foce złowić rybkę, należy stanąć z boku ekranu i tupnąć nóżką na wprost płynącej rybki. Foka przesunie się i połknie ją. Trzeba się spieszyć,\nbo rybki płyną coraz szybciej. \n\n• SPRYTNY DINO\nGra polega na zebraniu jak największej ilości jajek zanim spadną na ziemię i się rozbiją. Aby pomóc Dinowi złapać jajko, należy stanąć u dołu obrazu i tupnąć nóżką pod spadającym jajkiem. Dino przybiegnie i je pochwyci. Trzeba się spieszyć, bo jajka spadają coraz szybciej. \n\n• ARCHEOLOGIA \nZabawa polega na wyszukiwaniu skarbów w piasku. Można do niej użyć szczotki na długim kiju lub zwykłej zmiotki by za jej pomocą usunąć piasek z planszy. Jak wszystko zostanie dokładnie zamiecione ukażą się różne przedmioty z danej epoki. Gra wymaga cierpliwości i dokładności.\n\n• SKOK W DAL\nZabawa polega na oddaniu jak najdłuższego skoku. Należy stanąć na polu START, poczekać na sygnał i skoczyć tak daleko jak się tylko potrafi. \nPo serii pięciu skoków pojawią się ich wyniki każdy zaznaczony innym kolorem. Długość skoków dzieci mogą też mierzyć same za pomocą kroków lub miarki.\n\n• GRA WIKINGOWIE Zadaniem dziecka jest podążanie szlakiem statku Wikingów i najszybsze zebranie wszystkich skarbów, które się pojawiają na jego drodze. Jeśli zadanie będzie wykonywane zbyt wolno, skarby znikają i grę należy rozpocząć od nowa. \n• GRA WYRAŹ SIEBIE Najważniejsza zasadą tej gry jest… brak zasad - ogranicza nas tylko nasza własna wyobraźnia i pomysły. A zatem użyj swojej wyobraźni i narysuj to, o czym pomyślisz używając rąk i nóg. Do wyboru są 3 kolory, które mieszając się ze sobą tworzą nieograniczoną paletę barw.\n• GRA KRĘGLE Zabawa w kręgle to emocjonująca gra, w której liczy się celność i uczciwa rywalizacja. Podobnie jak w prawdziwej grze, uczestnicy zbijają kręgle i zdobywają punkty. W wersji na podłogę interaktywną jako kulę można wykorzystać rekwizyt w postaci piłki lub innego dowolnego kulistego przedmiotu. Zmniejszając kulę, podnosimy poziom trudności.\n• GRA MISTRZ KIEROWNICY  Poruszanie się autem po drogach miast jest przygodą, w której liczy się czujność i szybkość reakcji. Manewrując autem uczestnik gry wymija ciężarówki i inne obiekty, które znalazły się na drodze. Cel jest prosty - bezpiecznie przejechać zaplanowaną trasę w odpowiednim czasie, bawiąc się przy tym i spędzając radośnie czas.\n• GRA RAKIETY Zadaniem dziecka jest przejęcie jak największej liczby rakiet, które zdążają w kierunku planety. Wystarczy wskoczyć na nie lub machać nad nimi rączka, aby przerwać ich lot. Zabawa jest dostępna w trzech trybach - łatwy, trudny i średni.\nW komplecie zestaw 29 gier i zabaw interaktywnych.",null,false]
["Multimedia",199125,"Bambikowe Logoprzygody",0,1999.9,"„Bambikowe Logoprzygody” to nowy program multimedialny przygotowany z myślą o dzieciach w wieku przedszkolnym i wczesnoszkolnym. Może być wykorzystywany podczas terapii prowadzonej przez logopedę lub pedagoga w gabinecie oraz w domu przez rodziców w celu stymulowania rozwoju mowy i języka dziecka.\nCałość składa się z sześciu części. Każda z nich zawiera  zestaw ćwiczeń rozwijający konkretną umiejętność. Z Bambikowymi Logoprzygodami możemy pracować nad:\n• usprawnianiem praksji oralnej wykonując ćwiczenia  artykulacyjne przygotowane w formie 20 mini filmików. Każdy z nich przedstawia dziecko wykonujące wybrane ćwiczenie usprawniające pracę języka i/lub warg. Długość czasu trwania ćwiczenia/filmiku możemy dostosować do możliwości dziecka. Na filmikach niektóre dzieci radzą sobie z zadaniami lepiej inne gorzej, ale razem z nimi łatwiej będzie dziecku przed monitorem wykonywać wielokrotne ruchy języka, warg i dotrwać do końca wybranego czasu, który odmierza zegar znajdujący się obok ekranu;\n• poprawą spostrzegania i przetwarzania słuchowego dzięki   ćwiczeniom słuchowym takim jak: \n„Różnicowanie dźwięków niewerbalnych”, np.: cicho - głośno, wysoko - nisko, szybko - wolno;\n„Co słyszysz po kolei - pamięć słuchowa wyrazów”, gdzie dziecko ma możliwość wyboru liczby słów do zapamiętania od 2 do 6. Dzieci najpierw słuchają słów, a następnie układają odpowiadające im obrazki w takiej samej kolejności. Obrazków jest o jeden więcej niż wypowiedzianych słów, więc nie jest to takie proste;\n„Słyszę i rozumiem”, czyli rozpoznawanie słów w szumie to forma treningu słuchowego, gdzie dziecko najpierw dokonuje wyboru liczby słów od 2 do 4, a następnie po usłyszeniu słowa w szumie ma wybrać odpowiadający mu obrazek spośród znajdujących się na ekranie;\n„Co słychać w wyrazie” to również zabawa z możliwością wyboru rodzaju ćwiczenia tj. określania nagłosu lub wygłosu wyrazu oraz skoncentrowania się w ramach wybranej grupy na pracy z samogłoskami lub spółgłoskami;\n„Różnicowanie dźwięków mowy”, gdzie możemy wybrać jedną z dwóch grup ćwiczeń i pracować na sylabach lub wyrazach, po usłyszeniu których dziecko ma rozpoznawać, która z prezentowanych u dołu ekranu liter odpowiada głosce występującej w usłyszanej sylabie lub usłyszanym słowie. W ramach każdej z tych grup możemy z dzieckiem pracować z dźwiękami różniącymi się dźwięcznością - bezdźwięcznością (&quot;w&quot;-&quot;f&quot;) oraz zestawami typu  &quot;sz&quot; - &quot;s&quot; - &quot;ś&quot; itp. \n„Rytmy” to 3 rodzaje ćwiczeń. Dziecko może nauczyć się tu rozpoznawać rytm i wskazywać pasujący do niego układ graficzny, określać, czy dwa rytmy są takie same czy różne lub po wysłuchaniu rytmu spróbować samodzielnie ułożyć go na ekranie;\n„Rymy” to również zestaw 3 grup zadań. Dzieci ćwiczą tu odnajdywanie par słów, które rymują się, szukają rymu do zaprezentowanego słowa, uzupełniają zdania wyrazami, tak aby powstała rymowanka;\n• wymową w oparciu o grupę ćwiczeń mających na celu wspieranie dziecka w pracy nad poprawą artykulacji. Każda z proponowanych głosek może być utrwalana w izolacji, na poziomie sylaby, wyrazu (w nagłosie, śródgłosie i wygłosie), w zwrotach dwuwyrazowych. Zabawy z głoskami polegają na powtarzaniu, samodzielnym wybrzmiewaniu i nazywaniu obrazków. Na poziomie zdania pracujemy z dziećmi nad różnicowaniem głosek typu „sz&quot; - &quot;s”. Mamy tu również możliwość autokorekty, czyli wysłuchania i oceny poprawności własnych wypowiedzi przez dziecko. \nNieco bardziej rozbudowana jest część ćwiczeń dotycząca  głoski „r”. Zawiera ona ćwiczenia wstępne do tej głoski, wyrazy w których głoska &quot;r&quot; występuje po określonych głoskach &quot;t&quot;, &quot;d&quot;, &quot;p&quot;, &quot;b&quot;, &quot;k&quot;, &quot;g&quot;; wyrazy z głoską  „r” między samogłoskami oraz głoskę „r” w zwrotach dwuwyrazowych i zdaniach;\n• wzbogacaniem słownictwa dzięki poznaniu przeciwieństw, czyli przymiotników określających przeciwstawne cechy desygnatów oraz określaniu cech rzeczowników. Dzieci poznają tu też treść przysłów i nauczą się ich znaczeń;\n• rozwijaniem kompetencji językowych wykonując zadania dające dzieciom możliwość wyszukiwania i poprawiania błędów logicznych i gramatycznych w zdaniach; opisywania ilustracji oraz uzupełniania tekstów opowiadań wyrazami w odpowiedniej formie gramatycznej;\nOstatnia z części &quot;Warto tu zajrzeć&quot; zawiera podstawowe informacje o warunkach prawidłowego rozwoju mowy, najczęstszych wadach artykulacyjnych oraz dyplomy do wydrukowania.\nProgram posiada bardzo ciekawą i kolorową szatę graficzną. Jest bardzo prosty w obsłudze. Materiał językowy wykorzystany w większości ćwiczeń podawany jest w formie losowej, więc dziecko ma możliwość wielokrotnego powtarzania zadania i nie uczy się odpowiedzi na pamięć. Zaletą Bambikowych Logoprzygód jest również fakt, że zawarte w nim ćwiczenia są dostosowane do dzieci, które jeszcze nie czytają - po najechaniu kursorem na tekst czyta go lektor lub materiał językowy podany jest w formie graficznej. Część tekstu podzielona jest kolorami na sylaby, co stanowi duże ułatwienie dla dzieci, które umiejętności czytania jeszcze dobrze nie opanowały.\nW programie zastosowano również jednolity dla wszystkich zadań system motywacyjny. Odpowiednie sygnały dźwiękowe informują dziecko o poprawności wykonania zadania, czasami na ekranie pojawia się Smok Bambik lub inna NIESPODZIANKA, często słychać słowną pochwałę lub w przypadku kilku nieprawidłowych odpowiedzi motywator np. Następnym razem na pewno się uda!\n• Pendrive z programem - licencja jednostanowiskowa\n• słuchawki dwukanałowe\n• 70 naklejek \n• książeczka postępów dziecka\nWymagania systemowe:\n1. Windows XP 32/64-bit + Service Pack 3 + DirectX 9.0c\nprocesor min. Core Duo 1.2GHz, RAM 512MB, Video RAM 512MB, karta dźwiękowa\n2. Windows Vista/7/8 64-bit + DirectX 9.0c\nprocesor min. Core Duo 1.2GHz, RAM 2GB, Video RAM 1GB, karta dźwiękowa\n3. Mac OS X 10.7 64-bit\nprocesor min. Core Duo 1.2GHz, RAM 1GB, Video RAM 512MB, karta dźwiękowa\n4. Linux Ubuntu 14.04 z bibliotekami: SDL2, Swscale 2, AVformat 54, \nAVcodec 54, AVutil 52\nprocesor min. Core Duo 1.2GHz, RAM 512MB, Video RAM 512MB, karta dźwiękowa",null,false]
["Multimedia",148001,"Matematyka bez reszty cz. 1, kl. I",0,799.9,"Produkty multimedialne nowej generacji dostosowane do infrastruktury IT szkół i potrzeb nauczyciela. \nCzy matematyka występuje w zwykłych przedmiotach i znanych Ci miejscach? Na ulicy, lotnisku, czy w sklepie? Dzięki nowej serii produktów multimedialnych „Matematyka bez reszty”, z których można skorzystać w klasie i w domu, na tablicy interaktywnej, czy tablecie, odkrywamy fascynujący świat liczb, figur, miar i wag oraz muzyki.\n„Matematyka bez reszty” to trzyczęściowy multimedialny produkt edukacyjny dla szkół podstawowych, przeznaczony do nauki przedmiotów matematyczno-przyrodniczych w edukacji wczesnoszkolnej. Zawiera pakiet ćwiczeń, interakcji, zabaw, gier oraz filmy interaktywne do szybkiego i efektywnego wykorzystania podczas zajęć szkolnych. \nProgram obejmuje trzy części, odpowiadające zakresem tematycznym klasom 1-3 - całość jest dostosowana do podstawy programowej i umożliwia pracę z uczniami ze specjalnymi potrzebami edukacyjnymi.\nGrafiki i interakcje przedstawiają rzeczywiste obrazy - do minimum ograniczone są nierealistyczne animacje. Polecenia zadań są tekstowe i dźwiękowe. Ponadto nauczyciel swobodnie może zmienić język - tak, aby przejść przez dane zadanie po angielsku i powrócić do wersji polskiej. \nCałość zaprojektowana jest w taki sposób, aby wszystkie elementy aktywne były w zasięgu ręki dziecka - co jest szczególnie ważne w pracy przy tablicy interaktywnej. Nauczyciel ma wiele możliwości pracy z programem. Inspiracje może znaleźć w dołączonych do produktów przewodnikach i scenariuszach zabaw i zajęć. Każda z części zawiera: \nPierwsza część programu „Matematyka bez reszty” zawiera 1 500 zadań do trzech Przygód Tematycznych -  Podróże, Zakupy, Pasje -  wprowadzających zagadnienia związane z matematyką.\n\nZakresy programowy części I:\n",null,false]
["Multimedia",148002,"Matematyka bez reszty cz. 2, kl. II",0,799.9,null,null,false]
["Multimedia",148003,"Matematyka bez reszty cz. 3, kl. III",0,799.9,null,null,false]
["Multimedia",148004,"Matematyka bez reszty pakiet 3 części, klasy I-III",0,1999.9,null,null,false]
["Multimedia",148005,"Metoda projektu w edukacji wczesnoszkolnej cz. 1, kl. I",0,699.9,"Każda z części „Metody Projektu w Edukacji Wczesnoszkolnej” zawiera 4 projekty tematyczne przeznaczone dla klasy 1 szkoły podstawowej. W jej skład wchodzą: \n\nPierwsza część Metody Projektu zapoznaje uczniów z tematyką związaną z ich najbliższym otoczeniem. Uczniowie poznają świat jedzenia i witamin. Dzięki filmom i interakcjom zawartym w planszach interaktywnych zdobędą wiedzę na temat wpływu zdrowego odżywiania na ich organizm. Drugim ważnym tematem poruszanym w pierwszej części Metody Projektu jest rodzina. Co łączy członków rodziny poza więzami krwi? Uczniowie zdobędą te i inne odpowiedzi na nurtujące pytania. \nKolejnym tematem przewodnim Metody Projektu jest moda. W co się ubierać, jak zmieniała się moda na przestrzeni dziesięcioleci? Uczniowie nie tylko zgłębią to interesujące zagadnienie, ale również przećwiczą język angielski i słówka w zakresie mody. Ostatni, czwarty temat pierwszej części Metody Projektu to teatr. Kim są aktorzy, co robią i jak przygotowują się do roli? Jak zachować się w teatrze? Plansze interaktywne, a w nich ciekawe wywiady z aktorami i interakcje oraz karty pracy przybliżą uczniom magiczny świat sceny teatralnej.",null,false]
["Multimedia",148006,"Metoda projektu w edukacji wczesnoszkolnej cz. 2, kl. II",0,699.9,"Każda z części „Metody Projektu w Edukacji Wczesnoszkolnej” zawiera 4 projekty tematyczne przeznaczone dla klasy 1 szkoły podstawowej. W jej skład wchodzą: \n\nW części drugiej Metody Projektu uczniowie kontynuują interaktywną podróż przez wybrane obszary tematyczne. Udamy się do świata lasu i zwierząt leśnych. Uczniowie dowiedzą się więcej o funkcji lasu i dzięki interakcjom oraz kartom pracy nauczą się, jak poprawnie zachowywać się w domu zwierząt i roślin. Kolejne tematy recykling i żywioły - skupiają uwagę dziecka na świecie zewnętrznym. Celem jest nie tylko inspirowanie i zachęcanie do poznawania świata poprzez filmy i interakcje, ale także budowanie poczucia odpowiedzialności u dzieci za własne otoczenie. Czwartym tematem tej części jest uczenie się. Potencjał ludzkiego mózgu jest gigantyczny i tylko od nas samych zależy, jak bardzo wytrenujemy szare komórki - tych i wielu innych ciekawostek uczniowie dowiedzą się dzięki filmom i ćwiczeniom zawartym w programie multimedialnym. Uczniowie opanują też słówka tematyczne w języku angielskim oraz ich wymowę.",null,false]
["Multimedia",148007,"Metoda projektu w edukacji wczesnoszkolnej cz. 3, kl. III",0,699.9,"Każda z części „Metody Projektu w Edukacji Wczesnoszkolnej” zawiera 4 projekty tematyczne przeznaczone dla klasy 1 szkoły podstawowej. W jej skład wchodzą: \n\nTrzecia część Metody Projektu jest kontynuacją podróży poprzez kolejne intrygujące 4 obszary tematyczne. Tym razem uczniowie poznają inspirujący świat iluzji. W filmach przedstawimy, czym są złudzenia optyczne i na czym polega zawód iluzjonisty. Geografia to kolejny interesujący zakres tematyczny. Uczniowie dowiedzą się, jakimi językami posługują się ludzie na świecie, a także jakie mają zwyczaje. Filmy, interakcje i ćwiczenia w kartach pracy pomogą zrozumieć odmienność kulturową i zainspirują do podróżowania po Polsce, całym świecie aż … do gwiazd - bowiem kosmos to kolejny temat w naszym programie multimedialnym. Uczniowie poznają dokonania Mikołaja Kopernika i wkład w naukę polskiego astronoma. Ćwiczenia i interakcje pozwolą na utrwalenie i usystematyzowanie wiedzy. Ostatnim tematem programu multimedialnego Metoda Projektu jest transport. Uczniowie dowiedzą się, czym charakteryzują się różne środki transportu i jak brzmią po angielsku. Zdobytą wiedzę utrwalą dzięki interakcjom w programie multimedialnym i kartom pracy.",null,false]
["Multimedia",148008,"Metoda projektu w edukacji wczesnoszkolnej pakiet 3 części, klasy I-III",0,1799.9,"Każda z części „Metody Projektu w Edukacji Wczesnoszkolnej” zawiera 4 projekty tematyczne przeznaczone dla klasy 1 szkoły podstawowej. W jej skład wchodzą: \n\nPakiet obejmujący wszystkie trzy części Metody Projektu.",null,false]

{"sheet":"wybrane produkty - podsumowanie","index":1,"n_rows":282,"n_cols":7,"rows_kept":282,"cut":false,"hidden":false,"merged":[[1,0,1,4],[281,0,281,1],[281,2,281,4],[0,0,0,5]]}
[{"$f":"'lista do wyboru'!A2","v":"Dane placówki:\n"}]
["Wybrane produkty",null,null,null,null,"Wartość całkowita \nwybranych produktów:"]
["Kod","Nazwa","Ilość","Cena\nbrutto","Wartość\nbrutto",{"$f":"SUM(E4:E328)","v":0}]
[{"$f":"IF($G4=\"\",\"--\",INDEX('lista do wyboru'!$B$3:$E$136,$G4,1))","v":"--"},{"$f":"IF($G4=\"\",\"--\",INDEX('lista do wyboru'!$B$3:$E$136,$G4,2))","v":"--"},{"$f":"IF($G4=\"\",\"--\",INDEX('lista do wyboru'!$B$3:$E$136,$G4,3))","v":"--"},{"$f":"IF($G4=\"\",\"--\",INDEX('lista do wyboru'!$B$3:$E$136,$G4,4))","v":"--"},{"$f":"IF(C4 = \"--\",0,D4*C4)","v":0},null,{"$f":"IF(FALSE = ISERROR(MATCH(TRUE,OFFSET('lista do wyboru'!$H$3:$H$136,G3,0),0)),G3+MATCH(TRUE,OFFSET('lista do wyboru'!$H$3:$H$136,G3,0),0),\"\")","v":""}]
[{"$f":"IF($G5=\"\",\"--\",INDEX('lista do wyboru'!$B$3:$E$136,$G5,1))","v":"--"},{"$f":"IF($G5=\"\",\"--\",INDEX('lista do wyboru'!$B$3:$E$136,$G5,2))","v":"--"},{"$f":"IF($G5=\"\",\"--\",INDEX('lista do wyboru'!$B$3:$E$136,$G5,3))","v":"--"},{"$f":"IF($G5=\"\",\"--\",INDEX('lista do wyboru'!$B$3:$E$136,$G5,4))","v":"--"},{"$f":"IF(C5 = \"--\",0,D5*C5)","v":0},null,{"$f":"IF(FALSE = ISERROR(MATCH(TRUE,OFFSET('lista do wyboru'!$H$3:$H$136,G4,0),0)),G4+MATCH(TRUE,OFFSET('lista do wyboru'!$H$3:$H$136,G4,0),0),\"\")","v":""}]
[{"$f":"IF($G6=\"\",\"--\",INDEX('lista do wyboru'!$B$3:$E$136,$G6,1))","v":"--"},{"$f":"IF($G6=\"\",\"--\",INDEX('lista do wyboru'!$B$3:$E$136,$G6,2))","v":"--"},{"$f":"IF($G6=\"\",\"--\",INDEX('lista do wyboru'!$B$3:$E$136,$G6,3))","v":"--"},{"$f":"IF($G6=\"\",\"--\",INDEX('lista do wyboru'!$B$3:$E$136,$G6,4))","v":"--"},0,null,{"$f":"IF(FALSE = ISERROR(MATCH(TRUE,OFFSET('lista do wyboru'!$H$3:$H$136,G5,0),0)),G5+MATCH(TRUE,OFFSET('lista do wyboru'!$H$3:$H$136,G5,0),0),\"\")","v":""}]
[{"$f":"IF($G7=\"\",\"--\",INDEX('lista do wyboru'!$B$3:$E$136,$G7,1))","v":"--"},{"$f":"IF($G7=\"\",\"--\",INDEX('lista do wyboru'!$B$3:$E$136,$G7,2))","v":"--"},{"$f":"IF($G7=\"\",\"--\",INDEX('lista do wyboru'!$B$3:$E$136,$G7,3))","v":"--"},{"$f":"IF($G7=\"\",\"--\",INDEX('lista do wyboru'!$B$3:$E$136,$G7,4))","v":"--"},0,null,{"$f":"IF(FALSE = ISERROR(MATCH(TRUE,OFFSET('lista do wyboru'!$H$3:$H$136,G6,0),0)),G6+MATCH(TRUE,OFFSET('lista do wyboru'!$H$3:$H$136,G6,0),0),\"\")","v":""}]
[{"$f":"IF($G8=\"\",\"--\",INDEX('lista do wyboru'!$B$3:$E$136,$G8,1))","v":"--"},{"$f":"IF($G8=\"\",\"--\",INDEX('lista do wyboru'!$B$3:$E$136,$G8,2))","v":"--"},{"$f":"IF($G8=\"\",\"--\",INDEX('lista do wyboru'!$B$3:$E$136,$G8,3))","v":"--"},{"$f":"IF($G8=\"\",\"--\",INDEX('lista do wyboru'!$B$3:$E$136,$G8,4))","v":"--"},0,null,{"$f":"IF(FALSE = ISERROR(MATCH(TRUE,OFFSET('lista do wyboru'!$H$3:$H$136,G7,0),0)),G7+MATCH(TRUE,OFFSET('lista do wyboru'!$H$3:$H$136,G7,0),0),\"\")","v":""}]
[{"$f":"IF($G9=\"\",\"--\",INDEX('lista do wyboru'!$B$3:$E$136,$G9,1))","v":"--"},{"$f":"IF($G9=\"\",\"--\",INDEX('lista do wyboru'!$B$3:$E$136,$G9,2))","v":"--"},{"$f":"IF($G9=\"\",\"--\",INDEX('lista do wyboru'!$B$3:$E$136,$G9,3))","v":"--"},{"$f":"IF($G9=\"\",\"--\",INDEX('lista do wyboru'!$B$3:$E$136,$G9,4))","v":"--"},0,null,{"$f":"IF(FALSE = ISERROR(MATCH(TRUE,OFFSET('lista do wyboru'!$H$3:$H$136,G8,0),0)),G8+MATCH(TRUE,OFFSET('lista do wyboru'!$H$3:$H$136,G8,0),0),\"\")","v":""}]
[{"$f":"IF($G10=\"\",\"--\",INDEX('lista do wyboru'!$B$3:$E$136,$G10,1))","v":"--"},{"$f":"IF($G10=\"\",\"--\",INDEX('lista do wyboru'!$B$3:$E$136,$G10,2))","v":"--"},{"$f":"IF($G10=\"\",\"--\",INDEX('lista do wyboru'!$B$3:$E$136,$G10,3))","v":"--"},{"$f":"IF($G10=\"\",\"--\",INDEX('lista do wyboru'!$B$3:$E$136,$G10,4))","v":"--"},0,null,{"$f":"IF(FALSE = ISERROR(MATCH(TRUE,OFFSET('lista do wyboru'!$H$3:$H$136,G9,0),0)),G9+MATCH(TRUE,OFFSET('lista do wyboru'!$H$3:$H$136,G9,0),0),\"\")","v":""}]
[{"$f":"IF($G11=\"\",\"--\",INDEX('lista do wyboru'!$B$3:$E$136,$G11,1))","v":"--"},{"$f":"IF($G11=\"\",\"--\",INDEX('lista do wyboru'!$B$3:$E$136,$G11,2))","v":"--"},{"$f":"IF($G11=\"\",\"--\",INDEX('lista do wyboru'!$B$3:$E$136,$G11,3))","v":"--"},{"$f":"IF($G11=\"\",\"--\",INDEX('lista do wyboru'!$B$3:$E$136,$G11,4))","v":"--"},0,null,{"$f":"IF(FALSE = ISERROR(MATCH(TRUE,OFFSET('lista do wyboru'!$H$3:$H$136,G10,0),0)),G10+MATCH(TRUE,OFFSET('lista do wyboru'!$H$3:$H$136,G10,0),0),\"\")","v":""}]
[{"$f":"IF($G12=\"\",\"--\",INDEX('lista do wyboru'!$B$3:$E$136,$G12,1))","v":"--"},{"$f":"IF($G12=\"\",\"--\",INDEX('lista do wyboru'!$B$3:$E$136,$G12,2))","v":"--"},{"$f":"IF($G12=\"\",\"--\",INDEX('lista do wyboru'!$B$3:$E$136,$G12,3))","v":"--"},{"$f":"IF($G12=\"\",\"--\",INDEX('lista do wyboru'!$B$3:$E$136,$G12,4))","v":"--"},0,null,{"$f":"IF(FALSE = ISERROR(MATCH(TRUE,OFFSET('lista do wyboru'!$H$3:$H$136,G11,0),0)),G11+MATCH(TRUE,OFFSET('lista do wyboru'!$H$3:$H$136,G11,0),0),\"\")","v":""}]
[{"$f":"IF($G13=\"\",\"--\",INDEX('lista do wyboru'!$B$3:$E$136,$G13,1))","v":"--"},{"$f":"IF($G13=\"\",\"--\",INDEX('lista do wyboru'!$B$3:$E$136,$G13,2))","v":"--"},{"$f":"IF($G13=\"\",\"--\",INDEX('lista do wyboru'!$B$3:$E$136,$G13,3))","v":"--"},{"$f":"IF($G13=\"\",\"--\",INDEX('lista do wyboru'!$B$3:$E$136,$G13,4))","v":"--"},0,null,{"$f":"IF(FALSE = ISERROR(MATCH(TRUE,OFFSET('lista do wyboru'!$H$3:$H$136,G12,0),0)),G12+MATCH(TRUE,OFFSET('lista do wyboru'!$H$3:$H$136,G12,0),0),\"\")","v":""}]
[{"$f":"IF($G14=\"\",\"--\",INDEX('lista do wyboru'!$B$3:$E$136,$G14,1))","v":"--"},{"$f":"IF($G14=\"\",\"--\",INDEX('lista do wyboru'!$B$3:$E$136,$G14,2))","v":"--"},{"$f":"IF($G14=\"\",\"--\",INDEX('lista do wyboru'!$B$3:$E$136,$G14,3))","v":"--"},{"$f":"IF($G14=\"\",\"--\",INDEX('lista do wyboru'!$B$3:$E$136,$G14,4))","v":"--"},0,null,{"$f":"IF(FALSE = ISERROR(MATCH(TRUE,OFFSET('lista do wyboru'!$H$3:$H$136,G13,0),0)),G13+MATCH(TRUE,OFFSET('lista do wyboru'!$H$3:$H$136,G13,0),0),\"\")","v":""}]
[{"$f":"IF($G15=\"\",\"--\",INDEX('lista do wyboru'!$B$3:$E$136,$G15,1))","v":"--"},{"$f":"IF($G15=\"\",\"--\",INDEX('lista do wyboru'!$B$3:$E$136,$G15,2))","v":"--"},{"$f":"IF($G15=\"\",\"--\",INDEX('lista do wyboru'!$B$3:$E$136,$G15,3))","v":"--"},{"$f":"IF($G15=\"\",\"--\",INDEX('lista do wyboru'!$B$3:$E$136,$G15,4))","v":"--"},0,null,{"$f":"IF(FALSE = ISERROR(MATCH(TRUE,OFFSET('lista do wyboru'!$H$3:$H$136,G14,0),0)),G14+MATCH(TRUE,OFFSET('lista do wyboru'!$H$3:$H$136,G14,0),0),\"\")","v":""}]
[{"$f":"IF($G16=\"\",\"--\",INDEX('lista do wyboru'!$B$3:$E$136,$G16,1))","v":"--"},{"$f":"IF($G16=\"\",\"--\",INDEX('lista do wyboru'!$B$3:$E$136,$G16,2))","v":"--"},{"$f":"IF($G16=\"\",\"--\",INDEX('lista do wyboru'!$B$3:$E$136,$G16,3))","v":"--"},{"$f":"IF($G16=\"\",\"--\",INDEX('lista do wyboru'!$B$3:$E$136,$G16,4))","v":"--"},0,null,{"$f":"IF(FALSE = ISERROR(MATCH(TRUE,OFFSET('lista do wyboru'!$H$3:$H$136,G15,0),0)),G15+MATCH(TRUE,OFFSET('lista do wyboru'!$H$3:$H$136,G15,0),0),\"\")","v":""}]
[{"$f":"IF($G17=\"\",\"--\",INDEX('lista do wyboru'!$B$3:$E$136,$G17,1))","v":"--"},{"$f":"IF($G17=\"\",\"--\",INDEX('lista do wyboru'!$B$3:$E$136,$G17,2))","v":"--"},{"$f":"IF($G17=\"\",\"--\",INDEX('lista do wyboru'!$B$3:$E$136,$G17,3))","v":"--"},{"$f":"IF($G17=\"\",\"--\",INDEX('lista do wyboru'!$B$3:$E$136,$G17,4))","v":"--"},0,null,{"$f":"IF(FALSE = ISERROR(MATCH(TRUE,OFFSET('lista do wyboru'!$H$3:$H$136,G16,0),0)),G16+MATCH(TRUE,OFFSET('lista do wyboru'!$H$3:$H$136,G16,0),0),\"\")","v":""}]
[{"$f":"IF($G18=\"\",\"--\",INDEX('lista do wyboru'!$B$3:$E$136,$G18,1))","v":"--"},{"$f":"IF($G18=\"\",\"--\",INDEX('lista do wyboru'!$B$3:$E$136,$G18,2))","v":"--"},{"$f":"IF($G18=\"\",\"--\",INDEX('lista do wyboru'!$B$3:$E$136,$G18,3))","v":"--"},{"$f":"IF($G18=\"\",\"--\",INDEX('lista do wyboru'!$B$3:$E$136,$G18,4))","v":"--"},0,null,{"$f":"IF(FALSE = ISERROR(MATCH(TRUE,OFFSET('lista do wyboru'!$H$3:$H$136,G17,0),0)),G17+MATCH(TRUE,OFFSET('lista do wyboru'!$H$3:$H$136,G17,0),0),\"\")","v":""}]
[{"$f":"IF($G19=\"\",\"--\",INDEX('lista do wyboru'!$B$3:$E$136,$G19,1))","v":"--"},{"$f":"IF($G19=\"\",\"--\",INDEX('lista do wyboru'!$B$3:$E$136,$G19,2))","v":"--"},{"$f":"IF($G19=\"\",\"--\",INDEX('lista do wyboru'!$B$3:$E$136,$G19,3))","v":"--"},{"$f":"IF($G19=\"\",\"--\",INDEX('lista do wyboru'!$B$3:$E$136,$G19,4))","v":"--"},0,null,{"$f":"IF(FALSE = ISERROR(MATCH(TRUE,OFFSET('lista do wyboru'!$H$3:$H$136,G18,0),0)),G18+MATCH(TRUE,OFFSET('lista do wyboru'!$H$3:$H$136,G18,0),0),\"\")","v":""}]
[{"$f":"IF($G20=\"\",\"--\",INDEX('lista do wyboru'!$B$3:$E$136,$G20,1))","v":"--"},{"$f":"IF($G20=\"\",\"--\",INDEX('lista do wyboru'!$B$3:$E$136,$G20,2))","v":"--"},{"$f":"IF($G20=\"\",\"--\",INDEX('lista do wyboru'!$B$3:$E$136,$G20,3))","v":"--"},{"$f":"IF($G20=\"\",\"--\",INDEX('lista do wyboru'!$B$3:$E$136,$G20,4))","v":"--"},0,null,{"$f":"IF(FALSE = ISERROR(MATCH(TRUE,OFFSET('lista do wyboru'!$H$3:$H$136,G19,0),0)),G19+MATCH(TRUE,OFFSET('lista do wyboru'!$H$3:$H$136,G19,0),0),\"\")","v":""}]
[{"$f":"IF($G21=\"\",\"--\",INDEX('lista do wyboru'!$B$3:$E$136,$G21,1))","v":"--"},{"$f":"IF($G21=\"\",\"--\",INDEX('lista do wyboru'!$B$3:$E$136,$G21,2))","v":"--"},{"$f":"IF($G21=\"\",\"--\",INDEX('lista do wyboru'!$B$3:$E$136,$G21,3))","v":"--"},{"$f":"IF($G21=\"\",\"--\",INDEX('lista do wyboru'!$B$3:$E$136,$G21,4))","v":"--"},0,null,{"$f":"IF(FALSE = ISERROR(MATCH(TRUE,OFFSET('lista do wyboru'!$H$3:$H$136,G20,0),0)),G20+MATCH(TRUE,OFFSET('lista do wyboru'!$H$3:$H$136,G20,0),0),\"\")","v":""}]
[{"$f":"IF($G22=\"\",\"--\",INDEX('lista do wyboru'!$B$3:$E$136,$G22,1))","v":"--"},{"$f":"IF($G22=\"\",\"--\",INDEX('lista do wyboru'!$B$3:$E$136,$G22,2))","v":"--"},{"$f":"IF($G22=\"\",\"--\",INDEX('lista do wyboru'!$B$3:$E$136,$G22,3))","v":"--"},{"$f":"IF($G22=\"\",\"--\",INDEX('lista do wyboru'!$B$3:$E$136,$G22,4))","v":"--"},0,null,{"$f":"IF(FALSE = ISERROR(MATCH(TRUE,OFFSET('lista do wyboru'!$H$3:$H$136,G21,0),0)),G21+MATCH(TRUE,OFFSET('lista do wyboru'!$H$3:$H$136,G21,0),0),\"\")","v":""}]
[{"$f":"IF($G23=\"\",\"--\",INDEX('lista do wyboru'!$B$3:$E$136,$G23,1))","v":"--"},{"$f":"IF($G23=\"\",\"--\",INDEX('lista do wyboru'!$B$3:$E$136,$G23,2))","v":"--"},{"$f":"IF($G23=\"\",\"--\",INDEX('lista do wyboru'!$B$3:$E$136,$G23,3))","v":"--"},{"$f":"IF($G23=\"\",\"--\",INDEX('lista do wyboru'!$B$3:$E$136,$G23,4))","v":"--"},0,null,{"$f":"IF(FALSE = ISERROR(MATCH(TRUE,OFFSET('lista do wyboru'!$H$3:$H$136,G22,0),0)),G22+MATCH(TRUE,OFFSET('lista do wyboru'!$H$3:$H$136,G22,0),0),\"\")","v":""}]
[{"$f":"IF($G24=\"\",\"--\",INDEX('lista do wyboru'!$B$3:$E$136,$G24,1))","v":"--"},{"$f":"IF($G24=\"\",\"--\",INDEX('lista do wyboru'!$B$3:$E$136,$G24,2))","v":"--"},{"$f":"IF($G24=\"\",\"--\",INDEX('lista do wyboru'!$B$3:$E$136,$G24,3))","v":"--"},{"$f":"IF($G24=\"\",\"--\",INDEX('lista do wyboru'!$B$3:$E$136,$G24,4))","v":"--"},0,null,{"$f":"IF(FALSE = ISERROR(MATCH(TRUE,OFFSET('lista do wyboru'!$H$3:$H$136,G23,0),0)),G23+MATCH(TRUE,OFFSET('lista do wyboru'!$H$3:$H$136,G23,0),0),\"\")","v":""}]
[{"$f":"IF($G25=\"\",\"--\",INDEX('lista do wyboru'!$B$3:$E$136,$G25,1))","v":"--"},{"$f":"IF($G25=\"\",\"--\",INDEX('lista do wyboru'!$B$3:$E$136,$G25,2))","v":"--"},{"$f":"IF($G25=\"\",\"--\",INDEX('lista do wyboru'!$B$3:$E$136,$G25,3))","v":"--"},{"$f":"IF($G25=\"\",\"--\",INDEX('lista do wyboru'!$B$3:$E$136,$G25,4))","v":"--"},0,null,{"$f":"IF(FALSE = ISERROR(MATCH(TRUE,OFFSET('lista do wyboru'!$H$3:$H$136,G24,0),0)),G24+MATCH(TRUE,OFFSET('lista do wyboru'!$H$3:$H$136,G24,0),0),\"\")","v":""}]
[{"$f":"IF($G26=\"\",\"--\",INDEX('lista do wyboru'!$B$3:$E$136,$G26,1))","v":"--"},{"$f":"IF($G26=\"\",\"--\",INDEX('lista do wyboru'!$B$3:$E$136,$G26,2))","v":"--"},{"$f":"IF($G26=\"\",\"--\",INDEX('lista do wyboru'!$B$3:$E$136,$G26,3))","v":"--"},{"$f":"IF($G26=\"\",\"--\",INDEX('lista do wyboru'!$B$3:$E$136,$G26,4))","v":"--"},0,null,{"$f":"IF(FALSE = ISERROR(MATCH(TRUE,OFFSET('lista do wyboru'!$H$3:$H$136,G25,0),0)),G25+MATCH(TRUE,OFFSET('lista do wyboru'!$H$3:$H$136,G25,0),0),\"\")","v":""}]
[{"$f":"IF($G27=\"\",\"--\",INDEX('lista do wyboru'!$B$3:$E$136,$G27,1))","v":"--"},{"$f":"IF($G27=\"\",\"--\",INDEX('lista do wyboru'!$B$3:$E$136,$G27,2))","v":"--"},{"$f":"IF($G27=\"\",\"--\",INDEX('lista do wyboru'!$B$3:$E$136,$G27,3))","v":"--"},{"$f":"IF($G27=\"\",\"--\",INDEX('lista do wyboru'!$B$3:$E$136,$G27,4))","v":"--"},0,null,{"$f":"IF(FALSE = ISERROR(MATCH(TRUE,OFFSET('lista do wyboru'!$H$3:$H$136,G26,0),0)),G26+MATCH(TRUE,OFFSET('lista do wyboru'!$H$3:$H$136,G26,0),0),\"\")","v":""}]
[{"$f":"IF($G28=\"\",\"--\",INDEX('lista do wyboru'!$B$3:$E$136,$G28,1))","v":"--"},{"$f":"IF($G28=\"\",\"--\",INDEX('lista do wyboru'!$B$3:$E$136,$G28,2))","v":"--"},{"$f":"IF($G28=\"\",\"--\",INDEX('lista do wyboru'!$B$3:$E$136,$G28,3))","v":"--"},{"$f":"IF($G28=\"\",\"--\",INDEX('lista do wyboru'!$B$3:$E$136,$G28,4))","v":"--"},0,null,{"$f":"IF(FALSE = ISERROR(MATCH(TRUE,OFFSET('lista do wyboru'!$H$3:$H$136,G27,0),0)),G27+MATCH(TRUE,OFFSET('lista do wyboru'!$H$3:$H$136,G27,0),0),\"\")","v":""}]
[{"$f":"IF($G29=\"\",\"--\",INDEX('lista do wyboru'!$B$3:$E$136,$G29,1))","v":"--"},{"$f":"IF($G29=\"\",\"--\",INDEX('lista do wyboru'!$B$3:$E$136,$G29,2))","v":"--"},{"$f":"IF($G29=\"\",\"--\",INDEX('lista do wyboru'!$B$3:$E$136,$G29,3))","v":"--"},{"$f":"IF($G29=\"\",\"--\",INDEX('lista do wyboru'!$B$3:$E$136,$G29,4))","v":"--"},0,null,{"$f":"IF(FALSE = ISERROR(MATCH(TRUE,OFFSET('lista do wyboru'!$H$3:$H$136,G28,0),0)),G28+MATCH(TRUE,OFFSET('lista do wyboru'!$H$3:$H$136,G28,0),0),\"\")","v":""}]
[{"$f":"IF($G30=\"\",\"--\",INDEX('lista do wyboru'!$B$3:$E$136,$G30,1))","v":"--"},{"$f":"IF($G30=\"\",\"--\",INDEX('lista do wyboru'!$B$3:$E$136,$G30,2))","v":"--"},{"$f":"IF($G30=\"\",\"--\",INDEX('lista do wyboru'!$B$3:$E$136,$G30,3))","v":"--"},{"$f":"IF($G30=\"\",\"--\",INDEX('lista do wyboru'!$B$3:$E$136,$G30,4))","v":"--"},0,null,{"$f":"IF(FALSE = ISERROR(MATCH(TRUE,OFFSET('lista do wyboru'!$H$3:$H$136,G29,0),0)),G29+MATCH(TRUE,OFFSET('lista do wyboru'!$H$3:$H$136,G29,0),0),\"\")","v":""}]
[{"$f":"IF($G31=\"\",\"--\",INDEX('lista do wyboru'!$B$3:$E$136,$G31,1))","v":"--"},{"$f":"IF($G31=\"\",\"--\",INDEX('lista do wyboru'!$B$3:$E$136,$G31,2))","v":"--"},{"$f":"IF($G31=\"\",\"--\",INDEX('lista do wyboru'!$B$3:$E$136,$G31,3))","v":"--"},{"$f":"IF($G31=\"\",\"--\",INDEX('lista do wyboru'!$B$3:$E$136,$G31,4))","v":"--"},0,null,{"$f":"IF(FALSE = ISERROR(MATCH(TRUE,OFFSET('lista do wyboru'!$H$3:$H$136,G30,0),0)),G30+MATCH(TRUE,OFFSET('lista do wyboru'!$H$3:$H$136,G30,0),0),\"\")","v":""}]
[{"$f":"IF($G32=\"\",\"--\",INDEX('lista do wyboru'!$B$3:$E$136,$G32,1))","v":"--"},{"$f":"IF($G32=\"\",\"--\",INDEX('lista do wyboru'!$B$3:$E$136,$G32,2))","v":"--"},{"$f":"IF($G32=\"\",\"--\",INDEX('lista do wyboru'!$B$3:$E$136,$G32,3))","v":"--"},{"$f":"IF($G32=\"\",\"--\",INDEX('lista do wyboru'!$B$3:$E$136,$G32,4))","v":"--"},0,null,{"$f":"IF(FALSE = ISERROR(MATCH(TRUE,OFFSET('lista do wyboru'!$H$3:$H$136,G31,0),0)),G31+MATCH(TRUE,OFFSET('lista do wyboru'!$H$3:$H$136,G31,0),0),\"\")","v":""}]
[{"$f":"IF($G33=\"\",\"--\",INDEX('lista do wyboru'!$B$3:$E$136,$G33,1))","v":"--"},{"$f":"IF($G33=\"\",\"--\",INDEX('lista do wyboru'!$B$3:$E$136,$G33,2))","v":"--"},{"$f":"IF($G33=\"\",\"--\",INDEX('lista do wyboru'!$B$3:$E$136,$G33,3))","v":"--"},{"$f":"IF($G33=\"\",\"--\",INDEX('lista do wyboru'!$B$3:$E$136,$G33,4))","v":"--"},0,null,{"$f":"IF(FALSE = ISERROR(MATCH(TRUE,OFFSET('lista do wyboru'!$H$3:$H$136,G32,0),0)),G32+MATCH(TRUE,OFFSET('lista do wyboru'!$H$3:$H$136,G32,0),0),\"\")","v":""}]
[{"$f":"IF($G34=\"\",\"--\",INDEX('lista do wyboru'!$B$3:$E$136,$G34,1))","v":"--"},{"$f":"IF($G34=\"\",\"--\",INDEX('lista do wyboru'!$B$3:$E$136,$G34,2))","v":"--"},{"$f":"IF($G34=\"\",\"--\",INDEX('lista do wyboru'!$B$3:$E$136,$G34,3))","v":"--"},{"$f":"IF($G34=\"\",\"--\",INDEX('lista do wyboru'!$B$3:$E$136,$G34,4))","v":"--"},0,null,{"$f":"IF(FALSE = ISERROR(MATCH(TRUE,OFFSET('lista do wyboru'!$H$3:$H$136,G33,0),0)),G33+MATCH(TRUE,OFFSET('lista do wyboru'!$H$3:$H$136,G33,0),0),\"\")","v":""}]
[{"$f":"IF($G35=\"\",\"--\",INDEX('lista do wyboru'!$B$3:$E$136,$G35,1))","v":"--"},{"$f":"IF($G35=\"\",\"--\",INDEX('lista do wyboru'!$B$3:$E$136,$G35,2))","v":"--"},{"$f":"IF($G35=\"\",\"--\",INDEX('lista do wyboru'!$B$3:$E$136,$G35,3))","v":"--"},{"$f":"IF($G35=\"\",\"--\",INDEX('lista do wyboru'!$B$3:$E$136,$G35,4))","v":"--"},0,null,{"$f":"IF(FALSE = ISERROR(MATCH(TRUE,OFFSET('lista do wyboru'!$H$3:$H$136,G34,0),0)),G34+MATCH(TRUE,OFFSET('lista do wyboru'!$H$3:$H$136,G34,0),0),\"\")","v":""}]
[{"$f":"IF($G36=\"\",\"--\",INDEX('lista do wyboru'!$B$3:$E$136,$G36,1))","v":"--"},{"$f":"IF($G36=\"\",\"--\",INDEX('lista do wyboru'!$B$3:$E$136,$G36,2))","v":"--"},{"$f":"IF($G36=\"\",\"--\",INDEX('lista do wyboru'!$B$3:$E$136,$G36,3))","v":"--"},{"$f":"IF($G36=\"\",\"--\",INDEX('lista do wyboru'!$B$3:$E$136,$G36,4))","v":"--"},0,null,{"$f":"IF(FALSE = ISERROR(MATCH(TRUE,OFFSET('lista do wyboru'!$H$3:$H$136,G35,0),0)),G35+MATCH(TRUE,OFFSET('lista do wyboru'!$H$3:$H$136,G35,0),0),\"\")","v":""}]
[{"$f":"IF($G37=\"\",\"--\",INDEX('lista do wyboru'!$B$3:$E$136,$G37,1))","v":"--"},{"$f":"IF($G37=\"\",\"--\",INDEX('lista do wyboru'!$B$3:$E$136,$G37,2))","v":"--"},{"$f":"IF($G37=\"\",\"--\",INDEX('lista do wyboru'!$B$3:$E$136,$G37,3))","v":"--"},{"$f":"IF($G37=\"\",\"--\",INDEX('lista do wyboru'!$B$3:$E$136,$G37,4))","v":"--"},0,null,{"$f":"IF(FALSE = ISERROR(MATCH(TRUE,OFFSET('lista do wyboru'!$H$3:$H$136,G36,0),0)),G36+MATCH(TRUE,OFFSET('lista do wyboru'!$H$3:$H$136,G36,0),0),\"\")","v":""}]
[{"$f":"IF($G38=\"\",\"--\",INDEX('lista do wyboru'!$B$3:$E$136,$G38,1))","v":"--"},{"$f":"IF($G38=\"\",\"--\",INDEX('lista do wyboru'!$B$3:$E$136,$G38,2))","v":"--"},{"$f":"IF($G38=\"\",\"--\",INDEX('lista do wyboru'!$B$3:$E$136,$G38,3))","v":"--"},{"$f":"IF($G38=\"\",\"--\",INDEX('lista do wyboru'!$B$3:$E$136,$G38,4))","v":"--"},0,null,{"$f":"IF(FALSE = ISERROR(MATCH(TRUE,OFFSET('lista do wyboru'!$H$3:$H$136,G37,0),0)),G37+MATCH(TRUE,OFFSET('lista do wyboru'!$H$3:$H$136,G37,0),0),\"\")","v":""}]
[{"$f":"IF($G39=\"\",\"--\",INDEX('lista do wyboru'!$B$3:$E$136,$G39,1))","v":"--"},{"$f":"IF($G39=\"\",\"--\",INDEX('lista do wyboru'!$B$3:$E$136,$G39,2))","v":"--"},{"$f":"IF($G39=\"\",\"--\",INDEX('lista do wyboru'!$B$3:$E$136,$G39,3))","v":"--"},{"$f":"IF($G39=\"\",\"--\",INDEX('lista do wyboru'!$B$3:$E$136,$G39,4))","v":"--"},0,null,{"$f":"IF(FALSE = ISERROR(MATCH(TRUE,OFFSET('lista do wyboru'!$H$3:$H$136,G38,0),0)),G38+MATCH(TRUE,OFFSET('lista do wyboru'!$H$3:$H$136,G38,0),0),\"\")","v":""}]
[{"$f":"IF($G40=\"\",\"--\",INDEX('lista do wyboru'!$B$3:$E$136,$G40,1))","v":"--"},{"$f":"IF($G40=\"\",\"--\",INDEX('lista do wyboru'!$B$3:$E$136,$G40,2))","v":"--"},{"$f":"IF($G40=\"\",\"--\",INDEX('lista do wyboru'!$B$3:$E$136,$G40,3))","v":"--"},{"$f":"IF($G40=\"\",\"--\",INDEX('lista do wyboru'!$B$3:$E$136,$G40,4))","v":"--"},0,null,{"$f":"IF(FALSE = ISERROR(MATCH(TRUE,OFFSET('lista do wyboru'!$H$3:$H$136,G39,0),0)),G39+MATCH(TRUE,OFFSET('lista do wyboru'!$H$3:$H$136,G39,0),0),\"\")","v":""}]
[{"$f":"IF($G41=\"\",\"--\",INDEX('lista do wyboru'!$B$3:$E$136,$G41,1))","v":"--"},{"$f":"IF($G41=\"\",\"--\",INDEX('lista do wyboru'!$B$3:$E$136,$G41,2))","v":"--"},{"$f":"IF($G41=\"\",\"--\",INDEX('lista do wyboru'!$B$3:$E$136,$G41,3))","v":"--"},{"$f":"IF($G41=\"\",\"--\",INDEX('lista do wyboru'!$B$3:$E$136,$G41,4))","v":"--"},0,null,{"$f":"IF(FALSE = ISERROR(MATCH(TRUE,OFFSET('lista do wyboru'!$H$3:$H$136,G40,0),0)),G40+MATCH(TRUE,OFFSET('lista do wyboru'!$H$3:$H$136,G40,0),0),\"\")","v":""}]
[{"$f":"IF($G42=\"\",\"--\",INDEX('lista do wyboru'!$B$3:$E$136,$G42,1))","v":"--"},{"$f":"IF($G42=\"\",\"--\",INDEX('lista do wyboru'!$B$3:$E$136,$G42,2))","v":"--"},{"$f":"IF($G42=\"\",\"--\",INDEX('lista do wyboru'!$B$3:$E$136,$G42,3))","v":"--"},{"$f":"IF($G42=\"\",\"--\",INDEX('lista do wyboru'!$B$3:$E$136,$G42,4))","v":"--"},0,null,{"$f":"IF(FALSE = ISERROR(MATCH(TRUE,OFFSET('lista do wyboru'!$H$3:$H$136,G41,0),0)),G41+MATCH(TRUE,OFFSET('lista do wyboru'!$H$3:$H$136,G41,0),0),\"\")","v":""}]
[{"$f":"IF($G43=\"\",\"--\",INDEX('lista do wyboru'!$B$3:$E$136,$G43,1))","v":"--"},{"$f":"IF($G43=\"\",\"--\",INDEX('lista do wyboru'!$B$3:$E$136,$G43,2))","v":"--"},{"$f":"IF($G43=\"\",\"--\",INDEX('lista do wyboru'!$B$3:$E$136,$G43,3))","v":"--"},{"$f":"IF($G43=\"\",\"--\",INDEX('lista do wyboru'!$B$3:$E$136,$G43,4))","v":"--"},0,null,{"$f":"IF(FALSE = ISERROR(MATCH(TRUE,OFFSET('lista do wyboru'!$H$3:$H$136,G42,0),0)),G42+MATCH(TRUE,OFFSET('lista do wyboru'!$H$3:$H$136,G42,0),0),\"\")","v":""}]
[{"$f":"IF($G44=\"\",\"--\",INDEX('lista do wyboru'!$B$3:$E$136,$G44,1))","v":"--"},{"$f":"IF($G44=\"\",\"--\",INDEX('lista do wyboru'!$B$3:$E$136,$G44,2))","v":"--"},{"$f":"IF($G44=\"\",\"--\",INDEX('lista do wyboru'!$B$3:$E$136,$G44,3))","v":"--"},{"$f":"IF($G44=\"\",\"--\",INDEX('lista do wyboru'!$B$3:$E$136,$G44,4))","v":"--"},0,null,{"$f":"IF(FALSE = ISERROR(MATCH(TRUE,OFFSET('lista do wyboru'!$H$3:$H$136,G43,0),0)),G43+MATCH(TRUE,OFFSET('lista do wyboru'!$H$3:$H$136,G43,0),0),\"\")","v":""}]
[{"$f":"IF($G45=\"\",\"--\",INDEX('lista do wyboru'!$B$3:$E$136,$G45,1))","v":"--"},{"$f":"IF($G45=\"\",\"--\",INDEX('lista do wyboru'!$B$3:$E$136,$G45,2))","v":"--"},{"$f":"IF($G45=\"\",\"--\",INDEX('lista do wyboru'!$B$3:$E$136,$G45,3))","v":"--"},{"$f":"IF($G45=\"\",\"--\",INDEX('lista do wyboru'!$B$3:$E$136,$G45,4))","v":"--"},0,null,{"$f":"IF(FALSE = ISERROR(MATCH(TRUE,OFFSET('lista do wyboru'!$H$3:$H$136,G44,0),0)),G44+MATCH(TRUE,OFFSET('lista do wyboru'!$H$3:$H$136,G44,0),0),\"\")","v":""}]
[{"$f":"IF($G46=\"\",\"--\",INDEX('lista do wyboru'!$B$3:$E$136,$G46,1))","v":"--"},{"$f":"IF($G46=\"\",\"--\",INDEX('lista do wyboru'!$B$3:$E$136,$G46,2))","v":"--"},{"$f":"IF($G46=\"\",\"--\",INDEX('lista do wyboru'!$B$3:$E$136,$G46,3))","v":"--"},{"$f":"IF($G46=\"\",\"--\",INDEX('lista do wyboru'!$B$3:$E$136,$G46,4))","v":"--"},0,null,{"$f":"IF(FALSE = ISERROR(MATCH(TRUE,OFFSET('lista do wyboru'!$H$3:$H$136,G45,0),0)),G45+MATCH(TRUE,OFFSET('lista do wyboru'!$H$3:$H$136,G45,0),0),\"\")","v":""}]
[{"$f":"IF($G47=\"\",\"--\",INDEX('lista do wyboru'!$B$3:$E$136,$G47,1))","v":"--"},{"$f":"IF($G47=\"\",\"--\",INDEX('lista do wyboru'!$B$3:$E$136,$G47,2))","v":"--"},{"$f":"IF($G47=\"\",\"--\",INDEX('lista do wyboru'!$B$3:$E$136,$G47,3))","v":"--"},{"$f":"IF($G47=\"\",\"--\",INDEX('lista do wyboru'!$B$3:$E$136,$G47,4))","v":"--"},0,null,{"$f":"IF(FALSE = ISERROR(MATCH(TRUE,OFFSET('lista do wyboru'!$H$3:$H$136,G46,0),0)),G46+MATCH(TRUE,OFFSET('lista do wyboru'!$H$3:$H$136,G46,0),0),\"\")","v":""}]
[{"$f":"IF($G48=\"\",\"--\",INDEX('lista do wyboru'!$B$3:$E$136,$G48,1))","v":"--"},{"$f":"IF($G48=\"\",\"--\",INDEX('lista do wyboru'!$B$3:$E$136,$G48,2))","v":"--"},{"$f":"IF($G48=\"\",\"--\",INDEX('lista do wyboru'!$B$3:$E$136,$G48,3))","v":"--"},{"$f":"IF($G48=\"\",\"--\",INDEX('lista do wyboru'!$B$3:$E$136,$G48,4))","v":"--"},0,null,{"$f":"IF(FALSE = ISERROR(MATCH(TRUE,OFFSET('lista do wyboru'!$H$3:$H$136,G47,0),0)),G47+MATCH(TRUE,OFFSET('lista do wyboru'!$H$3:$H$136,G47,0),0),\"\")","v":""}]
[{"$f":"IF($G49=\"\",\"--\",INDEX('lista do wyboru'!$B$3:$E$136,$G49,1))","v":"--"},{"$f":"IF($G49=\"\",\"--\",INDEX('lista do wyboru'!$B$3:$E$136,$G49,2))","v":"--"},{"$f":"IF($G49=\"\",\"--\",INDEX('lista do wyboru'!$B$3:$E$136,$G49,3))","v":"--"},{"$f":"IF($G49=\"\",\"--\",INDEX('lista do wyboru'!$B$3:$E$136,$G49,4))","v":"--"},0,null,{"$f":"IF(FALSE = ISERROR(MATCH(TRUE,OFFSET('lista do wyboru'!$H$3:$H$136,G48,0),0)),G48+MATCH(TRUE,OFFSET('lista do wyboru'!$H$3:$H$136,G48,0),0),\"\")","v":""}]
[{"$f":"IF($G50=\"\",\"--\",INDEX('lista do wyboru'!$B$3:$E$136,$G50,1))","v":"--"},{"$f":"IF($G50=\"\",\"--\",INDEX('lista do wyboru'!$B$3:$E$136,$G50,2))","v":"--"},{"$f":"IF($G50=\"\",\"--\",INDEX('lista do wyboru'!$B$3:$E$136,$G50,3))","v":"--"},{"$f":"IF($G50=\"\",\"--\",INDEX('lista do wyboru'!$B$3:$E$136,$G50,4))","v":"--"},0,null,{"$f":"IF(FALSE = ISERROR(MATCH(TRUE,OFFSET('lista do wyboru'!$H$3:$H$136,G49,0),0)),G49+MATCH(TRUE,OFFSET('lista do wyboru'!$H$3:$H$136,G49,0),0),\"\")","v":""}]
[{"$f":"IF($G51=\"\",\"--\",INDEX('lista do wyboru'!$B$3:$E$136,$G51,1))","v":"--"},{"$f":"IF($G51=\"\",\"--\",INDEX('lista do wyboru'!$B$3:$E$136,$G51,2))","v":"--"},{"$f":"IF($G51=\"\",\"--\",INDEX('lista do wyboru'!$B$3:$E$136,$G51,3))","v":"--"},{"$f":"IF($G51=\"\",\"--\",INDEX('lista do wyboru'!$B$3:$E$136,$G51,4))","v":"--"},0,null,{"$f":"IF(FALSE = ISERROR(MATCH(TRUE,OFFSET('lista do wyboru'!$H$3:$H$136,G50,0),0)),G50+MATCH(TRUE,OFFSET('lista do wyboru'!$H$3:$H$136,G50,0),0),\"\")","v":""}]
[{"$f":"IF($G52=\"\",\"--\",INDEX('lista do wyboru'!$B$3:$E$136,$G52,1))","v":"--"},{"$f":"IF($G52=\"\",\"--\",INDEX('lista do wyboru'!$B$3:$E$136,$G52,2))","v":"--"},{"$f":"IF($G52=\"\",\"--\",INDEX('lista do wyboru'!$B$3:$E$136,$G52,3))","v":"--"},{"$f":"IF($G52=\"\",\"--\",INDEX('lista do wyboru'!$B$3:$E$136,$G52,4))","v":"--"},0,null,{"$f":"IF(FALSE = ISERROR(MATCH(TRUE,OFFSET('lista do wyboru'!$H$3:$H$136,G51,0),0)),G51+MATCH(TRUE,OFFSET('lista do wyboru'!$H$3:$H$136,G51,0),0),\"\")","v":""}]
[{"$f":"IF($G53=\"\",\"--\",INDEX('lista do wyboru'!$B$3:$E$136,$G53,1))","v":"--"},{"$f":"IF($G53=\"\",\"--\",INDEX('lista do wyboru'!$B$3:$E$136,$G53,2))","v":"--"},{"$f":"IF($G53=\"\",\"--\",INDEX('lista do wyboru'!$B$3:$E$136,$G53,3))","v":"--"},{"$f":"IF($G53=\"\",\"--\",INDEX('lista do wyboru'!$B$3:$E$136,$G53,4))","v":"--"},0,null,{"$f":"IF(FALSE = ISERROR(MATCH(TRUE,OFFSET('lista do wyboru'!$H$3:$H$136,G52,0),0)),G52+MATCH(TRUE,OFFSET('lista do wyboru'!$H$3:$H$136,G52,0),0),\"\")","v":""}]
[{"$f":"IF($G54=\"\",\"--\",INDEX('lista do wyboru'!$B$3:$E$136,$G54,1))","v":"--"},{"$f":"IF($G54=\"\",\"--\",INDEX('lista do wyboru'!$B$3:$E$136,$G54,2))","v":"--"},{"$f":"IF($G54=\"\",\"--\",INDEX('lista do wyboru'!$B$3:$E$136,$G54,3))","v":"--"},{"$f":"IF($G54=\"\",\"--\",INDEX('lista do wyboru'!$B$3:$E$136,$G54,4))","v":"--"},0,null,{"$f":"IF(FALSE = ISERROR(MATCH(TRUE,OFFSET('lista do wyboru'!$H$3:$H$136,G53,0),0)),G53+MATCH(TRUE,OFFSET('lista do wyboru'!$H$3:$H$136,G53,0),0),\"\")","v":""}]
[{"$f":"IF($G55=\"\",\"--\",INDEX('lista do wyboru'!$B$3:$E$136,$G55,1))","v":"--"},{"$f":"IF($G55=\"\",\"--\",INDEX('lista do wyboru'!$B$3:$E$136,$G55,2))","v":"--"},{"$f":"IF($G55=\"\",\"--\",INDEX('lista do wyboru'!$B$3:$E$136,$G55,3))","v":"--"},{"$f":"IF($G55=\"\",\"--\",INDEX('lista do wyboru'!$B$3:$E$136,$G55,4))","v":"--"},0,null,{"$f":"IF(FALSE = ISERROR(MATCH(TRUE,OFFSET('lista do wyboru'!$H$3:$H$136,G54,0),0)),G54+MATCH(TRUE,OFFSET('lista do wyboru'!$H$3:$H$136,G54,0),0),\"\")","v":""}]
[{"$f":"IF($G56=\"\",\"--\",INDEX('lista do wyboru'!$B$3:$E$136,$G56,1))","v":"--"},{"$f":"IF($G56=\"\",\"--\",INDEX('lista do wyboru'!$B$3:$E$136,$G56,2))","v":"--"},{"$f":"IF($G56=\"\",\"--\",INDEX('lista do wyboru'!$B$3:$E$136,$G56,3))","v":"--"},{"$f":"IF($G56=\"\",\"--\",INDEX('lista do wyboru'!$B$3:$E$136,$G56,4))","v":"--"},0,null,{"$f":"IF(FALSE = ISERROR(MATCH(TRUE,OFFSET('lista do wyboru'!$H$3:$H$136,G55,0),0)),G55+MATCH(TRUE,OFFSET('lista do wyboru'!$H$3:$H$136,G55,0),0),\"\")","v":""}]
[{"$f":"IF($G57=\"\",\"--\",INDEX('lista do wyboru'!$B$3:$E$136,$G57,1))","v":"--"},{"$f":"IF($G57=\"\",\"--\",INDEX('lista do wyboru'!$B$3:$E$136,$G57,2))","v":"--"},{"$f":"IF($G57=\"\",\"--\",INDEX('lista do wyboru'!$B$3:$E$136,$G57,3))","v":"--"},{"$f":"IF($G57=\"\",\"--\",INDEX('lista do wyboru'!$B$3:$E$136,$G57,4))","v":"--"},0,null,{"$f":"IF(FALSE = ISERROR(MATCH(TRUE,OFFSET('lista do wyboru'!$H$3:$H$136,G56,0),0)),G56+MATCH(TRUE,OFFSET('lista do wyboru'!$H$3:$H$136,G56,0),0),\"\")","v":""}]
[{"$f":"IF($G58=\"\",\"--\",INDEX('lista do wyboru'!$B$3:$E$136,$G58,1))","v":"--"},{"$f":"IF($G58=\"\",\"--\",INDEX('lista do wyboru'!$B$3:$E$136,$G58,2))","v":"--"},{"$f":"IF($G58=\"\",\"--\",INDEX('lista do wyboru'!$B$3:$E$136,$G58,3))","v":"--"},{"$f":"IF($G58=\"\",\"--\",INDEX('lista do wyboru'!$B$3:$E$136,$G58,4))","v":"--"},0,null,{"$f":"IF(FALSE = ISERROR(MATCH(TRUE,OFFSET('lista do wyboru'!$H$3:$H$136,G57,0),0)),G57+MATCH(TRUE,OFFSET('lista do wyboru'!$H$3:$H$136,G57,0),0),\"\")","v":""}]
[{"$f":"IF($G59=\"\",\"--\",INDEX('lista do wyboru'!$B$3:$E$136,$G59,1))","v":"--"},{"$f":"IF($G59=\"\",\"--\",INDEX('lista do wyboru'!$B$3:$E$136,$G59,2))","v":"--"},{"$f":"IF($G59=\"\",\"--\",INDEX('lista do wyboru'!$B$3:$E$136,$G59,3))","v":"--"},{"$f":"IF($G59=\"\",\"--\",INDEX('lista do wyboru'!$B$3:$E$136,$G59,4))","v":"--"},0,null,{"$f":"IF(FALSE = ISERROR(MATCH(TRUE,OFFSET('lista do wyboru'!$H$3:$H$136,G58,0),0)),G58+MATCH(TRUE,OFFSET('lista do wyboru'!$H$3:$H$136,G58,0),0),\"\")","v":""}]
[{"$f":"IF($G60=\"\",\"--\",INDEX('lista do wyboru'!$B$3:$E$136,$G60,1))","v":"--"},{"$f":"IF($G60=\"\",\"--\",INDEX('lista do wyboru'!$B$3:$E$136,$G60,2))","v":"--"},{"$f":"IF($G60=\"\",\"--\",INDEX('lista do wyboru'!$B$3:$E$136,$G60,3))","v":"--"},{"$f":"IF($G60=\"\",\"--\",INDEX('lista do wyboru'!$B$3:$E$136,$G60,4))","v":"--"},0,null,{"$f":"IF(FALSE = ISERROR(MATCH(TRUE,OFFSET('lista do wyboru'!$H$3:$H$136,G59,0),0)),G59+MATCH(TRUE,OFFSET('lista do wyboru'!$H$3:$H$136,G59,0),0),\"\")","v":""}]
[{"$f":"IF($G61=\"\",\"--\",INDEX('lista do wyboru'!$B$3:$E$136,$G61,1))","v":"--"},{"$f":"IF($G61=\"\",\"--\",INDEX('lista do wyboru'!$B$3:$E$136,$G61,2))","v":"--"},{"$f":"IF($G61=\"\",\"--\",INDEX('lista do wyboru'!$B$3:$E$136,$G61,3))","v":"--"},{"$f":"IF($G61=\"\",\"--\",INDEX('lista do wyboru'!$B$3:$E$136,$G61,4))","v":"--"},0,null,{"$f":"IF(FALSE = ISERROR(MATCH(TRUE,OFFSET('lista do wyboru'!$H$3:$H$136,G60,0),0)),G60+MATCH(TRUE,OFFSET('lista do wyboru'!$H$3:$H$136,G60,0),0),\"\")","v":""}]
[{"$f":"IF($G62=\"\",\"--\",INDEX('lista do wyboru'!$B$3:$E$136,$G62,1))","v":"--"},{"$f":"IF($G62=\"\",\"--\",INDEX('lista do wyboru'!$B$3:$E$136,$G62,2))","v":"--"},{"$f":"IF($G62=\"\",\"--\",INDEX('lista do wyboru'!$B$3:$E$136,$G62,3))","v":"--"},{"$f":"IF($G62=\"\",\"--\",INDEX('lista do wyboru'!$B$3:$E$136,$G62,4))","v":"--"},0,null,{"$f":"IF(FALSE = ISERROR(MATCH(TRUE,OFFSET('lista do wyboru'!$H$3:$H$136,G61,0),0)),G61+MATCH(TRUE,OFFSET('lista do wyboru'!$H$3:$H$136,G61,0),0),\"\")","v":""}]
[{"$f":"IF($G63=\"\",\"--\",INDEX('lista do wyboru'!$B$3:$E$136,$G63,1))","v":"--"},{"$f":"IF($G63=\"\",\"--\",INDEX('lista do wyboru'!$B$3:$E$136,$G63,2))","v":"--"},{"$f":"IF($G63=\"\",\"--\",INDEX('lista do wyboru'!$B$3:$E$136,$G63,3))","v":"--"},{"$f":"IF($G63=\"\",\"--\",INDEX('lista do wyboru'!$B$3:$E$136,$G63,4))","v":"--"},0,null,{"$f":"IF(FALSE = ISERROR(MATCH(TRUE,OFFSET('lista do wyboru'!$H$3:$H$136,G62,0),0)),G62+MATCH(TRUE,OFFSET('lista do wyboru'!$H$3:$H$136,G62,0),0),\"\")","v":""}]
[{"$f":"IF($G64=\"\",\"--\",INDEX('lista do wyboru'!$B$3:$E$136,$G64,1))","v":"--"},{"$f":"IF($G64=\"\",\"--\",INDEX('lista do wyboru'!$B$3:$E$136,$G64,2))","v":"--"},{"$f":"IF($G64=\"\",\"--\",INDEX('lista do wyboru'!$B$3:$E$136,$G64,3))","v":"--"},{"$f":"IF($G64=\"\",\"--\",INDEX('lista do wyboru'!$B$3:$E$136,$G64,4))","v":"--"},0,null,{"$f":"IF(FALSE = ISERROR(MATCH(TRUE,OFFSET('lista do wyboru'!$H$3:$H$136,G63,0),0)),G63+MATCH(TRUE,OFFSET('lista do wyboru'!$H$3:$H$136,G63,0),0),\"\")","v":""}]
[{"$f":"IF($G65=\"\",\"--\",INDEX('lista do wyboru'!$B$3:$E$136,$G65,1))","v":"--"},{"$f":"IF($G65=\"\",\"--\",INDEX('lista do wyboru'!$B$3:$E$136,$G65,2))","v":"--"},{"$f":"IF($G65=\"\",\"--\",INDEX('lista do wyboru'!$B$3:$E$136,$G65,3))","v":"--"},{"$f":"IF($G65=\"\",\"--\",INDEX('lista do wyboru'!$B$3:$E$136,$G65,4))","v":"--"},0,null,{"$f":"IF(FALSE = ISERROR(MATCH(TRUE,OFFSET('lista do wyboru'!$H$3:$H$136,G64,0),0)),G64+MATCH(TRUE,OFFSET('lista do wyboru'!$H$3:$H$136,G64,0),0),\"\")","v":""}]
[{"$f":"IF($G66=\"\",\"--\",INDEX('lista do wyboru'!$B$3:$E$136,$G66,1))","v":"--"},{"$f":"IF($G66=\"\",\"--\",INDEX('lista do wyboru'!$B$3:$E$136,$G66,2))","v":"--"},{"$f":"IF($G66=\"\",\"--\",INDEX('lista do wyboru'!$B$3:$E$136,$G66,3))","v":"--"},{"$f":"IF($G66=\"\",\"--\",INDEX('lista do wyboru'!$B$3:$E$136,$G66,4))","v":"--"},0,null,{"$f":"IF(FALSE = ISERROR(MATCH(TRUE,OFFSET('lista do wyboru'!$H$3:$H$136,G65,0),0)),G65+MATCH(TRUE,OFFSET('lista do wyboru'!$H$3:$H$136,G65,0),0),\"\")","v":""}]
[{"$f":"IF($G67=\"\",\"--\",INDEX('lista do wyboru'!$B$3:$E$136,$G67,1))","v":"--"},{"$f":"IF($G67=\"\",\"--\",INDEX('lista do wyboru'!$B$3:$E$136,$G67,2))","v":"--"},{"$f":"IF($G67=\"\",\"--\",INDEX('lista do wyboru'!$B$3:$E$136,$G67,3))","v":"--"},{"$f":"IF($G67=\"\",\"--\",INDEX('lista do wyboru'!$B$3:$E$136,$G67,4))","v":"--"},0,null,{"$f":"IF(FALSE = ISERROR(MATCH(TRUE,OFFSET('lista do wyboru'!$H$3:$H$136,G66,0),0)),G66+MATCH(TRUE,OFFSET('lista do wyboru'!$H$3:$H$136,G66,0),0),\"\")","v":""}]
[{"$f":"IF($G68=\"\",\"--\",INDEX('lista do wyboru'!$B$3:$E$136,$G68,1))","v":"--"},{"$f":"IF($G68=\"\",\"--\",INDEX('lista do wyboru'!$B$3:$E$136,$G68,2))","v":"--"},{"$f":"IF($G68=\"\",\"--\",INDEX('lista do wyboru'!$B$3:$E$136,$G68,3))","v":"--"},{"$f":"IF($G68=\"\",\"--\",INDEX('lista do wyboru'!$B$3:$E$136,$G68,4))","v":"--"},0,null,{"$f":"IF(FALSE = ISERROR(MATCH(TRUE,OFFSET('lista do wyboru'!$H$3:$H$136,G67,0),0)),G67+MATCH(TRUE,OFFSET('lista do wyboru'!$H$3:$H$136,G67,0),0),\"\")","v":""}]
[{"$f":"IF($G69=\"\",\"--\",INDEX('lista do wyboru'!$B$3:$E$136,$G69,1))","v":"--"},{"$f":"IF($G69=\"\",\"--\",INDEX('lista do wyboru'!$B$3:$E$136,$G69,2))","v":"--"},{"$f":"IF($G69=\"\",\"--\",INDEX('lista do wyboru'!$B$3:$E$136,$G69,3))","v":"--"},{"$f":"IF($G69=\"\",\"--\",INDEX('lista do wyboru'!$B$3:$E$136,$G69,4))","v":"--"},{"$f":"IF(C69 = \"--\",0,D69*C69)","v":0},null,{"$f":"IF(FALSE = ISERROR(MATCH(TRUE,OFFSET('lista do wyboru'!$H$3:$H$136,G68,0),0)),G68+MATCH(TRUE,OFFSET('lista do wyboru'!$H$3:$H$136,G68,0),0),\"\")","v":""}]
[{"$f":"IF($G70=\"\",\"--\",INDEX('lista do wyboru'!$B$3:$E$136,$G70,1))","v":"--"},{"$f":"IF($G70=\"\",\"--\",INDEX('lista do wyboru'!$B$3:$E$136,$G70,2))","v":"--"},{"$f":"IF($G70=\"\",\"--\",INDEX('lista do wyboru'!$B$3:$E$136,$G70,3))","v":"--"},{"$f":"IF($G70=\"\",\"--\",INDEX('lista do wyboru'!$B$3:$E$136,$G70,4))","v":"--"},0,null,{"$f":"IF(FALSE = ISERROR(MATCH(TRUE,OFFSET('lista do wyboru'!$H$3:$H$136,G69,0),0)),G69+MATCH(TRUE,OFFSET('lista do wyboru'!$H$3:$H$136,G69,0),0),\"\")","v":""}]
[{"$f":"IF($G71=\"\",\"--\",INDEX('lista do wyboru'!$B$3:$E$136,$G71,1))","v":"--"},{"$f":"IF($G71=\"\",\"--\",INDEX('lista do wyboru'!$B$3:$E$136,$G71,2))","v":"--"},{"$f":"IF($G71=\"\",\"--\",INDEX('lista do wyboru'!$B$3:$E$136,$G71,3))","v":"--"},{"$f":"IF($G71=\"\",\"--\",INDEX('lista do wyboru'!$B$3:$E$136,$G71,4))","v":"--"},0,null,{"$f":"IF(FALSE = ISERROR(MATCH(TRUE,OFFSET('lista do wyboru'!$H$3:$H$136,G70,0),0)),G70+MATCH(TRUE,OFFSET('lista do wyboru'!$H$3:$H$136,G70,0),0),\"\")","v":""}]
[{"$f":"IF($G72=\"\",\"--\",INDEX('lista do wyboru'!$B$3:$E$136,$G72,1))","v":"--"},{"$f":"IF($G72=\"\",\"--\",INDEX('lista do wyboru'!$B$3:$E$136,$G72,2))","v":"--"},{"$f":"IF($G72=\"\",\"--\",INDEX('lista do wyboru'!$B$3:$E$136,$G72,3))","v":"--"},{"$f":"IF($G72=\"\",\"--\",INDEX('lista do wyboru'!$B$3:$E$136,$G72,4))","v":"--"},0,null,{"$f":"IF(FALSE = ISERROR(MATCH(TRUE,OFFSET('lista do wyboru'!$H$3:$H$136,G71,0),0)),G71+MATCH(TRUE,OFFSET('lista do wyboru'!$H$3:$H$136,G71,0),0),\"\")","v":""}]
[{"$f":"IF($G73=\"\",\"--\",INDEX('lista do wyboru'!$B$3:$E$136,$G73,1))","v":"--"},{"$f":"IF($G73=\"\",\"--\",INDEX('lista do wyboru'!$B$3:$E$136,$G73,2))","v":"--"},{"$f":"IF($G73=\"\",\"--\",INDEX('lista do wyboru'!$B$3:$E$136,$G73,3))","v":"--"},{"$f":"IF($G73=\"\",\"--\",INDEX('lista do wyboru'!$B$3:$E$136,$G73,4))","v":"--"},0,null,{"$f":"IF(FALSE = ISERROR(MATCH(TRUE,OFFSET('lista do wyboru'!$H$3:$H$136,G72,0),0)),G72+MATCH(TRUE,OFFSET('lista do wyboru'!$H$3:$H$136,G72,0),0),\"\")","v":""}]
[{"$f":"IF($G74=\"\",\"--\",INDEX('lista do wyboru'!$B$3:$E$136,$G74,1))","v":"--"},{"$f":"IF($G74=\"\",\"--\",INDEX('lista do wyboru'!$B$3:$E$136,$G74,2))","v":"--"},{"$f":"IF($G74=\"\",\"--\",INDEX('lista do wyboru'!$B$3:$E$136,$G74,3))","v":"--"},{"$f":"IF($G74=\"\",\"--\",INDEX('lista do wyboru'!$B$3:$E$136,$G74,4))","v":"--"},0,null,{"$f":"IF(FALSE = ISERROR(MATCH(TRUE,OFFSET('lista do wyboru'!$H$3:$H$136,G73,0),0)),G73+MATCH(TRUE,OFFSET('lista do wyboru'!$H$3:$H$136,G73,0),0),\"\")","v":""}]
[{"$f":"IF($G75=\"\",\"--\",INDEX('lista do wyboru'!$B$3:$E$136,$G75,1))","v":"--"},{"$f":"IF($G75=\"\",\"--\",INDEX('lista do wyboru'!$B$3:$E$136,$G75,2))","v":"--"},{"$f":"IF($G75=\"\",\"--\",INDEX('lista do wyboru'!$B$3:$E$136,$G75,3))","v":"--"},{"$f":"IF($G75=\"\",\"--\",INDEX('lista do wyboru'!$B$3:$E$136,$G75,4))","v":"--"},0,null,{"$f":"IF(FALSE = ISERROR(MATCH(TRUE,OFFSET('lista do wyboru'!$H$3:$H$136,G74,0),0)),G74+MATCH(TRUE,OFFSET('lista do wyboru'!$H$3:$H$136,G74,0),0),\"\")","v":""}]
[{"$f":"IF($G76=\"\",\"--\",INDEX('lista do wyboru'!$B$3:$E$136,$G76,1))","v":"--"},{"$f":"IF($G76=\"\",\"--\",INDEX('lista do wyboru'!$B$3:$E$136,$G76,2))","v":"--"},{"$f":"IF($G76=\"\",\"--\",INDEX('lista do wyboru'!$B$3:$E$136,$G76,3))","v":"--"},{"$f":"IF($G76=\"\",\"--\",INDEX('lista do wyboru'!$B$3:$E$136,$G76,4))","v":"--"},0,null,{"$f":"IF(FALSE = ISERROR(MATCH(TRUE,OFFSET('lista do wyboru'!$H$3:$H$136,G75,0),0)),G75+MATCH(TRUE,OFFSET('lista do wyboru'!$H$3:$H$136,G75,0),0),\"\")","v":""}]
[{"$f":"IF($G77=\"\",\"--\",INDEX('lista do wyboru'!$B$3:$E$136,$G77,1))","v":"--"},{"$f":"IF($G77=\"\",\"--\",INDEX('lista do wyboru'!$B$3:$E$136,$G77,2))","v":"--"},{"$f":"IF($G77=\"\",\"--\",INDEX('lista do wyboru'!$B$3:$E$136,$G77,3))","v":"--"},{"$f":"IF($G77=\"\",\"--\",INDEX('lista do wyboru'!$B$3:$E$136,$G77,4))","v":"--"},0,null,{"$f":"IF(FALSE = ISERROR(MATCH(TRUE,OFFSET('lista do wyboru'!$H$3:$H$136,G76,0),0)),G76+MATCH(TRUE,OFFSET('lista do wyboru'!$H$3:$H$136,G76,0),0),\"\")","v":""}]
[{"$f":"IF($G78=\"\",\"--\",INDEX('lista do wyboru'!$B$3:$E$136,$G78,1))","v":"--"},{"$f":"IF($G78=\"\",\"--\",INDEX('lista do wyboru'!$B$3:$E$136,$G78,2))","v":"--"},{"$f":"IF($G78=\"\",\"--\",INDEX('lista do wyboru'!$B$3:$E$136,$G78,3))","v":"--"},{"$f":"IF($G78=\"\",\"--\",INDEX('lista do wyboru'!$B$3:$E$136,$G78,4))","v":"--"},0,null,{"$f":"IF(FALSE = ISERROR(MATCH(TRUE,OFFSET('lista do wyboru'!$H$3:$H$136,G77,0),0)),G77+MATCH(TRUE,OFFSET('lista do wyboru'!$H$3:$H$136,G77,0),0),\"\")","v":""}]
[{"$f":"IF($G79=\"\",\"--\",INDEX('lista do wyboru'!$B$3:$E$136,$G79,1))","v":"--"},{"$f":"IF($G79=\"\",\"--\",INDEX('lista do wyboru'!$B$3:$E$136,$G79,2))","v":"--"},{"$f":"IF($G79=\"\",\"--\",INDEX('lista do wyboru'!$B$3:$E$136,$G79,3))","v":"--"},{"$f":"IF($G79=\"\",\"--\",INDEX('lista do wyboru'!$B$3:$E$136,$G79,4))","v":"--"},0,null,{"$f":"IF(FALSE = ISERROR(MATCH(TRUE,OFFSET('lista do wyboru'!$H$3:$H$136,G78,0),0)),G78+MATCH(TRUE,OFFSET('lista do wyboru'!$H$3:$H$136,G78,0),0),\"\")","v":""}]
[{"$f":"IF($G80=\"\",\"--\",INDEX('lista do wyboru'!$B$3:$E$136,$G80,1))","v":"--"},{"$f":"IF($G80=\"\",\"--\",INDEX('lista do wyboru'!$B$3:$E$136,$G80,2))","v":"--"},{"$f":"IF($G80=\"\",\"--\",INDEX('lista do wyboru'!$B$3:$E$136,$G80,3))","v":"--"},{"$f":"IF($G80=\"\",\"--\",INDEX('lista do wyboru'!$B$3:$E$136,$G80,4))","v":"--"},0,null,{"$f":"IF(FALSE = ISERROR(MATCH(TRUE,OFFSET('lista do wyboru'!$H$3:$H$136,G79,0),0)),G79+MATCH(TRUE,OFFSET('lista do wyboru'!$H$3:$H$136,G79,0),0),\"\")","v":""}]
[{"$f":"IF($G81=\"\",\"--\",INDEX('lista do wyboru'!$B$3:$E$136,$G81,1))","v":"--"},{"$f":"IF($G81=\"\",\"--\",INDEX('lista do wyboru'!$B$3:$E$136,$G81,2))","v":"--"},{"$f":"IF($G81=\"\",\"--\",INDEX('lista do wyboru'!$B$3:$E$136,$G81,3))","v":"--"},{"$f":"IF($G81=\"\",\"--\",INDEX('lista do wyboru'!$B$3:$E$136,$G81,4))","v":"--"},0,null,{"$f":"IF(FALSE = ISERROR(MATCH(TRUE,OFFSET('lista do wyboru'!$H$3:$H$136,G80,0),0)),G80+MATCH(TRUE,OFFSET('lista do wyboru'!$H$3:$H$136,G80,0),0),\"\")","v":""}]
[{"$f":"IF($G82=\"\",\"--\",INDEX('lista do wyboru'!$B$3:$E$136,$G82,1))","v":"--"},{"$f":"IF($G82=\"\",\"--\",INDEX('lista do wyboru'!$B$3:$E$136,$G82,2))","v":"--"},{"$f":"IF($G82=\"\",\"--\",INDEX('lista do wyboru'!$B$3:$E$136,$G82,3))","v":"--"},{"$f":"IF($G82=\"\",\"--\",INDEX('lista do wyboru'!$B$3:$E$136,$G82,4))","v":"--"},0,null,{"$f":"IF(FALSE = ISERROR(MATCH(TRUE,OFFSET('lista do wyboru'!$H$3:$H$136,G81,0),0)),G81+MATCH(TRUE,OFFSET('lista do wyboru'!$H$3:$H$136,G81,0),0),\"\")","v":""}]
[{"$f":"IF($G83=\"\",\"--\",INDEX('lista do wyboru'!$B$3:$E$136,$G83,1))","v":"--"},{"$f":"IF($G83=\"\",\"--\",INDEX('lista do wyboru'!$B$3:$E$136,$G83,2))","v":"--"},{"$f":"IF($G83=\"\",\"--\",INDEX('lista do wyboru'!$B$3:$E$136,$G83,3))","v":"--"},{"$f":"IF($G83=\"\",\"--\",INDEX('lista do wyboru'!$B$3:$E$136,$G83,4))","v":"--"},0,null,{"$f":"IF(FALSE = ISERROR(MATCH(TRUE,OFFSET('lista do wyboru'!$H$3:$H$136,G82,0),0)),G82+MATCH(TRUE,OFFSET('lista do wyboru'!$H$3:$H$136,G82,0),0),\"\")","v":""}]
[{"$f":"IF($G84=\"\",\"--\",INDEX('lista do wyboru'!$B$3:$E$136,$G84,1))","v":"--"},{"$f":"IF($G84=\"\",\"--\",INDEX('lista do wyboru'!$B$3:$E$136,$G84,2))","v":"--"},{"$f":"IF($G84=\"\",\"--\",INDEX('lista do wyboru'!$B$3:$E$136,$G84,3))","v":"--"},{"$f":"IF($G84=\"\",\"--\",INDEX('lista do wyboru'!$B$3:$E$136,$G84,4))","v":"--"},0,null,{"$f":"IF(FALSE = ISERROR(MATCH(TRUE,OFFSET('lista do wyboru'!$H$3:$H$136,G83,0),0)),G83+MATCH(TRUE,OFFSET('lista do wyboru'!$H$3:$H$136,G83,0),0),\"\")","v":""}]
[{"$f":"IF($G85=\"\",\"--\",INDEX('lista do wyboru'!$B$3:$E$136,$G85,1))","v":"--"},{"$f":"IF($G85=\"\",\"--\",INDEX('lista do wyboru'!$B$3:$E$136,$G85,2))","v":"--"},{"$f":"IF($G85=\"\",\"--\",INDEX('lista do wyboru'!$B$3:$E$136,$G85,3))","v":"--"},{"$f":"IF($G85=\"\",\"--\",INDEX('lista do wyboru'!$B$3:$E$136,$G85,4))","v":"--"},0,null,{"$f":"IF(FALSE = ISERROR(MATCH(TRUE,OFFSET('lista do wyboru'!$H$3:$H$136,G84,0),0)),G84+MATCH(TRUE,OFFSET('lista do wyboru'!$H$3:$H$136,G84,0),0),\"\")","v":""}]
[{"$f":"IF($G86=\"\",\"--\",INDEX('lista do wyboru'!$B$3:$E$136,$G86,1))","v":"--"},{"$f":"IF($G86=\"\",\"--\",INDEX('lista do wyboru'!$B$3:$E$136,$G86,2))","v":"--"},{"$f":"IF($G86=\"\",\"--\",INDEX('lista do wyboru'!$B$3:$E$136,$G86,3))","v":"--"},{"$f":"IF($G86=\"\",\"--\",INDEX('lista do wyboru'!$B$3:$E$136,$G86,4))","v":"--"},0,null,{"$f":"IF(FALSE = ISERROR(MATCH(TRUE,OFFSET('lista do wyboru'!$H$3:$H$136,G85,0),0)),G85+MATCH(TRUE,OFFSET('lista do wyboru'!$H$3:$H$136,G85,0),0),\"\")","v":""}]
[{"$f":"IF($G87=\"\",\"--\",INDEX('lista do wyboru'!$B$3:$E$136,$G87,1))","v":"--"},{"$f":"IF($G87=\"\",\"--\",INDEX('lista do wyboru'!$B$3:$E$136,$G87,2))","v":"--"},{"$f":"IF($G87=\"\",\"--\",INDEX('lista do wyboru'!$B$3:$E$136,$G87,3))","v":"--"},{"$f":"IF($G87=\"\",\"--\",INDEX('lista do wyboru'!$B$3:$E$136,$G87,4))","v":"--"},0,null,{"$f":"IF(FALSE = ISERROR(MATCH(TRUE,OFFSET('lista do wyboru'!$H$3:$H$136,G86,0),0)),G86+MATCH(TRUE,OFFSET('lista do wyboru'!$H$3:$H$136,G86,0),0),\"\")","v":""}]
[{"$f":"IF($G88=\"\",\"--\",INDEX('lista do wyboru'!$B$3:$E$136,$G88,1))","v":"--"},{"$f":"IF($G88=\"\",\"--\",INDEX('lista do wyboru'!$B$3:$E$136,$G88,2))","v":"--"},{"$f":"IF($G88=\"\",\"--\",INDEX('lista do wyboru'!$B$3:$E$136,$G88,3))","v":"--"},{"$f":"IF($G88=\"\",\"--\",INDEX('lista do wyboru'!$B$3:$E$136,$G88,4))","v":"--"},0,null,{"$f":"IF(FALSE = ISERROR(MATCH(TRUE,OFFSET('lista do wyboru'!$H$3:$H$136,G87,0),0)),G87+MATCH(TRUE,OFFSET('lista do wyboru'!$H$3:$H$136,G87,0),0),\"\")","v":""}]
[{"$f":"IF($G89=\"\",\"--\",INDEX('lista do wyboru'!$B$3:$E$136,$G89,1))","v":"--"},{"$f":"IF($G89=\"\",\"--\",INDEX('lista do wyboru'!$B$3:$E$136,$G89,2))","v":"--"},{"$f":"IF($G89=\"\",\"--\",INDEX('lista do wyboru'!$B$3:$E$136,$G89,3))","v":"--"},{"$f":"IF($G89=\"\",\"--\",INDEX('lista do wyboru'!$B$3:$E$136,$G89,4))","v":"--"},0,null,{"$f":"IF(FALSE = ISERROR(MATCH(TRUE,OFFSET('lista do wyboru'!$H$3:$H$136,G88,0),0)),G88+MATCH(TRUE,OFFSET('lista do wyboru'!$H$3:$H$136,G88,0),0),\"\")","v":""}]
[{"$f":"IF($G90=\"\",\"--\",INDEX('lista do wyboru'!$B$3:$E$136,$G90,1))","v":"--"},{"$f":"IF($G90=\"\",\"--\",INDEX('lista do wyboru'!$B$3:$E$136,$G90,2))","v":"--"},{"$f":"IF($G90=\"\",\"--\",INDEX('lista do wyboru'!$B$3:$E$136,$G90,3))","v":"--"},{"$f":"IF($G90=\"\",\"--\",INDEX('lista do wyboru'!$B$3:$E$136,$G90,4))","v":"--"},0,null,{"$f":"IF(FALSE = ISERROR(MATCH(TRUE,OFFSET('lista do wyboru'!$H$3:$H$136,G89,0),0)),G89+MATCH(TRUE,OFFSET('lista do wyboru'!$H$3:$H$136,G89,0),0),\"\")","v":""}]
[{"$f":"IF($G91=\"\",\"--\",INDEX('lista do wyboru'!$B$3:$E$136,$G91,1))","v":"--"},{"$f":"IF($G91=\"\",\"--\",INDEX('lista do wyboru'!$B$3:$E$136,$G91,2))","v":"--"},{"$f":"IF($G91=\"\",\"--\",INDEX('lista do wyboru'!$B$3:$E$136,$G91,3))","v":"--"},{"$f":"IF($G91=\"\",\"--\",INDEX('lista do wyboru'!$B$3:$E$136,$G91,4))","v":"--"},0,null,{"$f":"IF(FALSE = ISERROR(MATCH(TRUE,OFFSET('lista do wyboru'!$H$3:$H$136,G90,0),0)),G90+MATCH(TRUE,OFFSET('lista do wyboru'!$H$3:$H$136,G90,0),0),\"\")","v":""}]
[{"$f":"IF($G92=\"\",\"--\",INDEX('lista do wyboru'!$B$3:$E$136,$G92,1))","v":"--"},{"$f":"IF($G92=\"\",\"--\",INDEX('lista do wyboru'!$B$3:$E$136,$G92,2))","v":"--"},{"$f":"IF($G92=\"\",\"--\",INDEX('lista do wyboru'!$B$3:$E$136,$G92,3))","v":"--"},{"$f":"IF($G92=\"\",\"--\",INDEX('lista do wyboru'!$B$3:$E$136,$G92,4))","v":"--"},0,null,{"$f":"IF(FALSE = ISERROR(MATCH(TRUE,OFFSET('lista do wyboru'!$H$3:$H$136,G91,0),0)),G91+MATCH(TRUE,OFFSET('lista do wyboru'!$H$3:$H$136,G91,0),0),\"\")","v":""}]
[{"$f":"IF($G93=\"\",\"--\",INDEX('lista do wyboru'!$B$3:$E$136,$G93,1))","v":"--"},{"$f":"IF($G93=\"\",\"--\",INDEX('lista do wyboru'!$B$3:$E$136,$G93,2))","v":"--"},{"$f":"IF($G93=\"\",\"--\",INDEX('lista do wyboru'!$B$3:$E$136,$G93,3))","v":"--"},{"$f":"IF($G93=\"\",\"--\",INDEX('lista do wyboru'!$B$3:$E$136,$G93,4))","v":"--"},0,null,{"$f":"IF(FALSE = ISERROR(MATCH(TRUE,OFFSET('lista do wyboru'!$H$3:$H$136,G92,0),0)),G92+MATCH(TRUE,OFFSET('lista do wyboru'!$H$3:$H$136,G92,0),0),\"\")","v":""}]
[{"$f":"IF($G94=\"\",\"--\",INDEX('lista do wyboru'!$B$3:$E$136,$G94,1))","v":"--"},{"$f":"IF($G94=\"\",\"--\",INDEX('lista do wyboru'!$B$3:$E$136,$G94,2))","v":"--"},{"$f":"IF($G94=\"\",\"--\",INDEX('lista do wyboru'!$B$3:$E$136,$G94,3))","v":"--"},{"$f":"IF($G94=\"\",\"--\",INDEX('lista do wyboru'!$B$3:$E$136,$G94,4))","v":"--"},0,null,{"$f":"IF(FALSE = ISERROR(MATCH(TRUE,OFFSET('lista do wyboru'!$H$3:$H$136,G93,0),0)),G93+MATCH(TRUE,OFFSET('lista do wyboru'!$H$3:$H$136,G93,0),0),\"\")","v":""}]
[{"$f":"IF($G95=\"\",\"--\",INDEX('lista do wyboru'!$B$3:$E$136,$G95,1))","v":"--"},{"$f":"IF($G95=\"\",\"--\",INDEX('lista do wyboru'!$B$3:$E$136,$G95,2))","v":"--"},{"$f":"IF($G95=\"\",\"--\",INDEX('lista do wyboru'!$B$3:$E$136,$G95,3))","v":"--"},{"$f":"IF($G95=\"\",\"--\",INDEX('lista do wyboru'!$B$3:$E$136,$G95,4))","v":"--"},0,null,{"$f":"IF(FALSE = ISERROR(MATCH(TRUE,OFFSET('lista do wyboru'!$H$3:$H$136,G94,0),0)),G94+MATCH(TRUE,OFFSET('lista do wyboru'!$H$3:$H$136,G94,0),0),\"\")","v":""}]
[{"$f":"IF($G96=\"\",\"--\",INDEX('lista do wyboru'!$B$3:$E$136,$G96,1))","v":"--"},{"$f":"IF($G96=\"\",\"--\",INDEX('lista do wyboru'!$B$3:$E$136,$G96,2))","v":"--"},{"$f":"IF($G96=\"\",\"--\",INDEX('lista do wyboru'!$B$3:$E$136,$G96,3))","v":"--"},{"$f":"IF($G96=\"\",\"--\",INDEX('lista do wyboru'!$B$3:$E$136,$G96,4))","v":"--"},0,null,{"$f":"IF(FALSE = ISERROR(MATCH(TRUE,OFFSET('lista do wyboru'!$H$3:$H$136,G95,0),0)),G95+MATCH(TRUE,OFFSET('lista do wyboru'!$H$3:$H$136,G95,0),0),\"\")","v":""}]
[{"$f":"IF($G97=\"\",\"--\",INDEX('lista do wyboru'!$B$3:$E$136,$G97,1))","v":"--"},{"$f":"IF($G97=\"\",\"--\",INDEX('lista do wyboru'!$B$3:$E$136,$G97,2))","v":"--"},{"$f":"IF($G97=\"\",\"--\",INDEX('lista do wyboru'!$B$3:$E$136,$G97,3))","v":"--"},{"$f":"IF($G97=\"\",\"--\",INDEX('lista do wyboru'!$B$3:$E$136,$G97,4))","v":"--"},0,null,{"$f":"IF(FALSE = ISERROR(MATCH(TRUE,OFFSET('lista do wyboru'!$H$3:$H$136,G96,0),0)),G96+MATCH(TRUE,OFFSET('lista do wyboru'!$H$3:$H$136,G96,0),0),\"\")","v":""}]
[{"$f":"IF($G98=\"\",\"--\",INDEX('lista do wyboru'!$B$3:$E$136,$G98,1))","v":"--"},{"$f":"IF($G98=\"\",\"--\",INDEX('lista do wyboru'!$B$3:$E$136,$G98,2))","v":"--"},{"$f":"IF($G98=\"\",\"--\",INDEX('lista do wyboru'!$B$3:$E$136,$G98,3))","v":"--"},{"$f":"IF($G98=\"\",\"--\",INDEX('lista do wyboru'!$B$3:$E$136,$G98,4))","v":"--"},0,null,{"$f":"IF(FALSE = ISERROR(MATCH(TRUE,OFFSET('lista do wyboru'!$H$3:$H$136,G97,0),0)),G97+MATCH(TRUE,OFFSET('lista do wyboru'!$H$3:$H$136,G97,0),0),\"\")","v":""}]
[{"$f":"IF($G99=\"\",\"--\",INDEX('lista do wyboru'!$B$3:$E$136,$G99,1))","v":"--"},{"$f":"IF($G99=\"\",\"--\",INDEX('lista do wyboru'!$B$3:$E$136,$G99,2))","v":"--"},{"$f":"IF($G99=\"\",\"--\",INDEX('lista do wyboru'!$B$3:$E$136,$G99,3))","v":"--"},{"$f":"IF($G99=\"\",\"--\",INDEX('lista do wyboru'!$B$3:$E$136,$G99,4))","v":"--"},0,null,{"$f":"IF(FALSE = ISERROR(MATCH(TRUE,OFFSET('lista do wyboru'!$H$3:$H$136,G98,0),0)),G98+MATCH(TRUE,OFFSET('lista do wyboru'!$H$3:$H$136,G98,0),0),\"\")","v":""}]
[{"$f":"IF($G100=\"\",\"--\",INDEX('lista do wyboru'!$B$3:$E$136,$G100,1))","v":"--"},{"$f":"IF($G100=\"\",\"--\",INDEX('lista do wyboru'!$B$3:$E$136,$G100,2))","v":"--"},{"$f":"IF($G100=\"\",\"--\",INDEX('lista do wyboru'!$B$3:$E$136,$G100,3))","v":"--"},{"$f":"IF($G100=\"\",\"--\",INDEX('lista do wyboru'!$B$3:$E$136,$G100,4))","v":"--"},0,null,{"$f":"IF(FALSE = ISERROR(MATCH(TRUE,OFFSET('lista do wyboru'!$H$3:$H$136,G99,0),0)),G99+MATCH(TRUE,OFFSET('lista do wyboru'!$H$3:$H$136,G99,0),0),\"\")","v":""}]
[{"$f":"IF($G101=\"\",\"--\",INDEX('lista do wyboru'!$B$3:$E$136,$G101,1))","v":"--"},{"$f":"IF($G101=\"\",\"--\",INDEX('lista do wyboru'!$B$3:$E$136,$G101,2))","v":"--"},{"$f":"IF($G101=\"\",\"--\",INDEX('lista do wyboru'!$B$3:$E$136,$G101,3))","v":"--"},{"$f":"IF($G101=\"\",\"--\",INDEX('lista do wyboru'!$B$3:$E$136,$G101,4))","v":"--"},0,null,{"$f":"IF(FALSE = ISERROR(MATCH(TRUE,OFFSET('lista do wyboru'!$H$3:$H$136,G100,0),0)),G100+MATCH(TRUE,OFFSET('lista do wyboru'!$H$3:$H$136,G100,0),0),\"\")","v":""}]
[{"$f":"IF($G102=\"\",\"--\",INDEX('lista do wyboru'!$B$3:$E$136,$G102,1))","v":"--"},{"$f":"IF($G102=\"\",\"--\",INDEX('lista do wyboru'!$B$3:$E$136,$G102,2))","v":"--"},{"$f":"IF($G102=\"\",\"--\",INDEX('lista do wyboru'!$B$3:$E$136,$G102,3))","v":"--"},{"$f":"IF($G102=\"\",\"--\",INDEX('lista do wyboru'!$B$3:$E$136,$G102,4))","v":"--"},0,null,{"$f":"IF(FALSE = ISERROR(MATCH(TRUE,OFFSET('lista do wyboru'!$H$3:$H$136,G101,0),0)),G101+MATCH(TRUE,OFFSET('lista do wyboru'!$H$3:$H$136,G101,0),0),\"\")","v":""}]
[{"$f":"IF($G103=\"\",\"--\",INDEX('lista do wyboru'!$B$3:$E$136,$G103,1))","v":"--"},{"$f":"IF($G103=\"\",\"--\",INDEX('lista do wyboru'!$B$3:$E$136,$G103,2))","v":"--"},{"$f":"IF($G103=\"\",\"--\",INDEX('lista do wyboru'!$B$3:$E$136,$G103,3))","v":"--"},{"$f":"IF($G103=\"\",\"--\",INDEX('lista do wyboru'!$B$3:$E$136,$G103,4))","v":"--"},0,null,{"$f":"IF(FALSE = ISERROR(MATCH(TRUE,OFFSET('lista do wyboru'!$H$3:$H$136,G102,0),0)),G102+MATCH(TRUE,OFFSET('lista do wyboru'!$H$3:$H$136,G102,0),0),\"\")","v":""}]
[{"$f":"IF($G104=\"\",\"--\",INDEX('lista do wyboru'!$B$3:$E$136,$G104,1))","v":"--"},{"$f":"IF($G104=\"\",\"--\",INDEX('lista do wyboru'!$B$3:$E$136,$G104,2))","v":"--"},{"$f":"IF($G104=\"\",\"--\",INDEX('lista do wyboru'!$B$3:$E$136,$G104,3))","v":"--"},{"$f":"IF($G104=\"\",\"--\",INDEX('lista do wyboru'!$B$3:$E$136,$G104,4))","v":"--"},0,null,{"$f":"IF(FALSE = ISERROR(MATCH(TRUE,OFFSET('lista do wyboru'!$H$3:$H$136,G103,0),0)),G103+MATCH(TRUE,OFFSET('lista do wyboru'!$H$3:$H$136,G103,0),0),\"\")","v":""}]
[{"$f":"IF($G105=\"\",\"--\",INDEX('lista do wyboru'!$B$3:$E$136,$G105,1))","v":"--"},{"$f":"IF($G105=\"\",\"--\",INDEX('lista do wyboru'!$B$3:$E$136,$G105,2))","v":"--"},{"$f":"IF($G105=\"\",\"--\",INDEX('lista do wyboru'!$B$3:$E$136,$G105,3))","v":"--"},{"$f":"IF($G105=\"\",\"--\",INDEX('lista do wyboru'!$B$3:$E$136,$G105,4))","v":"--"},0,null,{"$f":"IF(FALSE = ISERROR(MATCH(TRUE,OFFSET('lista do wyboru'!$H$3:$H$136,G104,0),0)),G104+MATCH(TRUE,OFFSET('lista do wyboru'!$H$3:$H$136,G104,0),0),\"\")","v":""}]
[{"$f":"IF($G106=\"\",\"--\",INDEX('lista do wyboru'!$B$3:$E$136,$G106,1))","v":"--"},{"$f":"IF($G106=\"\",\"--\",INDEX('lista do wyboru'!$B$3:$E$136,$G106,2))","v":"--"},{"$f":"IF($G106=\"\",\"--\",INDEX('lista do wyboru'!$B$3:$E$136,$G106,3))","v":"--"},{"$f":"IF($G106=\"\",\"--\",INDEX('lista do wyboru'!$B$3:$E$136,$G106,4))","v":"--"},0,null,{"$f":"IF(FALSE = ISERROR(MATCH(TRUE,OFFSET('lista do wyboru'!$H$3:$H$136,G105,0),0)),G105+MATCH(TRUE,OFFSET('lista do wyboru'!$H$3:$H$136,G105,0),0),\"\")","v":""}]
[{"$f":"IF($G107=\"\",\"--\",INDEX('lista do wyboru'!$B$3:$E$136,$G107,1))","v":"--"},{"$f":"IF($G107=\"\",\"--\",INDEX('lista do wyboru'!$B$3:$E$136,$G107,2))","v":"--"},{"$f":"IF($G107=\"\",\"--\",INDEX('lista do wyboru'!$B$3:$E$136,$G107,3))","v":"--"},{"$f":"IF($G107=\"\",\"--\",INDEX('lista do wyboru'!$B$3:$E$136,$G107,4))","v":"--"},0,null,{"$f":"IF(FALSE = ISERROR(MATCH(TRUE,OFFSET('lista do wyboru'!$H$3:$H$136,G106,0),0)),G106+MATCH(TRUE,OFFSET('lista do wyboru'!$H$3:$H$136,G106,0),0),\"\")","v":""}]
[{"$f":"IF($G108=\"\",\"--\",INDEX('lista do wyboru'!$B$3:$E$136,$G108,1))","v":"--"},{"$f":"IF($G108=\"\",\"--\",INDEX('lista do wyboru'!$B$3:$E$136,$G108,2))","v":"--"},{"$f":"IF($G108=\"\",\"--\",INDEX('lista do wyboru'!$B$3:$E$136,$G108,3))","v":"--"},{"$f":"IF($G108=\"\",\"--\",INDEX('lista do wyboru'!$B$3:$E$136,$G108,4))","v":"--"},0,null,{"$f":"IF(FALSE = ISERROR(MATCH(TRUE,OFFSET('lista do wyboru'!$H$3:$H$136,G107,0),0)),G107+MATCH(TRUE,OFFSET('lista do wyboru'!$H$3:$H$136,G107,0),0),\"\")","v":""}]
[{"$f":"IF($G109=\"\",\"--\",INDEX('lista do wyboru'!$B$3:$E$136,$G109,1))","v":"--"},{"$f":"IF($G109=\"\",\"--\",INDEX('lista do wyboru'!$B$3:$E$136,$G109,2))","v":"--"},{"$f":"IF($G109=\"\",\"--\",INDEX('lista do wyboru'!$B$3:$E$136,$G109,3))","v":"--"},{"$f":"IF($G109=\"\",\"--\",INDEX('lista do wyboru'!$B$3:$E$136,$G109,4))","v":"--"},0,null,{"$f":"IF(FALSE = ISERROR(MATCH(TRUE,OFFSET('lista do wyboru'!$H$3:$H$136,G108,0),0)),G108+MATCH(TRUE,OFFSET('lista do wyboru'!$H$3:$H$136,G108,0),0),\"\")","v":""}]
[{"$f":"IF($G110=\"\",\"--\",INDEX('lista do wyboru'!$B$3:$E$136,$G110,1))","v":"--"},{"$f":"IF($G110=\"\",\"--\",INDEX('lista do wyboru'!$B$3:$E$136,$G110,2))","v":"--"},{"$f":"IF($G110=\"\",\"--\",INDEX('lista do wyboru'!$B$3:$E$136,$G110,3))","v":"--"},{"$f":"IF($G110=\"\",\"--\",INDEX('lista do wyboru'!$B$3:$E$136,$G110,4))","v":"--"},0,null,{"$f":"IF(FALSE = ISERROR(MATCH(TRUE,OFFSET('lista do wyboru'!$H$3:$H$136,G109,0),0)),G109+MATCH(TRUE,OFFSET('lista do wyboru'!$H$3:$H$136,G109,0),0),\"\")","v":""}]
[{"$f":"IF($G111=\"\",\"--\",INDEX('lista do wyboru'!$B$3:$E$136,$G111,1))","v":"--"},{"$f":"IF($G111=\"\",\"--\",INDEX('lista do wyboru'!$B$3:$E$136,$G111,2))","v":"--"},{"$f":"IF($G111=\"\",\"--\",INDEX('lista do wyboru'!$B$3:$E$136,$G111,3))","v":"--"},{"$f":"IF($G111=\"\",\"--\",INDEX('lista do wyboru'!$B$3:$E$136,$G111,4))","v":"--"},0,null,{"$f":"IF(FALSE = ISERROR(MATCH(TRUE,OFFSET('lista do wyboru'!$H$3:$H$136,G110,0),0)),G110+MATCH(TRUE,OFFSET('lista do wyboru'!$H$3:$H$136,G110,0),0),\"\")","v":""}]
[{"$f":"IF($G112=\"\",\"--\",INDEX('lista do wyboru'!$B$3:$E$136,$G112,1))","v":"--"},{"$f":"IF($G112=\"\",\"--\",INDEX('lista do wyboru'!$B$3:$E$136,$G112,2))","v":"--"},{"$f":"IF($G112=\"\",\"--\",INDEX('lista do wyboru'!$B$3:$E$136,$G112,3))","v":"--"},{"$f":"IF($G112=\"\",\"--\",INDEX('lista do wyboru'!$B$3:$E$136,$G112,4))","v":"--"},0,null,{"$f":"IF(FALSE = ISERROR(MATCH(TRUE,OFFSET('lista do wyboru'!$H$3:$H$136,G111,0),0)),G111+MATCH(TRUE,OFFSET('lista do wyboru'!$H$3:$H$136,G111,0),0),\"\")","v":""}]
[{"$f":"IF($G113=\"\",\"--\",INDEX('lista do wyboru'!$B$3:$E$136,$G113,1))","v":"--"},{"$f":"IF($G113=\"\",\"--\",INDEX('lista do wyboru'!$B$3:$E$136,$G113,2))","v":"--"},{"$f":"IF($G113=\"\",\"--\",INDEX('lista do wyboru'!$B$3:$E$136,$G113,3))","v":"--"},{"$f":"IF($G113=\"\",\"--\",INDEX('lista do wyboru'!$B$3:$E$136,$G113,4))","v":"--"},0,null,{"$f":"IF(FALSE = ISERROR(MATCH(TRUE,OFFSET('lista do wyboru'!$H$3:$H$136,G112,0),0)),G112+MATCH(TRUE,OFFSET('lista do wyboru'!$H$3:$H$136,G112,0),0),\"\")","v":""}]
[{"$f":"IF($G114=\"\",\"--\",INDEX('lista do wyboru'!$B$3:$E$136,$G114,1))","v":"--"},{"$f":"IF($G114=\"\",\"--\",INDEX('lista do wyboru'!$B$3:$E$136,$G114,2))","v":"--"},{"$f":"IF($G114=\"\",\"--\",INDEX('lista do wyboru'!$B$3:$E$136,$G114,3))","v":"--"},{"$f":"IF($G114=\"\",\"--\",INDEX('lista do wyboru'!$B$3:$E$136,$G114,4))","v":"--"},0,null,{"$f":"IF(FALSE = ISERROR(MATCH(TRUE,OFFSET('lista do wyboru'!$H$3:$H$136,G113,0),0)),G113+MATCH(TRUE,OFFSET('lista do wyboru'!$H$3:$H$136,G113,0),0),\"\")","v":""}]
[{"$f":"IF($G115=\"\",\"--\",INDEX('lista do wyboru'!$B$3:$E$136,$G115,1))","v":"--"},{"$f":"IF($G115=\"\",\"--\",INDEX('lista do wyboru'!$B$3:$E$136,$G115,2))","v":"--"},{"$f":"IF($G115=\"\",\"--\",INDEX('lista do wyboru'!$B$3:$E$136,$G115,3))","v":"--"},{"$f":"IF($G115=\"\",\"--\",INDEX('lista do wyboru'!$B$3:$E$136,$G115,4))","v":"--"},0,null,{"$f":"IF(FALSE = ISERROR(MATCH(TRUE,OFFSET('lista do wyboru'!$H$3:$H$136,G114,0),0)),G114+MATCH(TRUE,OFFSET('lista do wyboru'!$H$3:$H$136,G114,0),0),\"\")","v":""}]
[{"$f":"IF($G116=\"\",\"--\",INDEX('lista do wyboru'!$B$3:$E$136,$G116,1))","v":"--"},{"$f":"IF($G116=\"\",\"--\",INDEX('lista do wyboru'!$B$3:$E$136,$G116,2))","v":"--"},{"$f":"IF($G116=\"\",\"--\",INDEX('lista do wyboru'!$B$3:$E$136,$G116,3))","v":"--"},{"$f":"IF($G116=\"\",\"--\",INDEX('lista do wyboru'!$B$3:$E$136,$G116,4))","v":"--"},0,null,{"$f":"IF(FALSE = ISERROR(MATCH(TRUE,OFFSET('lista do wyboru'!$H$3:$H$136,G115,0),0)),G115+MATCH(TRUE,OFFSET('lista do wyboru'!$H$3:$H$136,G115,0),0),\"\")","v":""}]
[{"$f":"IF($G117=\"\",\"--\",INDEX('lista do wyboru'!$B$3:$E$136,$G117,1))","v":"--"},{"$f":"IF($G117=\"\",\"--\",INDEX('lista do wyboru'!$B$3:$E$136,$G117,2))","v":"--"},{"$f":"IF($G117=\"\",\"--\",INDEX('lista do wyboru'!$B$3:$E$136,$G117,3))","v":"--"},{"$f":"IF($G117=\"\",\"--\",INDEX('lista do wyboru'!$B$3:$E$136,$G117,4))","v":"--"},0,null,{"$f":"IF(FALSE = ISERROR(MATCH(TRUE,OFFSET('lista do wyboru'!$H$3:$H$136,G116,0),0)),G116+MATCH(TRUE,OFFSET('lista do wyboru'!$H$3:$H$136,G116,0),0),\"\")","v":""}]
[{"$f":"IF($G118=\"\",\"--\",INDEX('lista do wyboru'!$B$3:$E$136,$G118,1))","v":"--"},{"$f":"IF($G118=\"\",\"--\",INDEX('lista do wyboru'!$B$3:$E$136,$G118,2))","v":"--"},{"$f":"IF($G118=\"\",\"--\",INDEX('lista do wyboru'!$B$3:$E$136,$G118,3))","v":"--"},{"$f":"IF($G118=\"\",\"--\",INDEX('lista do wyboru'!$B$3:$E$136,$G118,4))","v":"--"},0,null,{"$f":"IF(FALSE = ISERROR(MATCH(TRUE,OFFSET('lista do wyboru'!$H$3:$H$136,G117,0),0)),G117+MATCH(TRUE,OFFSET('lista do wyboru'!$H$3:$H$136,G117,0),0),\"\")","v":""}]
[{"$f":"IF($G119=\"\",\"--\",INDEX('lista do wyboru'!$B$3:$E$136,$G119,1))","v":"--"},{"$f":"IF($G119=\"\",\"--\",INDEX('lista do wyboru'!$B$3:$E$136,$G119,2))","v":"--"},{"$f":"IF($G119=\"\",\"--\",INDEX('lista do wyboru'!$B$3:$E$136,$G119,3))","v":"--"},{"$f":"IF($G119=\"\",\"--\",INDEX('lista do wyboru'!$B$3:$E$136,$G119,4))","v":"--"},0,null,{"$f":"IF(FALSE = ISERROR(MATCH(TRUE,OFFSET('lista do wyboru'!$H$3:$H$136,G118,0),0)),G118+MATCH(TRUE,OFFSET('lista do wyboru'!$H$3:$H$136,G118,0),0),\"\")","v":""}]
[{"$f":"IF($G120=\"\",\"--\",INDEX('lista do wyboru'!$B$3:$E$136,$G120,1))","v":"--"},{"$f":"IF($G120=\"\",\"--\",INDEX('lista do wyboru'!$B$3:$E$136,$G120,2))","v":"--"},{"$f":"IF($G120=\"\",\"--\",INDEX('lista do wyboru'!$B$3:$E$136,$G120,3))","v":"--"},{"$f":"IF($G120=\"\",\"--\",INDEX('lista do wyboru'!$B$3:$E$136,$G120,4))","v":"--"},0,null,{"$f":"IF(FALSE = ISERROR(MATCH(TRUE,OFFSET('lista do wyboru'!$H$3:$H$136,G119,0),0)),G119+MATCH(TRUE,OFFSET('lista do wyboru'!$H$3:$H$136,G119,0),0),\"\")","v":""}]
[{"$f":"IF($G121=\"\",\"--\",INDEX('lista do wyboru'!$B$3:$E$136,$G121,1))","v":"--"},{"$f":"IF($G121=\"\",\"--\",INDEX('lista do wyboru'!$B$3:$E$136,$G121,2))","v":"--"},{"$f":"IF($G121=\"\",\"--\",INDEX('lista do wyboru'!$B$3:$E$136,$G121,3))","v":"--"},{"$f":"IF($G121=\"\",\"--\",INDEX('lista do wyboru'!$B$3:$E$136,$G121,4))","v":"--"},0,null,{"$f":"IF(FALSE = ISERROR(MATCH(TRUE,OFFSET('lista do wyboru'!$H$3:$H$136,G120,0),0)),G120+MATCH(TRUE,OFFSET('lista do wyboru'!$H$3:$H$136,G120,0),0),\"\")","v":""}]
[{"$f":"IF($G122=\"\",\"--\",INDEX('lista do wyboru'!$B$3:$E$136,$G122,1))","v":"--"},{"$f":"IF($G122=\"\",\"--\",INDEX('lista do wyboru'!$B$3:$E$136,$G122,2))","v":"--"},{"$f":"IF($G122=\"\",\"--\",INDEX('lista do wyboru'!$B$3:$E$136,$G122,3))","v":"--"},{"$f":"IF($G122=\"\",\"--\",INDEX('lista do wyboru'!$B$3:$E$136,$G122,4))","v":"--"},0,null,{"$f":"IF(FALSE = ISERROR(MATCH(TRUE,OFFSET('lista do wyboru'!$H$3:$H$136,G121,0),0)),G121+MATCH(TRUE,OFFSET('lista do wyboru'!$H$3:$H$136,G121,0),0),\"\")","v":""}]
[{"$f":"IF($G123=\"\",\"--\",INDEX('lista do wyboru'!$B$3:$E$136,$G123,1))","v":"--"},{"$f":"IF($G123=\"\",\"--\",INDEX('lista do wyboru'!$B$3:$E$136,$G123,2))","v":"--"},{"$f":"IF($G123=\"\",\"--\",INDEX('lista do wyboru'!$B$3:$E$136,$G123,3))","v":"--"},{"$f":"IF($G123=\"\",\"--\",INDEX('lista do wyboru'!$B$3:$E$136,$G123,4))","v":"--"},0,null,{"$f":"IF(FALSE = ISERROR(MATCH(TRUE,OFFSET('lista do wyboru'!$H$3:$H$136,G122,0),0)),G122+MATCH(TRUE,OFFSET('lista do wyboru'!$H$3:$H$136,G122,0),0),\"\")","v":""}]
[{"$f":"IF($G124=\"\",\"--\",INDEX('lista do wyboru'!$B$3:$E$136,$G124,1))","v":"--"},{"$f":"IF($G124=\"\",\"--\",INDEX('lista do wyboru'!$B$3:$E$136,$G124,2))","v":"--"},{"$f":"IF($G124=\"\",\"--\",INDEX('lista do wyboru'!$B$3:$E$136,$G124,3))","v":"--"},{"$f":"IF($G124=\"\",\"--\",INDEX('lista do wyboru'!$B$3:$E$136,$G124,4))","v":"--"},0,null,{"$f":"IF(FALSE = ISERROR(MATCH(TRUE,OFFSET('lista do wyboru'!$H$3:$H$136,G123,0),0)),G123+MATCH(TRUE,OFFSET('lista do wyboru'!$H$3:$H$136,G123,0),0),\"\")","v":""}]
[{"$f":"IF($G125=\"\",\"--\",INDEX('lista do wyboru'!$B$3:$E$136,$G125,1))","v":"--"},{"$f":"IF($G125=\"\",\"--\",INDEX('lista do wyboru'!$B$3:$E$136,$G125,2))","v":"--"},{"$f":"IF($G125=\"\",\"--\",INDEX('lista do wyboru'!$B$3:$E$136,$G125,3))","v":"--"},{"$f":"IF($G125=\"\",\"--\",INDEX('lista do wyboru'!$B$3:$E$136,$G125,4))","v":"--"},0,null,{"$f":"IF(FALSE = ISERROR(MATCH(TRUE,OFFSET('lista do wyboru'!$H$3:$H$136,G124,0),0)),G124+MATCH(TRUE,OFFSET('lista do wyboru'!$H$3:$H$136,G124,0),0),\"\")","v":""}]
[{"$f":"IF($G126=\"\",\"--\",INDEX('lista do wyboru'!$B$3:$E$136,$G126,1))","v":"--"},{"$f":"IF($G126=\"\",\"--\",INDEX('lista do wyboru'!$B$3:$E$136,$G126,2))","v":"--"},{"$f":"IF($G126=\"\",\"--\",INDEX('lista do wyboru'!$B$3:$E$136,$G126,3))","v":"--"},{"$f":"IF($G126=\"\",\"--\",INDEX('lista do wyboru'!$B$3:$E$136,$G126,4))","v":"--"},0,null,{"$f":"IF(FALSE = ISERROR(MATCH(TRUE,OFFSET('lista do wyboru'!$H$3:$H$136,G125,0),0)),G125+MATCH(TRUE,OFFSET('lista do wyboru'!$H$3:$H$136,G125,0),0),\"\")","v":""}]
[{"$f":"IF($G127=\"\",\"--\",INDEX('lista do wyboru'!$B$3:$E$136,$G127,1))","v":"--"},{"$f":"IF($G127=\"\",\"--\",INDEX('lista do wyboru'!$B$3:$E$136,$G127,2))","v":"--"},{"$f":"IF($G127=\"\",\"--\",INDEX('lista do wyboru'!$B$3:$E$136,$G127,3))","v":"--"},{"$f":"IF($G127=\"\",\"--\",INDEX('lista do wyboru'!$B$3:$E$136,$G127,4))","v":"--"},0,null,{"$f":"IF(FALSE = ISERROR(MATCH(TRUE,OFFSET('lista do wyboru'!$H$3:$H$136,G126,0),0)),G126+MATCH(TRUE,OFFSET('lista do wyboru'!$H$3:$H$136,G126,0),0),\"\")","v":""}]
[{"$f":"IF($G128=\"\",\"--\",INDEX('lista do wyboru'!$B$3:$E$136,$G128,1))","v":"--"},{"$f":"IF($G128=\"\",\"--\",INDEX('lista do wyboru'!$B$3:$E$136,$G128,2))","v":"--"},{"$f":"IF($G128=\"\",\"--\",INDEX('lista do wyboru'!$B$3:$E$136,$G128,3))","v":"--"},{"$f":"IF($G128=\"\",\"--\",INDEX('lista do wyboru'!$B$3:$E$136,$G128,4))","v":"--"},0,null,{"$f":"IF(FALSE = ISERROR(MATCH(TRUE,OFFSET('lista do wyboru'!$H$3:$H$136,G127,0),0)),G127+MATCH(TRUE,OFFSET('lista do wyboru'!$H$3:$H$136,G127,0),0),\"\")","v":""}]
[{"$f":"IF($G129=\"\",\"--\",INDEX('lista do wyboru'!$B$3:$E$136,$G129,1))","v":"--"},{"$f":"IF($G129=\"\",\"--\",INDEX('lista do wyboru'!$B$3:$E$136,$G129,2))","v":"--"},{"$f":"IF($G129=\"\",\"--\",INDEX('lista do wyboru'!$B$3:$E$136,$G129,3))","v":"--"},{"$f":"IF($G129=\"\",\"--\",INDEX('lista do wyboru'!$B$3:$E$136,$G129,4))","v":"--"},0,null,{"$f":"IF(FALSE = ISERROR(MATCH(TRUE,OFFSET('lista do wyboru'!$H$3:$H$136,G128,0),0)),G128+MATCH(TRUE,OFFSET('lista do wyboru'!$H$3:$H$136,G128,0),0),\"\")","v":""}]
[{"$f":"IF($G130=\"\",\"--\",INDEX('lista do wyboru'!$B$3:$E$136,$G130,1))","v":"--"},{"$f":"IF($G130=\"\",\"--\",INDEX('lista do wyboru'!$B$3:$E$136,$G130,2))","v":"--"},{"$f":"IF($G130=\"\",\"--\",INDEX('lista do wyboru'!$B$3:$E$136,$G130,3))","v":"--"},{"$f":"IF($G130=\"\",\"--\",INDEX('lista do wyboru'!$B$3:$E$136,$G130,4))","v":"--"},0,null,{"$f":"IF(FALSE = ISERROR(MATCH(TRUE,OFFSET('lista do wyboru'!$H$3:$H$136,G129,0),0)),G129+MATCH(TRUE,OFFSET('lista do wyboru'!$H$3:$H$136,G129,0),0),\"\")","v":""}]
[{"$f":"IF($G131=\"\",\"--\",INDEX('lista do wyboru'!$B$3:$E$136,$G131,1))","v":"--"},{"$f":"IF($G131=\"\",\"--\",INDEX('lista do wyboru'!$B$3:$E$136,$G131,2))","v":"--"},{"$f":"IF($G131=\"\",\"--\",INDEX('lista do wyboru'!$B$3:$E$136,$G131,3))","v":"--"},{"$f":"IF($G131=\"\",\"--\",INDEX('lista do wyboru'!$B$3:$E$136,$G131,4))","v":"--"},0,null,{"$f":"IF(FALSE = ISERROR(MATCH(TRUE,OFFSET('lista do wyboru'!$H$3:$H$136,G130,0),0)),G130+MATCH(TRUE,OFFSET('lista do wyboru'!$H$3:$H$136,G130,0),0),\"\")","v":""}]
[{"$f":"IF($G132=\"\",\"--\",INDEX('lista do wyboru'!$B$3:$E$136,$G132,1))","v":"--"},{"$f":"IF($G132=\"\",\"--\",INDEX('lista do wyboru'!$B$3:$E$136,$G132,2))","v":"--"},{"$f":"IF($G132=\"\",\"--\",INDEX('lista do wyboru'!$B$3:$E$136,$G132,3))","v":"--"},{"$f":"IF($G132=\"\",\"--\",INDEX('lista do wyboru'!$B$3:$E$136,$G132,4))","v":"--"},0,null,{"$f":"IF(FALSE = ISERROR(MATCH(TRUE,OFFSET('lista do wyboru'!$H$3:$H$136,G131,0),0)),G131+MATCH(TRUE,OFFSET('lista do wyboru'!$H$3:$H$136,G131,0),0),\"\")","v":""}]
[{"$f":"IF($G133=\"\",\"--\",INDEX('lista do wyboru'!$B$3:$E$136,$G133,1))","v":"--"},{"$f":"IF($G133=\"\",\"--\",INDEX('lista do wyboru'!$B$3:$E$136,$G133,2))","v":"--"},{"$f":"IF($G133=\"\",\"--\",INDEX('lista do wyboru'!$B$3:$E$136,$G133,3))","v":"--"},{"$f":"IF($G133=\"\",\"--\",INDEX('lista do wyboru'!$B$3:$E$136,$G133,4))","v":"--"},{"$f":"IF(C133 = \"--\",0,D133*C133)","v":0},null,{"$f":"IF(FALSE = ISERROR(MATCH(TRUE,OFFSET('lista do wyboru'!$H$3:$H$136,G132,0),0)),G132+MATCH(TRUE,OFFSET('lista do wyboru'!$H$3:$H$136,G132,0),0),\"\")","v":""}]
[{"$f":"IF($G134=\"\",\"--\",INDEX('lista do wyboru'!$B$3:$E$136,$G134,1))","v":"--"},{"$f":"IF($G134=\"\",\"--\",INDEX('lista do wyboru'!$B$3:$E$136,$G134,2))","v":"--"},{"$f":"IF($G134=\"\",\"--\",INDEX('lista do wyboru'!$B$3:$E$136,$G134,3))","v":"--"},{"$f":"IF($G134=\"\",\"--\",INDEX('lista do wyboru'!$B$3:$E$136,$G134,4))","v":"--"},0,null,{"$f":"IF(FALSE = ISERROR(MATCH(TRUE,OFFSET('lista do wyboru'!$H$3:$H$136,G133,0),0)),G133+MATCH(TRUE,OFFSET('lista do wyboru'!$H$3:$H$136,G133,0),0),\"\")","v":""}]
[{"$f":"IF($G135=\"\",\"--\",INDEX('lista do wyboru'!$B$3:$E$136,$G135,1))","v":"--"},{"$f":"IF($G135=\"\",\"--\",INDEX('lista do wyboru'!$B$3:$E$136,$G135,2))","v":"--"},{"$f":"IF($G135=\"\",\"--\",INDEX('lista do wyboru'!$B$3:$E$136,$G135,3))","v":"--"},{"$f":"IF($G135=\"\",\"--\",INDEX('lista do wyboru'!$B$3:$E$136,$G135,4))","v":"--"},0,null,{"$f":"IF(FALSE = ISERROR(MATCH(TRUE,OFFSET('lista do wyboru'!$H$3:$H$136,G134,0),0)),G134+MATCH(TRUE,OFFSET('lista do wyboru'!$H$3:$H$136,G134,0),0),\"\")","v":""}]
[{"$f":"IF($G136=\"\",\"--\",INDEX('lista do wyboru'!$B$3:$E$136,$G136,1))","v":"--"},{"$f":"IF($G136=\"\",\"--\",INDEX('lista do wyboru'!$B$3:$E$136,$G136,2))","v":"--"},{"$f":"IF($G136=\"\",\"--\",INDEX('lista do wyboru'!$B$3:$E$136,$G136,3))","v":"--"},{"$f":"IF($G136=\"\",\"--\",INDEX('lista do wyboru'!$B$3:$E$136,$G136,4))","v":"--"},0,null,{"$f":"IF(FALSE = ISERROR(MATCH(TRUE,OFFSET('lista do wyboru'!$H$3:$H$136,G135,0),0)),G135+MATCH(TRUE,OFFSET('lista do wyboru'!$H$3:$H$136,G135,0),0),\"\")","v":""}]
[{"$f":"IF($G137=\"\",\"--\",INDEX('lista do wyboru'!$B$3:$E$136,$G137,1))","v":"--"},{"$f":"IF($G137=\"\",\"--\",INDEX('lista do wyboru'!$B$3:$E$136,$G137,2))","v":"--"},{"$f":"IF($G137=\"\",\"--\",INDEX('lista do wyboru'!$B$3:$E$136,$G137,3))","v":"--"},{"$f":"IF($G137=\"\",\"--\",INDEX('lista do wyboru'!$B$3:$E$136,$G137,4))","v":"--"},0,null,{"$f":"IF(FALSE = ISERROR(MATCH(TRUE,OFFSET('lista do wyboru'!$H$3:$H$136,G136,0),0)),G136+MATCH(TRUE,OFFSET('lista do wyboru'!$H$3:$H$136,G136,0),0),\"\")","v":""}]
[{"$f":"IF($G138=\"\",\"--\",INDEX('lista do wyboru'!$B$3:$E$136,$G138,1))","v":"--"},{"$f":"IF($G138=\"\",\"--\",INDEX('lista do wyboru'!$B$3:$E$136,$G138,2))","v":"--"},{"$f":"IF($G138=\"\",\"--\",INDEX('lista do wyboru'!$B$3:$E$136,$G138,3))","v":"--"},{"$f":"IF($G138=\"\",\"--\",INDEX('lista do wyboru'!$B$3:$E$136,$G138,4))","v":"--"},0,null,{"$f":"IF(FALSE = ISERROR(MATCH(TRUE,OFFSET('lista do wyboru'!$H$3:$H$136,G137,0),0)),G137+MATCH(TRUE,OFFSET('lista do wyboru'!$H$3:$H$136,G137,0),0),\"\")","v":""}]
[{"$f":"IF($G139=\"\",\"--\",INDEX('lista do wyboru'!$B$3:$E$136,$G139,1))","v":"--"},{"$f":"IF($G139=\"\",\"--\",INDEX('lista do wyboru'!$B$3:$E$136,$G139,2))","v":"--"},{"$f":"IF($G139=\"\",\"--\",INDEX('lista do wyboru'!$B$3:$E$136,$G139,3))","v":"--"},{"$f":"IF($G139=\"\",\"--\",INDEX('lista do wyboru'!$B$3:$E$136,$G139,4))","v":"--"},0,null,{"$f":"IF(FALSE = ISERROR(MATCH(TRUE,OFFSET('lista do wyboru'!$H$3:$H$136,G138,0),0)),G138+MATCH(TRUE,OFFSET('lista do wyboru'!$H$3:$H$136,G138,0),0),\"\")","v":""}]
[{"$f":"IF($G140=\"\",\"--\",INDEX('lista do wyboru'!$B$3:$E$136,$G140,1))","v":"--"},{"$f":"IF($G140=\"\",\"--\",INDEX('lista do wyboru'!$B$3:$E$136,$G140,2))","v":"--"},{"$f":"IF($G140=\"\",\"--\",INDEX('lista do wyboru'!$B$3:$E$136,$G140,3))","v":"--"},{"$f":"IF($G140=\"\",\"--\",INDEX('lista do wyboru'!$B$3:$E$136,$G140,4))","v":"--"},0,null,{"$f":"IF(FALSE = ISERROR(MATCH(TRUE,OFFSET('lista do wyboru'!$H$3:$H$136,G139,0),0)),G139+MATCH(TRUE,OFFSET('lista do wyboru'!$H$3:$H$136,G139,0),0),\"\")","v":""}]
[{"$f":"IF($G141=\"\",\"--\",INDEX('lista do wyboru'!$B$3:$E$136,$G141,1))","v":"--"},{"$f":"IF($G141=\"\",\"--\",INDEX('lista do wyboru'!$B$3:$E$136,$G141,2))","v":"--"},{"$f":"IF($G141=\"\",\"--\",INDEX('lista do wyboru'!$B$3:$E$136,$G141,3))","v":"--"},{"$f":"IF($G141=\"\",\"--\",INDEX('lista do wyboru'!$B$3:$E$136,$G141,4))","v":"--"},0,null,{"$f":"IF(FALSE = ISERROR(MATCH(TRUE,OFFSET('lista do wyboru'!$H$3:$H$136,G140,0),0)),G140+MATCH(TRUE,OFFSET('lista do wyboru'!$H$3:$H$136,G140,0),0),\"\")","v":""}]
[{"$f":"IF($G142=\"\",\"--\",INDEX('lista do wyboru'!$B$3:$E$136,$G142,1))","v":"--"},{"$f":"IF($G142=\"\",\"--\",INDEX('lista do wyboru'!$B$3:$E$136,$G142,2))","v":"--"},{"$f":"IF($G142=\"\",\"--\",INDEX('lista do wyboru'!$B$3:$E$136,$G142,3))","v":"--"},{"$f":"IF($G142=\"\",\"--\",INDEX('lista do wyboru'!$B$3:$E$136,$G142,4))","v":"--"},0,null,{"$f":"IF(FALSE = ISERROR(MATCH(TRUE,OFFSET('lista do wyboru'!$H$3:$H$136,G141,0),0)),G141+MATCH(TRUE,OFFSET('lista do wyboru'!$H$3:$H$136,G141,0),0),\"\")","v":""}]
[{"$f":"IF($G143=\"\",\"--\",INDEX('lista do wyboru'!$B$3:$E$136,$G143,1))","v":"--"},{"$f":"IF($G143=\"\",\"--\",INDEX('lista do wyboru'!$B$3:$E$136,$G143,2))","v":"--"},{"$f":"IF($G143=\"\",\"--\",INDEX('lista do wyboru'!$B$3:$E$136,$G143,3))","v":"--"},{"$f":"IF($G143=\"\",\"--\",INDEX('lista do wyboru'!$B$3:$E$136,$G143,4))","v":"--"},0,null,{"$f":"IF(FALSE = ISERROR(MATCH(TRUE,OFFSET('lista do wyboru'!$H$3:$H$136,G142,0),0)),G142+MATCH(TRUE,OFFSET('lista do wyboru'!$H$3:$H$136,G142,0),0),\"\")","v":""}]
[{"$f":"IF($G144=\"\",\"--\",INDEX('lista do wyboru'!$B$3:$E$136,$G144,1))","v":"--"},{"$f":"IF($G144=\"\",\"--\",INDEX('lista do wyboru'!$B$3:$E$136,$G144,2))","v":"--"},{"$f":"IF($G144=\"\",\"--\",INDEX('lista do wyboru'!$B$3:$E$136,$G144,3))","v":"--"},{"$f":"IF($G144=\"\",\"--\",INDEX('lista do wyboru'!$B$3:$E$136,$G144,4))","v":"--"},0,null,{"$f":"IF(FALSE = ISERROR(MATCH(TRUE,OFFSET('lista do wyboru'!$H$3:$H$136,G143,0),0)),G143+MATCH(TRUE,OFFSET('lista do wyboru'!$H$3:$H$136,G143,0),0),\"\")","v":""}]
[{"$f":"IF($G145=\"\",\"--\",INDEX('lista do wyboru'!$B$3:$E$136,$G145,1))","v":"--"},{"$f":"IF($G145=\"\",\"--\",INDEX('lista do wyboru'!$B$3:$E$136,$G145,2))","v":"--"},{"$f":"IF($G145=\"\",\"--\",INDEX('lista do wyboru'!$B$3:$E$136,$G145,3))","v":"--"},{"$f":"IF($G145=\"\",\"--\",INDEX('lista do wyboru'!$B$3:$E$136,$G145,4))","v":"--"},0,null,{"$f":"IF(FALSE = ISERROR(MATCH(TRUE,OFFSET('lista do wyboru'!$H$3:$H$136,G144,0),0)),G144+MATCH(TRUE,OFFSET('lista do wyboru'!$H$3:$H$136,G144,0),0),\"\")","v":""}]
[{"$f":"IF($G146=\"\",\"--\",INDEX('lista do wyboru'!$B$3:$E$136,$G146,1))","v":"--"},{"$f":"IF($G146=\"\",\"--\",INDEX('lista do wyboru'!$B$3:$E$136,$G146,2))","v":"--"},{"$f":"IF($G146=\"\",\"--\",INDEX('lista do wyboru'!$B$3:$E$136,$G146,3))","v":"--"},{"$f":"IF($G146=\"\",\"--\",INDEX('lista do wyboru'!$B$3:$E$136,$G146,4))","v":"--"},0,null,{"$f":"IF(FALSE = ISERROR(MATCH(TRUE,OFFSET('lista do wyboru'!$H$3:$H$136,G145,0),0)),G145+MATCH(TRUE,OFFSET('lista do wyboru'!$H$3:$H$136,G145,0),0),\"\")","v":""}]
[{"$f":"IF($G147=\"\",\"--\",INDEX('lista do wyboru'!$B$3:$E$136,$G147,1))","v":"--"},{"$f":"IF($G147=\"\",\"--\",INDEX('lista do wyboru'!$B$3:$E$136,$G147,2))","v":"--"},{"$f":"IF($G147=\"\",\"--\",INDEX('lista do wyboru'!$B$3:$E$136,$G147,3))","v":"--"},{"$f":"IF($G147=\"\",\"--\",INDEX('lista do wyboru'!$B$3:$E$136,$G147,4))","v":"--"},0,null,{"$f":"IF(FALSE = ISERROR(MATCH(TRUE,OFFSET('lista do wyboru'!$H$3:$H$136,G146,0),0)),G146+MATCH(TRUE,OFFSET('lista do wyboru'!$H$3:$H$136,G146,0),0),\"\")","v":""}]
[{"$f":"IF($G148=\"\",\"--\",INDEX('lista do wyboru'!$B$3:$E$136,$G148,1))","v":"--"},{"$f":"IF($G148=\"\",\"--\",INDEX('lista do wyboru'!$B$3:$E$136,$G148,2))","v":"--"},{"$f":"IF($G148=\"\",\"--\",INDEX('lista do wyboru'!$B$3:$E$136,$G148,3))","v":"--"},{"$f":"IF($G148=\"\",\"--\",INDEX('lista do wyboru'!$B$3:$E$136,$G148,4))","v":"--"},0,null,{"$f":"IF(FALSE = ISERROR(MATCH(TRUE,OFFSET('lista do wyboru'!$H$3:$H$136,G147,0),0)),G147+MATCH(TRUE,OFFSET('lista do wyboru'!$H$3:$H$136,G147,0),0),\"\")","v":""}]
[{"$f":"IF($G149=\"\",\"--\",INDEX('lista do wyboru'!$B$3:$E$136,$G149,1))","v":"--"},{"$f":"IF($G149=\"\",\"--\",INDEX('lista do wyboru'!$B$3:$E$136,$G149,2))","v":"--"},{"$f":"IF($G149=\"\",\"--\",INDEX('lista do wyboru'!$B$3:$E$136,$G149,3))","v":"--"},{"$f":"IF($G149=\"\",\"--\",INDEX('lista do wyboru'!$B$3:$E$136,$G149,4))","v":"--"},0,null,{"$f":"IF(FALSE = ISERROR(MATCH(TRUE,OFFSET('lista do wyboru'!$H$3:$H$136,G148,0),0)),G148+MATCH(TRUE,OFFSET('lista do wyboru'!$H$3:$H$136,G148,0),0),\"\")","v":""}]
[{"$f":"IF($G150=\"\",\"--\",INDEX('lista do wyboru'!$B$3:$E$136,$G150,1))","v":"--"},{"$f":"IF($G150=\"\",\"--\",INDEX('lista do wyboru'!$B$3:$E$136,$G150,2))","v":"--"},{"$f":"IF($G150=\"\",\"--\",INDEX('lista do wyboru'!$B$3:$E$136,$G150,3))","v":"--"},{"$f":"IF($G150=\"\",\"--\",INDEX('lista do wyboru'!$B$3:$E$136,$G150,4))","v":"--"},0,null,{"$f":"IF(FALSE = ISERROR(MATCH(TRUE,OFFSET('lista do wyboru'!$H$3:$H$136,G149,0),0)),G149+MATCH(TRUE,OFFSET('lista do wyboru'!$H$3:$H$136,G149,0),0),\"\")","v":""}]
[{"$f":"IF($G151=\"\",\"--\",INDEX('lista do wyboru'!$B$3:$E$136,$G151,1))","v":"--"},{"$f":"IF($G151=\"\",\"--\",INDEX('lista do wyboru'!$B$3:$E$136,$G151,2))","v":"--"},{"$f":"IF($G151=\"\",\"--\",INDEX('lista do wyboru'!$B$3:$E$136,$G151,3))","v":"--"},{"$f":"IF($G151=\"\",\"--\",INDEX('lista do wyboru'!$B$3:$E$136,$G151,4))","v":"--"},0,null,{"$f":"IF(FALSE = ISERROR(MATCH(TRUE,OFFSET('lista do wyboru'!$H$3:$H$136,G150,0),0)),G150+MATCH(TRUE,OFFSET('lista do wyboru'!$H$3:$H$136,G150,0),0),\"\")","v":""}]
[{"$f":"IF($G152=\"\",\"--\",INDEX('lista do wyboru'!$B$3:$E$136,$G152,1))","v":"--"},{"$f":"IF($G152=\"\",\"--\",INDEX('lista do wyboru'!$B$3:$E$136,$G152,2))","v":"--"},{"$f":"IF($G152=\"\",\"--\",INDEX('lista do wyboru'!$B$3:$E$136,$G152,3))","v":"--"},{"$f":"IF($G152=\"\",\"--\",INDEX('lista do wyboru'!$B$3:$E$136,$G152,4))","v":"--"},0,null,{"$f":"IF(FALSE = ISERROR(MATCH(TRUE,OFFSET('lista do wyboru'!$H$3:$H$136,G151,0),0)),G151+MATCH(TRUE,OFFSET('lista do wyboru'!$H$3:$H$136,G151,0),0),\"\")","v":""}]
[{"$f":"IF($G153=\"\",\"--\",INDEX('lista do wyboru'!$B$3:$E$136,$G153,1))","v":"--"},{"$f":"IF($G153=\"\",\"--\",INDEX('lista do wyboru'!$B$3:$E$136,$G153,2))","v":"--"},{"$f":"IF($G153=\"\",\"--\",INDEX('lista do wyboru'!$B$3:$E$136,$G153,3))","v":"--"},{"$f":"IF($G153=\"\",\"--\",INDEX('lista do wyboru'!$B$3:$E$136,$G153,4))","v":"--"},0,null,{"$f":"IF(FALSE = ISERROR(MATCH(TRUE,OFFSET('lista do wyboru'!$H$3:$H$136,G152,0),0)),G152+MATCH(TRUE,OFFSET('lista do wyboru'!$H$3:$H$136,G152,0),0),\"\")","v":""}]
[{"$f":"IF($G154=\"\",\"--\",INDEX('lista do wyboru'!$B$3:$E$136,$G154,1))","v":"--"},{"$f":"IF($G154=\"\",\"--\",INDEX('lista do wyboru'!$B$3:$E$136,$G154,2))","v":"--"},{"$f":"IF($G154=\"\",\"--\",INDEX('lista do wyboru'!$B$3:$E$136,$G154,3))","v":"--"},{"$f":"IF($G154=\"\",\"--\",INDEX('lista do wyboru'!$B$3:$E$136,$G154,4))","v":"--"},0,null,{"$f":"IF(FALSE = ISERROR(MATCH(TRUE,OFFSET('lista do wyboru'!$H$3:$H$136,G153,0),0)),G153+MATCH(TRUE,OFFSET('lista do wyboru'!$H$3:$H$136,G153,0),0),\"\")","v":""}]
[{"$f":"IF($G155=\"\",\"--\",INDEX('lista do wyboru'!$B$3:$E$136,$G155,1))","v":"--"},{"$f":"IF($G155=\"\",\"--\",INDEX('lista do wyboru'!$B$3:$E$136,$G155,2))","v":"--"},{"$f":"IF($G155=\"\",\"--\",INDEX('lista do wyboru'!$B$3:$E$136,$G155,3))","v":"--"},{"$f":"IF($G155=\"\",\"--\",INDEX('lista do wyboru'!$B$3:$E$136,$G155,4))","v":"--"},0,null,{"$f":"IF(FALSE = ISERROR(MATCH(TRUE,OFFSET('lista do wyboru'!$H$3:$H$136,G154,0),0)),G154+MATCH(TRUE,OFFSET('lista do wyboru'!$H$3:$H$136,G154,0),0),\"\")","v":""}]
[{"$f":"IF($G156=\"\",\"--\",INDEX('lista do wyboru'!$B$3:$E$136,$G156,1))","v":"--"},{"$f":"IF($G156=\"\",\"--\",INDEX('lista do wyboru'!$B$3:$E$136,$G156,2))","v":"--"},{"$f":"IF($G156=\"\",\"--\",INDEX('lista do wyboru'!$B$3:$E$136,$G156,3))","v":"--"},{"$f":"IF($G156=\"\",\"--\",INDEX('lista do wyboru'!$B$3:$E$136,$G156,4))","v":"--"},0,null,{"$f":"IF(FALSE = ISERROR(MATCH(TRUE,OFFSET('lista do wyboru'!$H$3:$H$136,G155,0),0)),G155+MATCH(TRUE,OFFSET('lista do wyboru'!$H$3:$H$136,G155,0),0),\"\")","v":""}]
[{"$f":"IF($G157=\"\",\"--\",INDEX('lista do wyboru'!$B$3:$E$136,$G157,1))","v":"--"},{"$f":"IF($G157=\"\",\"--\",INDEX('lista do wyboru'!$B$3:$E$136,$G157,2))","v":"--"},{"$f":"IF($G157=\"\",\"--\",INDEX('lista do wyboru'!$B$3:$E$136,$G157,3))","v":"--"},{"$f":"IF($G157=\"\",\"--\",INDEX('lista do wyboru'!$B$3:$E$136,$G157,4))","v":"--"},0,null,{"$f":"IF(FALSE = ISERROR(MATCH(TRUE,OFFSET('lista do wyboru'!$H$3:$H$136,G156,0),0)),G156+MATCH(TRUE,OFFSET('lista do wyboru'!$H$3:$H$136,G156,0),0),\"\")","v":""}]
[{"$f":"IF($G158=\"\",\"--\",INDEX('lista do wyboru'!$B$3:$E$136,$G158,1))","v":"--"},{"$f":"IF($G158=\"\",\"--\",INDEX('lista do wyboru'!$B$3:$E$136,$G158,2))","v":"--"},{"$f":"IF($G158=\"\",\"--\",INDEX('lista do wyboru'!$B$3:$E$136,$G158,3))","v":"--"},{"$f":"IF($G158=\"\",\"--\",INDEX('lista do wyboru'!$B$3:$E$136,$G158,4))","v":"--"},0,null,{"$f":"IF(FALSE = ISERROR(MATCH(TRUE,OFFSET('lista do wyboru'!$H$3:$H$136,G157,0),0)),G157+MATCH(TRUE,OFFSET('lista do wyboru'!$H$3:$H$136,G157,0),0),\"\")","v":""}]
[{"$f":"IF($G159=\"\",\"--\",INDEX('lista do wyboru'!$B$3:$E$136,$G159,1))","v":"--"},{"$f":"IF($G159=\"\",\"--\",INDEX('lista do wyboru'!$B$3:$E$136,$G159,2))","v":"--"},{"$f":"IF($G159=\"\",\"--\",INDEX('lista do wyboru'!$B$3:$E$136,$G159,3))","v":"--"},{"$f":"IF($G159=\"\",\"--\",INDEX('lista do wyboru'!$B$3:$E$136,$G159,4))","v":"--"},0,null,{"$f":"IF(FALSE = ISERROR(MATCH(TRUE,OFFSET('lista do wyboru'!$H$3:$H$136,G158,0),0)),G158+MATCH(TRUE,OFFSET('lista do wyboru'!$H$3:$H$136,G158,0),0),\"\")","v":""}]
[{"$f":"IF($G160=\"\",\"--\",INDEX('lista do wyboru'!$B$3:$E$136,$G160,1))","v":"--"},{"$f":"IF($G160=\"\",\"--\",INDEX('lista do wyboru'!$B$3:$E$136,$G160,2))","v":"--"},{"$f":"IF($G160=\"\",\"--\",INDEX('lista do wyboru'!$B$3:$E$136,$G160,3))","v":"--"},{"$f":"IF($G160=\"\",\"--\",INDEX('lista do wyboru'!$B$3:$E$136,$G160,4))","v":"--"},0,null,{"$f":"IF(FALSE = ISERROR(MATCH(TRUE,OFFSET('lista do wyboru'!$H$3:$H$136,G159,0),0)),G159+MATCH(TRUE,OFFSET('lista do wyboru'!$H$3:$H$136,G159,0),0),\"\")","v":""}]
[{"$f":"IF($G161=\"\",\"--\",INDEX('lista do wyboru'!$B$3:$E$136,$G161,1))","v":"--"},{"$f":"IF($G161=\"\",\"--\",INDEX('lista do wyboru'!$B$3:$E$136,$G161,2))","v":"--"},{"$f":"IF($G161=\"\",\"--\",INDEX('lista do wyboru'!$B$3:$E$136,$G161,3))","v":"--"},{"$f":"IF($G161=\"\",\"--\",INDEX('lista do wyboru'!$B$3:$E$136,$G161,4))","v":"--"},0,null,{"$f":"IF(FALSE = ISERROR(MATCH(TRUE,OFFSET('lista do wyboru'!$H$3:$H$136,G160,0),0)),G160+MATCH(TRUE,OFFSET('lista do wyboru'!$H$3:$H$136,G160,0),0),\"\")","v":""}]
[{"$f":"IF($G162=\"\",\"--\",INDEX('lista do wyboru'!$B$3:$E$136,$G162,1))","v":"--"},{"$f":"IF($G162=\"\",\"--\",INDEX('lista do wyboru'!$B$3:$E$136,$G162,2))","v":"--"},{"$f":"IF($G162=\"\",\"--\",INDEX('lista do wyboru'!$B$3:$E$136,$G162,3))","v":"--"},{"$f":"IF($G162=\"\",\"--\",INDEX('lista do wyboru'!$B$3:$E$136,$G162,4))","v":"--"},0,null,{"$f":"IF(FALSE = ISERROR(MATCH(TRUE,OFFSET('lista do wyboru'!$H$3:$H$136,G161,0),0)),G161+MATCH(TRUE,OFFSET('lista do wyboru'!$H$3:$H$136,G161,0),0),\"\")","v":""}]
[{"$f":"IF($G163=\"\",\"--\",INDEX('lista do wyboru'!$B$3:$E$136,$G163,1))","v":"--"},{"$f":"IF($G163=\"\",\"--\",INDEX('lista do wyboru'!$B$3:$E$136,$G163,2))","v":"--"},{"$f":"IF($G163=\"\",\"--\",INDEX('lista do wyboru'!$B$3:$E$136,$G163,3))","v":"--"},{"$f":"IF($G163=\"\",\"--\",INDEX('lista do wyboru'!$B$3:$E$136,$G163,4))","v":"--"},0,null,{"$f":"IF(FALSE = ISERROR(MATCH(TRUE,OFFSET('lista do wyboru'!$H$3:$H$136,G162,0),0)),G162+MATCH(TRUE,OFFSET('lista do wyboru'!$H$3:$H$136,G162,0),0),\"\")","v":""}]
[{"$f":"IF($G164=\"\",\"--\",INDEX('lista do wyboru'!$B$3:$E$136,$G164,1))","v":"--"},{"$f":"IF($G164=\"\",\"--\",INDEX('lista do wyboru'!$B$3:$E$136,$G164,2))","v":"--"},{"$f":"IF($G164=\"\",\"--\",INDEX('lista do wyboru'!$B$3:$E$136,$G164,3))","v":"--"},{"$f":"IF($G164=\"\",\"--\",INDEX('lista do wyboru'!$B$3:$E$136,$G164,4))","v":"--"},0,null,{"$f":"IF(FALSE = ISERROR(MATCH(TRUE,OFFSET('lista do wyboru'!$H$3:$H$136,G163,0),0)),G163+MATCH(TRUE,OFFSET('lista do wyboru'!$H$3:$H$136,G163,0),0),\"\")","v":""}]
[{"$f":"IF($G165=\"\",\"--\",INDEX('lista do wyboru'!$B$3:$E$136,$G165,1))","v":"--"},{"$f":"IF($G165=\"\",\"--\",INDEX('lista do wyboru'!$B$3:$E$136,$G165,2))","v":"--"},{"$f":"IF($G165=\"\",\"--\",INDEX('lista do wyboru'!$B$3:$E$136,$G165,3))","v":"--"},{"$f":"IF($G165=\"\",\"--\",INDEX('lista do wyboru'!$B$3:$E$136,$G165,4))","v":"--"},0,null,{"$f":"IF(FALSE = ISERROR(MATCH(TRUE,OFFSET('lista do wyboru'!$H$3:$H$136,G164,0),0)),G164+MATCH(TRUE,OFFSET('lista do wyboru'!$H$3:$H$136,G164,0),0),\"\")","v":""}]
[{"$f":"IF($G166=\"\",\"--\",INDEX('lista do wyboru'!$B$3:$E$136,$G166,1))","v":"--"},{"$f":"IF($G166=\"\",\"--\",INDEX('lista do wyboru'!$B$3:$E$136,$G166,2))","v":"--"},{"$f":"IF($G166=\"\",\"--\",INDEX('lista do wyboru'!$B$3:$E$136,$G166,3))","v":"--"},{"$f":"IF($G166=\"\",\"--\",INDEX('lista do wyboru'!$B$3:$E$136,$G166,4))","v":"--"},0,null,{"$f":"IF(FALSE = ISERROR(MATCH(TRUE,OFFSET('lista do wyboru'!$H$3:$H$136,G165,0),0)),G165+MATCH(TRUE,OFFSET('lista do wyboru'!$H$3:$H$136,G165,0),0),\"\")","v":""}]
[{"$f":"IF($G167=\"\",\"--\",INDEX('lista do wyboru'!$B$3:$E$136,$G167,1))","v":"--"},{"$f":"IF($G167=\"\",\"--\",INDEX('lista do wyboru'!$B$3:$E$136,$G167,2))","v":"--"},{"$f":"IF($G167=\"\",\"--\",INDEX('lista do wyboru'!$B$3:$E$136,$G167,3))","v":"--"},{"$f":"IF($G167=\"\",\"--\",INDEX('lista do wyboru'!$B$3:$E$136,$G167,4))","v":"--"},0,null,{"$f":"IF(FALSE = ISERROR(MATCH(TRUE,OFFSET('lista do wyboru'!$H$3:$H$136,G166,0),0)),G166+MATCH(TRUE,OFFSET('lista do wyboru'!$H$3:$H$136,G166,0),0),\"\")","v":""}]
[{"$f":"IF($G168=\"\",\"--\",INDEX('lista do wyboru'!$B$3:$E$136,$G168,1))","v":"--"},{"$f":"IF($G168=\"\",\"--\",INDEX('lista do wyboru'!$B$3:$E$136,$G168,2))","v":"--"},{"$f":"IF($G168=\"\",\"--\",INDEX('lista do wyboru'!$B$3:$E$136,$G168,3))","v":"--"},{"$f":"IF($G168=\"\",\"--\",INDEX('lista do wyboru'!$B$3:$E$136,$G168,4))","v":"--"},0,null,{"$f":"IF(FALSE = ISERROR(MATCH(TRUE,OFFSET('lista do wyboru'!$H$3:$H$136,G167,0),0)),G167+MATCH(TRUE,OFFSET('lista do wyboru'!$H$3:$H$136,G167,0),0),\"\")","v":""}]
[{"$f":"IF($G169=\"\",\"--\",INDEX('lista do wyboru'!$B$3:$E$136,$G169,1))","v":"--"},{"$f":"IF($G169=\"\",\"--\",INDEX('lista do wyboru'!$B$3:$E$136,$G169,2))","v":"--"},{"$f":"IF($G169=\"\",\"--\",INDEX('lista do wyboru'!$B$3:$E$136,$G169,3))","v":"--"},{"$f":"IF($G169=\"\",\"--\",INDEX('lista do wyboru'!$B$3:$E$136,$G169,4))","v":"--"},0,null,{"$f":"IF(FALSE = ISERROR(MATCH(TRUE,OFFSET('lista do wyboru'!$H$3:$H$136,G168,0),0)),G168+MATCH(TRUE,OFFSET('lista do wyboru'!$H$3:$H$136,G168,0),0),\"\")","v":""}]
[{"$f":"IF($G170=\"\",\"--\",INDEX('lista do wyboru'!$B$3:$E$136,$G170,1))","v":"--"},{"$f":"IF($G170=\"\",\"--\",INDEX('lista do wyboru'!$B$3:$E$136,$G170,2))","v":"--"},{"$f":"IF($G170=\"\",\"--\",INDEX('lista do wyboru'!$B$3:$E$136,$G170,3))","v":"--"},{"$f":"IF($G170=\"\",\"--\",INDEX('lista do wyboru'!$B$3:$E$136,$G170,4))","v":"--"},0,null,{"$f":"IF(FALSE = ISERROR(MATCH(TRUE,OFFSET('lista do wyboru'!$H$3:$H$136,G169,0),0)),G169+MATCH(TRUE,OFFSET('lista do wyboru'!$H$3:$H$136,G169,0),0),\"\")","v":""}]
[{"$f":"IF($G171=\"\",\"--\",INDEX('lista do wyboru'!$B$3:$E$136,$G171,1))","v":"--"},{"$f":"IF($G171=\"\",\"--\",INDEX('lista do wyboru'!$B$3:$E$136,$G171,2))","v":"--"},{"$f":"IF($G171=\"\",\"--\",INDEX('lista do wyboru'!$B$3:$E$136,$G171,3))","v":"--"},{"$f":"IF($G171=\"\",\"--\",INDEX('lista do wyboru'!$B$3:$E$136,$G171,4))","v":"--"},0,null,{"$f":"IF(FALSE = ISERROR(MATCH(TRUE,OFFSET('lista do wyboru'!$H$3:$H$136,G170,0),0)),G170+MATCH(TRUE,OFFSET('lista do wyboru'!$H$3:$H$136,G170,0),0),\"\")","v":""}]
[{"$f":"IF($G172=\"\",\"--\",INDEX('lista do wyboru'!$B$3:$E$136,$G172,1))","v":"--"},{"$f":"IF($G172=\"\",\"--\",INDEX('lista do wyboru'!$B$3:$E$136,$G172,2))","v":"--"},{"$f":"IF($G172=\"\",\"--\",INDEX('lista do wyboru'!$B$3:$E$136,$G172,3))","v":"--"},{"$f":"IF($G172=\"\",\"--\",INDEX('lista do wyboru'!$B$3:$E$136,$G172,4))","v":"--"},0,null,{"$f":"IF(FALSE = ISERROR(MATCH(TRUE,OFFSET('lista do wyboru'!$H$3:$H$136,G171,0),0)),G171+MATCH(TRUE,OFFSET('lista do wyboru'!$H$3:$H$136,G171,0),0),\"\")","v":""}]
[{"$f":"IF($G173=\"\",\"--\",INDEX('lista do wyboru'!$B$3:$E$136,$G173,1))","v":"--"},{"$f":"IF($G173=\"\",\"--\",INDEX('lista do wyboru'!$B$3:$E$136,$G173,2))","v":"--"},{"$f":"IF($G173=\"\",\"--\",INDEX('lista do wyboru'!$B$3:$E$136,$G173,3))","v":"--"},{"$f":"IF($G173=\"\",\"--\",INDEX('lista do wyboru'!$B$3:$E$136,$G173,4))","v":"--"},0,null,{"$f":"IF(FALSE = ISERROR(MATCH(TRUE,OFFSET('lista do wyboru'!$H$3:$H$136,G172,0),0)),G172+MATCH(TRUE,OFFSET('lista do wyboru'!$H$3:$H$136,G172,0),0),\"\")","v":""}]
[{"$f":"IF($G174=\"\",\"--\",INDEX('lista do wyboru'!$B$3:$E$136,$G174,1))","v":"--"},{"$f":"IF($G174=\"\",\"--\",INDEX('lista do wyboru'!$B$3:$E$136,$G174,2))","v":"--"},{"$f":"IF($G174=\"\",\"--\",INDEX('lista do wyboru'!$B$3:$E$136,$G174,3))","v":"--"},{"$f":"IF($G174=\"\",\"--\",INDEX('lista do wyboru'!$B$3:$E$136,$G174,4))","v":"--"},0,null,{"$f":"IF(FALSE = ISERROR(MATCH(TRUE,OFFSET('lista do wyboru'!$H$3:$H$136,G173,0),0)),G173+MATCH(TRUE,OFFSET('lista do wyboru'!$H$3:$H$136,G173,0),0),\"\")","v":""}]
[{"$f":"IF($G175=\"\",\"--\",INDEX('lista do wyboru'!$B$3:$E$136,$G175,1))","v":"--"},{"$f":"IF($G175=\"\",\"--\",INDEX('lista do wyboru'!$B$3:$E$136,$G175,2))","v":"--"},{"$f":"IF($G175=\"\",\"--\",INDEX('lista do wyboru'!$B$3:$E$136,$G175,3))","v":"--"},{"$f":"IF($G175=\"\",\"--\",INDEX('lista do wyboru'!$B$3:$E$136,$G175,4))","v":"--"},0,null,{"$f":"IF(FALSE = ISERROR(MATCH(TRUE,OFFSET('lista do wyboru'!$H$3:$H$136,G174,0),0)),G174+MATCH(TRUE,OFFSET('lista do wyboru'!$H$3:$H$136,G174,0),0),\"\")","v":""}]
[{"$f":"IF($G176=\"\",\"--\",INDEX('lista do wyboru'!$B$3:$E$136,$G176,1))","v":"--"},{"$f":"IF($G176=\"\",\"--\",INDEX('lista do wyboru'!$B$3:$E$136,$G176,2))","v":"--"},{"$f":"IF($G176=\"\",\"--\",INDEX('lista do wyboru'!$B$3:$E$136,$G176,3))","v":"--"},{"$f":"IF($G176=\"\",\"--\",INDEX('lista do wyboru'!$B$3:$E$136,$G176,4))","v":"--"},0,null,{"$f":"IF(FALSE = ISERROR(MATCH(TRUE,OFFSET('lista do wyboru'!$H$3:$H$136,G175,0),0)),G175+MATCH(TRUE,OFFSET('lista do wyboru'!$H$3:$H$136,G175,0),0),\"\")","v":""}]
[{"$f":"IF($G177=\"\",\"--\",INDEX('lista do wyboru'!$B$3:$E$136,$G177,1))","v":"--"},{"$f":"IF($G177=\"\",\"--\",INDEX('lista do wyboru'!$B$3:$E$136,$G177,2))","v":"--"},{"$f":"IF($G177=\"\",\"--\",INDEX('lista do wyboru'!$B$3:$E$136,$G177,3))","v":"--"},{"$f":"IF($G177=\"\",\"--\",INDEX('lista do wyboru'!$B$3:$E$136,$G177,4))","v":"--"},0,null,{"$f":"IF(FALSE = ISERROR(MATCH(TRUE,OFFSET('lista do wyboru'!$H$3:$H$136,G176,0),0)),G176+MATCH(TRUE,OFFSET('lista do wyboru'!$H$3:$H$136,G176,0),0),\"\")","v":""}]
[{"$f":"IF($G178=\"\",\"--\",INDEX('lista do wyboru'!$B$3:$E$136,$G178,1))","v":"--"},{"$f":"IF($G178=\"\",\"--\",INDEX('lista do wyboru'!$B$3:$E$136,$G178,2))","v":"--"},{"$f":"IF($G178=\"\",\"--\",INDEX('lista do wyboru'!$B$3:$E$136,$G178,3))","v":"--"},{"$f":"IF($G178=\"\",\"--\",INDEX('lista do wyboru'!$B$3:$E$136,$G178,4))","v":"--"},0,null,{"$f":"IF(FALSE = ISERROR(MATCH(TRUE,OFFSET('lista do wyboru'!$H$3:$H$136,G177,0),0)),G177+MATCH(TRUE,OFFSET('lista do wyboru'!$H$3:$H$136,G177,0),0),\"\")","v":""}]
[{"$f":"IF($G179=\"\",\"--\",INDEX('lista do wyboru'!$B$3:$E$136,$G179,1))","v":"--"},{"$f":"IF($G179=\"\",\"--\",INDEX('lista do wyboru'!$B$3:$E$136,$G179,2))","v":"--"},{"$f":"IF($G179=\"\",\"--\",INDEX('lista do wyboru'!$B$3:$E$136,$G179,3))","v":"--"},{"$f":"IF($G179=\"\",\"--\",INDEX('lista do wyboru'!$B$3:$E$136,$G179,4))","v":"--"},0,null,{"$f":"IF(FALSE = ISERROR(MATCH(TRUE,OFFSET('lista do wyboru'!$H$3:$H$136,G178,0),0)),G178+MATCH(TRUE,OFFSET('lista do wyboru'!$H$3:$H$136,G178,0),0),\"\")","v":""}]
[{"$f":"IF($G180=\"\",\"--\",INDEX('lista do wyboru'!$B$3:$E$136,$G180,1))","v":"--"},{"$f":"IF($G180=\"\",\"--\",INDEX('lista do wyboru'!$B$3:$E$136,$G180,2))","v":"--"},{"$f":"IF($G180=\"\",\"--\",INDEX('lista do wyboru'!$B$3:$E$136,$G180,3))","v":"--"},{"$f":"IF($G180=\"\",\"--\",INDEX('lista do wyboru'!$B$3:$E$136,$G180,4))","v":"--"},0,null,{"$f":"IF(FALSE = ISERROR(MATCH(TRUE,OFFSET('lista do wyboru'!$H$3:$H$136,G179,0),0)),G179+MATCH(TRUE,OFFSET('lista do wyboru'!$H$3:$H$136,G179,0),0),\"\")","v":""}]
[{"$f":"IF($G181=\"\",\"--\",INDEX('lista do wyboru'!$B$3:$E$136,$G181,1))","v":"--"},{"$f":"IF($G181=\"\",\"--\",INDEX('lista do wyboru'!$B$3:$E$136,$G181,2))","v":"--"},{"$f":"IF($G181=\"\",\"--\",INDEX('lista do wyboru'!$B$3:$E$136,$G181,3))","v":"--"},{"$f":"IF($G181=\"\",\"--\",INDEX('lista do wyboru'!$B$3:$E$136,$G181,4))","v":"--"},0,null,{"$f":"IF(FALSE = ISERROR(MATCH(TRUE,OFFSET('lista do wyboru'!$H$3:$H$136,G180,0),0)),G180+MATCH(TRUE,OFFSET('lista do wyboru'!$H$3:$H$136,G180,0),0),\"\")","v":""}]
[{"$f":"IF($G182=\"\",\"--\",INDEX('lista do wyboru'!$B$3:$E$136,$G182,1))","v":"--"},{"$f":"IF($G182=\"\",\"--\",INDEX('lista do wyboru'!$B$3:$E$136,$G182,2))","v":"--"},{"$f":"IF($G182=\"\",\"--\",INDEX('lista do wyboru'!$B$3:$E$136,$G182,3))","v":"--"},{"$f":"IF($G182=\"\",\"--\",INDEX('lista do wyboru'!$B$3:$E$136,$G182,4))","v":"--"},0,null,{"$f":"IF(FALSE = ISERROR(MATCH(TRUE,OFFSET('lista do wyboru'!$H$3:$H$136,G181,0),0)),G181+MATCH(TRUE,OFFSET('lista do wyboru'!$H$3:$H$136,G181,0),0),\"\")","v":""}]
[{"$f":"IF($G183=\"\",\"--\",INDEX('lista do wyboru'!$B$3:$E$136,$G183,1))","v":"--"},{"$f":"IF($G183=\"\",\"--\",INDEX('lista do wyboru'!$B$3:$E$136,$G183,2))","v":"--"},{"$f":"IF($G183=\"\",\"--\",INDEX('lista do wyboru'!$B$3:$E$136,$G183,3))","v":"--"},{"$f":"IF($G183=\"\",\"--\",INDEX('lista do wyboru'!$B$3:$E$136,$G183,4))","v":"--"},0,null,{"$f":"IF(FALSE = ISERROR(MATCH(TRUE,OFFSET('lista do wyboru'!$H$3:$H$136,G182,0),0)),G182+MATCH(TRUE,OFFSET('lista do wyboru'!$H$3:$H$136,G182,0),0),\"\")","v":""}]
[{"$f":"IF($G184=\"\",\"--\",INDEX('lista do wyboru'!$B$3:$E$136,$G184,1))","v":"--"},{"$f":"IF($G184=\"\",\"--\",INDEX('lista do wyboru'!$B$3:$E$136,$G184,2))","v":"--"},{"$f":"IF($G184=\"\",\"--\",INDEX('lista do wyboru'!$B$3:$E$136,$G184,3))","v":"--"},{"$f":"IF($G184=\"\",\"--\",INDEX('lista do wyboru'!$B$3:$E$136,$G184,4))","v":"--"},0,null,{"$f":"IF(FALSE = ISERROR(MATCH(TRUE,OFFSET('lista do wyboru'!$H$3:$H$136,G183,0),0)),G183+MATCH(TRUE,OFFSET('lista do wyboru'!$H$3:$H$136,G183,0),0),\"\")","v":""}]
[{"$f":"IF($G185=\"\",\"--\",INDEX('lista do wyboru'!$B$3:$E$136,$G185,1))","v":"--"},{"$f":"IF($G185=\"\",\"--\",INDEX('lista do wyboru'!$B$3:$E$136,$G185,2))","v":"--"},{"$f":"IF($G185=\"\",\"--\",INDEX('lista do wyboru'!$B$3:$E$136,$G185,3))","v":"--"},{"$f":"IF($G185=\"\",\"--\",INDEX('lista do wyboru'!$B$3:$E$136,$G185,4))","v":"--"},0,null,{"$f":"IF(FALSE = ISERROR(MATCH(TRUE,OFFSET('lista do wyboru'!$H$3:$H$136,G184,0),0)),G184+MATCH(TRUE,OFFSET('lista do wyboru'!$H$3:$H$136,G184,0),0),\"\")","v":""}]
[{"$f":"IF($G186=\"\",\"--\",INDEX('lista do wyboru'!$B$3:$E$136,$G186,1))","v":"--"},{"$f":"IF($G186=\"\",\"--\",INDEX('lista do wyboru'!$B$3:$E$136,$G186,2))","v":"--"},{"$f":"IF($G186=\"\",\"--\",INDEX('lista do wyboru'!$B$3:$E$136,$G186,3))","v":"--"},{"$f":"IF($G186=\"\",\"--\",INDEX('lista do wyboru'!$B$3:$E$136,$G186,4))","v":"--"},0,null,{"$f":"IF(FALSE = ISERROR(MATCH(TRUE,OFFSET('lista do wyboru'!$H$3:$H$136,G185,0),0)),G185+MATCH(TRUE,OFFSET('lista do wyboru'!$H$3:$H$136,G185,0),0),\"\")","v":""}]
[{"$f":"IF($G187=\"\",\"--\",INDEX('lista do wyboru'!$B$3:$E$136,$G187,1))","v":"--"},{"$f":"IF($G187=\"\",\"--\",INDEX('lista do wyboru'!$B$3:$E$136,$G187,2))","v":"--"},{"$f":"IF($G187=\"\",\"--\",INDEX('lista do wyboru'!$B$3:$E$136,$G187,3))","v":"--"},{"$f":"IF($G187=\"\",\"--\",INDEX('lista do wyboru'!$B$3:$E$136,$G187,4))","v":"--"},0,null,{"$f":"IF(FALSE = ISERROR(MATCH(TRUE,OFFSET('lista do wyboru'!$H$3:$H$136,G186,0),0)),G186+MATCH(TRUE,OFFSET('lista do wyboru'!$H$3:$H$136,G186,0),0),\"\")","v":""}]
[{"$f":"IF($G188=\"\",\"--\",INDEX('lista do wyboru'!$B$3:$E$136,$G188,1))","v":"--"},{"$f":"IF($G188=\"\",\"--\",INDEX('lista do wyboru'!$B$3:$E$136,$G188,2))","v":"--"},{"$f":"IF($G188=\"\",\"--\",INDEX('lista do wyboru'!$B$3:$E$136,$G188,3))","v":"--"},{"$f":"IF($G188=\"\",\"--\",INDEX('lista do wyboru'!$B$3:$E$136,$G188,4))","v":"--"},0,null,{"$f":"IF(FALSE = ISERROR(MATCH(TRUE,OFFSET('lista do wyboru'!$H$3:$H$136,G187,0),0)),G187+MATCH(TRUE,OFFSET('lista do wyboru'!$H$3:$H$136,G187,0),0),\"\")","v":""}]
[{"$f":"IF($G189=\"\",\"--\",INDEX('lista do wyboru'!$B$3:$E$136,$G189,1))","v":"--"},{"$f":"IF($G189=\"\",\"--\",INDEX('lista do wyboru'!$B$3:$E$136,$G189,2))","v":"--"},{"$f":"IF($G189=\"\",\"--\",INDEX('lista do wyboru'!$B$3:$E$136,$G189,3))","v":"--"},{"$f":"IF($G189=\"\",\"--\",INDEX('lista do wyboru'!$B$3:$E$136,$G189,4))","v":"--"},0,null,{"$f":"IF(FALSE = ISERROR(MATCH(TRUE,OFFSET('lista do wyboru'!$H$3:$H$136,G188,0),0)),G188+MATCH(TRUE,OFFSET('lista do wyboru'!$H$3:$H$136,G188,0),0),\"\")","v":""}]
[{"$f":"IF($G190=\"\",\"--\",INDEX('lista do wyboru'!$B$3:$E$136,$G190,1))","v":"--"},{"$f":"IF($G190=\"\",\"--\",INDEX('lista do wyboru'!$B$3:$E$136,$G190,2))","v":"--"},{"$f":"IF($G190=\"\",\"--\",INDEX('lista do wyboru'!$B$3:$E$136,$G190,3))","v":"--"},{"$f":"IF($G190=\"\",\"--\",INDEX('lista do wyboru'!$B$3:$E$136,$G190,4))","v":"--"},0,null,{"$f":"IF(FALSE = ISERROR(MATCH(TRUE,OFFSET('lista do wyboru'!$H$3:$H$136,G189,0),0)),G189+MATCH(TRUE,OFFSET('lista do wyboru'!$H$3:$H$136,G189,0),0),\"\")","v":""}]
[{"$f":"IF($G191=\"\",\"--\",INDEX('lista do wyboru'!$B$3:$E$136,$G191,1))","v":"--"},{"$f":"IF($G191=\"\",\"--\",INDEX('lista do wyboru'!$B$3:$E$136,$G191,2))","v":"--"},{"$f":"IF($G191=\"\",\"--\",INDEX('lista do wyboru'!$B$3:$E$136,$G191,3))","v":"--"},{"$f":"IF($G191=\"\",\"--\",INDEX('lista do wyboru'!$B$3:$E$136,$G191,4))","v":"--"},0,null,{"$f":"IF(FALSE = ISERROR(MATCH(TRUE,OFFSET('lista do wyboru'!$H$3:$H$136,G190,0),0)),G190+MATCH(TRUE,OFFSET('lista do wyboru'!$H$3:$H$136,G190,0),0),\"\")","v":""}]
[{"$f":"IF($G192=\"\",\"--\",INDEX('lista do wyboru'!$B$3:$E$136,$G192,1))","v":"--"},{"$f":"IF($G192=\"\",\"--\",INDEX('lista do wyboru'!$B$3:$E$136,$G192,2))","v":"--"},{"$f":"IF($G192=\"\",\"--\",INDEX('lista do wyboru'!$B$3:$E$136,$G192,3))","v":"--"},{"$f":"IF($G192=\"\",\"--\",INDEX('lista do wyboru'!$B$3:$E$136,$G192,4))","v":"--"},0,null,{"$f":"IF(FALSE = ISERROR(MATCH(TRUE,OFFSET('lista do wyboru'!$H$3:$H$136,G191,0),0)),G191+MATCH(TRUE,OFFSET('lista do wyboru'!$H$3:$H$136,G191,0),0),\"\")","v":""}]
[{"$f":"IF($G193=\"\",\"--\",INDEX('lista do wyboru'!$B$3:$E$136,$G193,1))","v":"--"},{"$f":"IF($G193=\"\",\"--\",INDEX('lista do wyboru'!$B$3:$E$136,$G193,2))","v":"--"},{"$f":"IF($G193=\"\",\"--\",INDEX('lista do wyboru'!$B$3:$E$136,$G193,3))","v":"--"},{"$f":"IF($G193=\"\",\"--\",INDEX('lista do wyboru'!$B$3:$E$136,$G193,4))","v":"--"},0,null,{"$f":"IF(FALSE = ISERROR(MATCH(TRUE,OFFSET('lista do wyboru'!$H$3:$H$136,G192,0),0)),G192+MATCH(TRUE,OFFSET('lista do wyboru'!$H$3:$H$136,G192,0),0),\"\")","v":""}]
[{"$f":"IF($G194=\"\",\"--\",INDEX('lista do wyboru'!$B$3:$E$136,$G194,1))","v":"--"},{"$f":"IF($G194=\"\",\"--\",INDEX('lista do wyboru'!$B$3:$E$136,$G194,2))","v":"--"},{"$f":"IF($G194=\"\",\"--\",INDEX('lista do wyboru'!$B$3:$E$136,$G194,3))","v":"--"},{"$f":"IF($G194=\"\",\"--\",INDEX('lista do wyboru'!$B$3:$E$136,$G194,4))","v":"--"},0,null,{"$f":"IF(FALSE = ISERROR(MATCH(TRUE,OFFSET('lista do wyboru'!$H$3:$H$136,G193,0),0)),G193+MATCH(TRUE,OFFSET('lista do wyboru'!$H$3:$H$136,G193,0),0),\"\")","v":""}]
[{"$f":"IF($G195=\"\",\"--\",INDEX('lista do wyboru'!$B$3:$E$136,$G195,1))","v":"--"},{"$f":"IF($G195=\"\",\"--\",INDEX('lista do wyboru'!$B$3:$E$136,$G195,2))","v":"--"},{"$f":"IF($G195=\"\",\"--\",INDEX('lista do wyboru'!$B$3:$E$136,$G195,3))","v":"--"},{"$f":"IF($G195=\"\",\"--\",INDEX('lista do wyboru'!$B$3:$E$136,$G195,4))","v":"--"},0,null,{"$f":"IF(FALSE = ISERROR(MATCH(TRUE,OFFSET('lista do wyboru'!$H$3:$H$136,G194,0),0)),G194+MATCH(TRUE,OFFSET('lista do wyboru'!$H$3:$H$136,G194,0),0),\"\")","v":""}]
[{"$f":"IF($G196=\"\",\"--\",INDEX('lista do wyboru'!$B$3:$E$136,$G196,1))","v":"--"},{"$f":"IF($G196=\"\",\"--\",INDEX('lista do wyboru'!$B$3:$E$136,$G196,2))","v":"--"},{"$f":"IF($G196=\"\",\"--\",INDEX('lista do wyboru'!$B$3:$E$136,$G196,3))","v":"--"},{"$f":"IF($G196=\"\",\"--\",INDEX('lista do wyboru'!$B$3:$E$136,$G196,4))","v":"--"},0,null,{"$f":"IF(FALSE = ISERROR(MATCH(TRUE,OFFSET('lista do wyboru'!$H$3:$H$136,G195,0),0)),G195+MATCH(TRUE,OFFSET('lista do wyboru'!$H$3:$H$136,G195,0),0),\"\")","v":""}]
[{"$f":"IF($G197=\"\",\"--\",INDEX('lista do wyboru'!$B$3:$E$136,$G197,1))","v":"--"},{"$f":"IF($G197=\"\",\"--\",INDEX('lista do wyboru'!$B$3:$E$136,$G197,2))","v":"--"},{"$f":"IF($G197=\"\",\"--\",INDEX('lista do wyboru'!$B$3:$E$136,$G197,3))","v":"--"},{"$f":"IF($G197=\"\",\"--\",INDEX('lista do wyboru'!$B$3:$E$136,$G197,4))","v":"--"},{"$f":"IF(C197 = \"--\",0,D197*C197)","v":0},null,{"$f":"IF(FALSE = ISERROR(MATCH(TRUE,OFFSET('lista do wyboru'!$H$3:$H$136,G196,0),0)),G196+MATCH(TRUE,OFFSET('lista do wyboru'!$H$3:$H$136,G196,0),0),\"\")","v":""}]
[{"$f":"IF($G198=\"\",\"--\",INDEX('lista do wyboru'!$B$3:$E$136,$G198,1))","v":"--"},{"$f":"IF($G198=\"\",\"--\",INDEX('lista do wyboru'!$B$3:$E$136,$G198,2))","v":"--"},{"$f":"IF($G198=\"\",\"--\",INDEX('lista do wyboru'!$B$3:$E$136,$G198,3))","v":"--"},{"$f":"IF($G198=\"\",\"--\",INDEX('lista do wyboru'!$B$3:$E$136,$G198,4))","v":"--"},0,null,{"$f":"IF(FALSE = ISERROR(MATCH(TRUE,OFFSET('lista do wyboru'!$H$3:$H$136,G197,0),0)),G197+MATCH(TRUE,OFFSET('lista do wyboru'!$H$3:$H$136,G197,0),0),\"\")","v":""}]
[{"$f":"IF($G199=\"\",\"--\",INDEX('lista do wyboru'!$B$3:$E$136,$G199,1))","v":"--"},{"$f":"IF($G199=\"\",\"--\",INDEX('lista do wyboru'!$B$3:$E$136,$G199,2))","v":"--"},{"$f":"IF($G199=\"\",\"--\",INDEX('lista do wyboru'!$B$3:$E$136,$G199,3))","v":"--"},{"$f":"IF($G199=\"\",\"--\",INDEX('lista do wyboru'!$B$3:$E$136,$G199,4))","v":"--"},0,null,{"$f":"IF(FALSE = ISERROR(MATCH(TRUE,OFFSET('lista do wyboru'!$H$3:$H$136,G198,0),0)),G198+MATCH(TRUE,OFFSET('lista do wyboru'!$H$3:$H$136,G198,0),0),\"\")","v":""}]
[{"$f":"IF($G200=\"\",\"--\",INDEX('lista do wyboru'!$B$3:$E$136,$G200,1))","v":"--"},{"$f":"IF($G200=\"\",\"--\",INDEX('lista do wyboru'!$B$3:$E$136,$G200,2))","v":"--"},{"$f":"IF($G200=\"\",\"--\",INDEX('lista do wyboru'!$B$3:$E$136,$G200,3))","v":"--"},{"$f":"IF($G200=\"\",\"--\",INDEX('lista do wyboru'!$B$3:$E$136,$G200,4))","v":"--"},0,null,{"$f":"IF(FALSE = ISERROR(MATCH(TRUE,OFFSET('lista do wyboru'!$H$3:$H$136,G199,0),0)),G199+MATCH(TRUE,OFFSET('lista do wyboru'!$H$3:$H$136,G199,0),0),\"\")","v":""}]
[{"$f":"IF($G201=\"\",\"--\",INDEX('lista do wyboru'!$B$3:$E$136,$G201,1))","v":"--"},{"$f":"IF($G201=\"\",\"--\",INDEX('lista do wyboru'!$B$3:$E$136,$G201,2))","v":"--"},{"$f":"IF($G201=\"\",\"--\",INDEX('lista do wyboru'!$B$3:$E$136,$G201,3))","v":"--"},{"$f":"IF($G201=\"\",\"--\",INDEX('lista do wyboru'!$B$3:$E$136,$G201,4))","v":"--"},0,null,{"$f":"IF(FALSE = ISERROR(MATCH(TRUE,OFFSET('lista do wyboru'!$H$3:$H$136,G200,0),0)),G200+MATCH(TRUE,OFFSET('lista do wyboru'!$H$3:$H$136,G200,0),0),\"\")","v":""}]
[{"$f":"IF($G202=\"\",\"--\",INDEX('lista do wyboru'!$B$3:$E$136,$G202,1))","v":"--"},{"$f":"IF($G202=\"\",\"--\",INDEX('lista do wyboru'!$B$3:$E$136,$G202,2))","v":"--"},{"$f":"IF($G202=\"\",\"--\",INDEX('lista do wyboru'!$B$3:$E$136,$G202,3))","v":"--"},{"$f":"IF($G202=\"\",\"--\",INDEX('lista do wyboru'!$B$3:$E$136,$G202,4))","v":"--"},0,null,{"$f":"IF(FALSE = ISERROR(MATCH(TRUE,OFFSET('lista do wyboru'!$H$3:$H$136,G201,0),0)),G201+MATCH(TRUE,OFFSET('lista do wyboru'!$H$3:$H$136,G201,0),0),\"\")","v":""}]
[{"$f":"IF($G203=\"\",\"--\",INDEX('lista do wyboru'!$B$3:$E$136,$G203,1))","v":"--"},{"$f":"IF($G203=\"\",\"--\",INDEX('lista do wyboru'!$B$3:$E$136,$G203,2))","v":"--"},{"$f":"IF($G203=\"\",\"--\",INDEX('lista do wyboru'!$B$3:$E$136,$G203,3))","v":"--"},{"$f":"IF($G203=\"\",\"--\",INDEX('lista do wyboru'!$B$3:$E$136,$G203,4))","v":"--"},0,null,{"$f":"IF(FALSE = ISERROR(MATCH(TRUE,OFFSET('lista do wyboru'!$H$3:$H$136,G202,0),0)),G202+MATCH(TRUE,OFFSET('lista do wyboru'!$H$3:$H$136,G202,0),0),\"\")","v":""}]
[{"$f":"IF($G204=\"\",\"--\",INDEX('lista do wyboru'!$B$3:$E$136,$G204,1))","v":"--"},{"$f":"IF($G204=\"\",\"--\",INDEX('lista do wyboru'!$B$3:$E$136,$G204,2))","v":"--"},{"$f":"IF($G204=\"\",\"--\",INDEX('lista do wyboru'!$B$3:$E$136,$G204,3))","v":"--"},{"$f":"IF($G204=\"\",\"--\",INDEX('lista do wyboru'!$B$3:$E$136,$G204,4))","v":"--"},0,null,{"$f":"IF(FALSE = ISERROR(MATCH(TRUE,OFFSET('lista do wyboru'!$H$3:$H$136,G203,0),0)),G203+MATCH(TRUE,OFFSET('lista do wyboru'!$H$3:$H$136,G203,0),0),\"\")","v":""}]
[{"$f":"IF($G205=\"\",\"--\",INDEX('lista do wyboru'!$B$3:$E$136,$G205,1))","v":"--"},{"$f":"IF($G205=\"\",\"--\",INDEX('lista do wyboru'!$B$3:$E$136,$G205,2))","v":"--"},{"$f":"IF($G205=\"\",\"--\",INDEX('lista do wyboru'!$B$3:$E$136,$G205,3))","v":"--"},{"$f":"IF($G205=\"\",\"--\",INDEX('lista do wyboru'!$B$3:$E$136,$G205,4))","v":"--"},0,null,{"$f":"IF(FALSE = ISERROR(MATCH(TRUE,OFFSET('lista do wyboru'!$H$3:$H$136,G204,0),0)),G204+MATCH(TRUE,OFFSET('lista do wyboru'!$H$3:$H$136,G204,0),0),\"\")","v":""}]
[{"$f":"IF($G206=\"\",\"--\",INDEX('lista do wyboru'!$B$3:$E$136,$G206,1))","v":"--"},{"$f":"IF($G206=\"\",\"--\",INDEX('lista do wyboru'!$B$3:$E$136,$G206,2))","v":"--"},{"$f":"IF($G206=\"\",\"--\",INDEX('lista do wyboru'!$B$3:$E$136,$G206,3))","v":"--"},{"$f":"IF($G206=\"\",\"--\",INDEX('lista do wyboru'!$B$3:$E$136,$G206,4))","v":"--"},0,null,{"$f":"IF(FALSE = ISERROR(MATCH(TRUE,OFFSET('lista do wyboru'!$H$3:$H$136,G205,0),0)),G205+MATCH(TRUE,OFFSET('lista do wyboru'!$H$3:$H$136,G205,0),0),\"\")","v":""}]
[{"$f":"IF($G207=\"\",\"--\",INDEX('lista do wyboru'!$B$3:$E$136,$G207,1))","v":"--"},{"$f":"IF($G207=\"\",\"--\",INDEX('lista do wyboru'!$B$3:$E$136,$G207,2))","v":"--"},{"$f":"IF($G207=\"\",\"--\",INDEX('lista do wyboru'!$B$3:$E$136,$G207,3))","v":"--"},{"$f":"IF($G207=\"\",\"--\",INDEX('lista do wyboru'!$B$3:$E$136,$G207,4))","v":"--"},0,null,{"$f":"IF(FALSE = ISERROR(MATCH(TRUE,OFFSET('lista do wyboru'!$H$3:$H$136,G206,0),0)),G206+MATCH(TRUE,OFFSET('lista do wyboru'!$H$3:$H$136,G206,0),0),\"\")","v":""}]
[{"$f":"IF($G208=\"\",\"--\",INDEX('lista do wyboru'!$B$3:$E$136,$G208,1))","v":"--"},{"$f":"IF($G208=\"\",\"--\",INDEX('lista do wyboru'!$B$3:$E$136,$G208,2))","v":"--"},{"$f":"IF($G208=\"\",\"--\",INDEX('lista do wyboru'!$B$3:$E$136,$G208,3))","v":"--"},{"$f":"IF($G208=\"\",\"--\",INDEX('lista do wyboru'!$B$3:$E$136,$G208,4))","v":"--"},0,null,{"$f":"IF(FALSE = ISERROR(MATCH(TRUE,OFFSET('lista do wyboru'!$H$3:$H$136,G207,0),0)),G207+MATCH(TRUE,OFFSET('lista do wyboru'!$H$3:$H$136,G207,0),0),\"\")","v":""}]
[{"$f":"IF($G209=\"\",\"--\",INDEX('lista do wyboru'!$B$3:$E$136,$G209,1))","v":"--"},{"$f":"IF($G209=\"\",\"--\",INDEX('lista do wyboru'!$B$3:$E$136,$G209,2))","v":"--"},{"$f":"IF($G209=\"\",\"--\",INDEX('lista do wyboru'!$B$3:$E$136,$G209,3))","v":"--"},{"$f":"IF($G209=\"\",\"--\",INDEX('lista do wyboru'!$B$3:$E$136,$G209,4))","v":"--"},0,null,{"$f":"IF(FALSE = ISERROR(MATCH(TRUE,OFFSET('lista do wyboru'!$H$3:$H$136,G208,0),0)),G208+MATCH(TRUE,OFFSET('lista do wyboru'!$H$3:$H$136,G208,0),0),\"\")","v":""}]
[{"$f":"IF($G210=\"\",\"--\",INDEX('lista do wyboru'!$B$3:$E$136,$G210,1))","v":"--"},{"$f":"IF($G210=\"\",\"--\",INDEX('lista do wyboru'!$B$3:$E$136,$G210,2))","v":"--"},{"$f":"IF($G210=\"\",\"--\",INDEX('lista do wyboru'!$B$3:$E$136,$G210,3))","v":"--"},{"$f":"IF($G210=\"\",\"--\",INDEX('lista do wyboru'!$B$3:$E$136,$G210,4))","v":"--"},0,null,{"$f":"IF(FALSE = ISERROR(MATCH(TRUE,OFFSET('lista do wyboru'!$H$3:$H$136,G209,0),0)),G209+MATCH(TRUE,OFFSET('lista do wyboru'!$H$3:$H$136,G209,0),0),\"\")","v":""}]
[{"$f":"IF($G211=\"\",\"--\",INDEX('lista do wyboru'!$B$3:$E$136,$G211,1))","v":"--"},{"$f":"IF($G211=\"\",\"--\",INDEX('lista do wyboru'!$B$3:$E$136,$G211,2))","v":"--"},{"$f":"IF($G211=\"\",\"--\",INDEX('lista do wyboru'!$B$3:$E$136,$G211,3))","v":"--"},{"$f":"IF($G211=\"\",\"--\",INDEX('lista do wyboru'!$B$3:$E$136,$G211,4))","v":"--"},0,null,{"$f":"IF(FALSE = ISERROR(MATCH(TRUE,OFFSET('lista do wyboru'!$H$3:$H$136,G210,0),0)),G210+MATCH(TRUE,OFFSET('lista do wyboru'!$H$3:$H$136,G210,0),0),\"\")","v":""}]
[{"$f":"IF($G212=\"\",\"--\",INDEX('lista do wyboru'!$B$3:$E$136,$G212,1))","v":"--"},{"$f":"IF($G212=\"\",\"--\",INDEX('lista do wyboru'!$B$3:$E$136,$G212,2))","v":"--"},{"$f":"IF($G212=\"\",\"--\",INDEX('lista do wyboru'!$B$3:$E$136,$G212,3))","v":"--"},{"$f":"IF($G212=\"\",\"--\",INDEX('lista do wyboru'!$B$3:$E$136,$G212,4))","v":"--"},0,null,{"$f":"IF(FALSE = ISERROR(MATCH(TRUE,OFFSET('lista do wyboru'!$H$3:$H$136,G211,0),0)),G211+MATCH(TRUE,OFFSET('lista do wyboru'!$H$3:$H$136,G211,0),0),\"\")","v":""}]
[{"$f":"IF($G213=\"\",\"--\",INDEX('lista do wyboru'!$B$3:$E$136,$G213,1))","v":"--"},{"$f":"IF($G213=\"\",\"--\",INDEX('lista do wyboru'!$B$3:$E$136,$G213,2))","v":"--"},{"$f":"IF($G213=\"\",\"--\",INDEX('lista do wyboru'!$B$3:$E$136,$G213,3))","v":"--"},{"$f":"IF($G213=\"\",\"--\",INDEX('lista do wyboru'!$B$3:$E$136,$G213,4))","v":"--"},0,null,{"$f":"IF(FALSE = ISERROR(MATCH(TRUE,OFFSET('lista do wyboru'!$H$3:$H$136,G212,0),0)),G212+MATCH(TRUE,OFFSET('lista do wyboru'!$H$3:$H$136,G212,0),0),\"\")","v":""}]
[{"$f":"IF($G214=\"\",\"--\",INDEX('lista do wyboru'!$B$3:$E$136,$G214,1))","v":"--"},{"$f":"IF($G214=\"\",\"--\",INDEX('lista do wyboru'!$B$3:$E$136,$G214,2))","v":"--"},{"$f":"IF($G214=\"\",\"--\",INDEX('lista do wyboru'!$B$3:$E$136,$G214,3))","v":"--"},{"$f":"IF($G214=\"\",\"--\",INDEX('lista do wyboru'!$B$3:$E$136,$G214,4))","v":"--"},0,null,{"$f":"IF(FALSE = ISERROR(MATCH(TRUE,OFFSET('lista do wyboru'!$H$3:$H$136,G213,0),0)),G213+MATCH(TRUE,OFFSET('lista do wyboru'!$H$3:$H$136,G213,0),0),\"\")","v":""}]
[{"$f":"IF($G215=\"\",\"--\",INDEX('lista do wyboru'!$B$3:$E$136,$G215,1))","v":"--"},{"$f":"IF($G215=\"\",\"--\",INDEX('lista do wyboru'!$B$3:$E$136,$G215,2))","v":"--"},{"$f":"IF($G215=\"\",\"--\",INDEX('lista do wyboru'!$B$3:$E$136,$G215,3))","v":"--"},{"$f":"IF($G215=\"\",\"--\",INDEX('lista do wyboru'!$B$3:$E$136,$G215,4))","v":"--"},0,null,{"$f":"IF(FALSE = ISERROR(MATCH(TRUE,OFFSET('lista do wyboru'!$H$3:$H$136,G214,0),0)),G214+MATCH(TRUE,OFFSET('lista do wyboru'!$H$3:$H$136,G214,0),0),\"\")","v":""}]
[{"$f":"IF($G216=\"\",\"--\",INDEX('lista do wyboru'!$B$3:$E$136,$G216,1))","v":"--"},{"$f":"IF($G216=\"\",\"--\",INDEX('lista do wyboru'!$B$3:$E$136,$G216,2))","v":"--"},{"$f":"IF($G216=\"\",\"--\",INDEX('lista do wyboru'!$B$3:$E$136,$G216,3))","v":"--"},{"$f":"IF($G216=\"\",\"--\",INDEX('lista do wyboru'!$B$3:$E$136,$G216,4))","v":"--"},0,null,{"$f":"IF(FALSE = ISERROR(MATCH(TRUE,OFFSET('lista do wyboru'!$H$3:$H$136,G215,0),0)),G215+MATCH(TRUE,OFFSET('lista do wyboru'!$H$3:$H$136,G215,0),0),\"\")","v":""}]
[{"$f":"IF($G217=\"\",\"--\",INDEX('lista do wyboru'!$B$3:$E$136,$G217,1))","v":"--"},{"$f":"IF($G217=\"\",\"--\",INDEX('lista do wyboru'!$B$3:$E$136,$G217,2))","v":"--"},{"$f":"IF($G217=\"\",\"--\",INDEX('lista do wyboru'!$B$3:$E$136,$G217,3))","v":"--"},{"$f":"IF($G217=\"\",\"--\",INDEX('lista do wyboru'!$B$3:$E$136,$G217,4))","v":"--"},0,null,{"$f":"IF(FALSE = ISERROR(MATCH(TRUE,OFFSET('lista do wyboru'!$H$3:$H$136,G216,0),0)),G216+MATCH(TRUE,OFFSET('lista do wyboru'!$H$3:$H$136,G216,0),0),\"\")","v":""}]
[{"$f":"IF($G218=\"\",\"--\",INDEX('lista do wyboru'!$B$3:$E$136,$G218,1))","v":"--"},{"$f":"IF($G218=\"\",\"--\",INDEX('lista do wyboru'!$B$3:$E$136,$G218,2))","v":"--"},{"$f":"IF($G218=\"\",\"--\",INDEX('lista do wyboru'!$B$3:$E$136,$G218,3))","v":"--"},{"$f":"IF($G218=\"\",\"--\",INDEX('lista do wyboru'!$B$3:$E$136,$G218,4))","v":"--"},0,null,{"$f":"IF(FALSE = ISERROR(MATCH(TRUE,OFFSET('lista do wyboru'!$H$3:$H$136,G217,0),0)),G217+MATCH(TRUE,OFFSET('lista do wyboru'!$H$3:$H$136,G217,0),0),\"\")","v":""}]
[{"$f":"IF($G219=\"\",\"--\",INDEX('lista do wyboru'!$B$3:$E$136,$G219,1))","v":"--"},{"$f":"IF($G219=\"\",\"--\",INDEX('lista do wyboru'!$B$3:$E$136,$G219,2))","v":"--"},{"$f":"IF($G219=\"\",\"--\",INDEX('lista do wyboru'!$B$3:$E$136,$G219,3))","v":"--"},{"$f":"IF($G219=\"\",\"--\",INDEX('lista do wyboru'!$B$3:$E$136,$G219,4))","v":"--"},0,null,{"$f":"IF(FALSE = ISERROR(MATCH(TRUE,OFFSET('lista do wyboru'!$H$3:$H$136,G218,0),0)),G218+MATCH(TRUE,OFFSET('lista do wyboru'!$H$3:$H$136,G218,0),0),\"\")","v":""}]
[{"$f":"IF($G220=\"\",\"--\",INDEX('lista do wyboru'!$B$3:$E$136,$G220,1))","v":"--"},{"$f":"IF($G220=\"\",\"--\",INDEX('lista do wyboru'!$B$3:$E$136,$G220,2))","v":"--"},{"$f":"IF($G220=\"\",\"--\",INDEX('lista do wyboru'!$B$3:$E$136,$G220,3))","v":"--"},{"$f":"IF($G220=\"\",\"--\",INDEX('lista do wyboru'!$B$3:$E$136,$G220,4))","v":"--"},0,null,{"$f":"IF(FALSE = ISERROR(MATCH(TRUE,OFFSET('lista do wyboru'!$H$3:$H$136,G219,0),0)),G219+MATCH(TRUE,OFFSET('lista do wyboru'!$H$3:$H$136,G219,0),0),\"\")","v":""}]
[{"$f":"IF($G221=\"\",\"--\",INDEX('lista do wyboru'!$B$3:$E$136,$G221,1))","v":"--"},{"$f":"IF($G221=\"\",\"--\",INDEX('lista do wyboru'!$B$3:$E$136,$G221,2))","v":"--"},{"$f":"IF($G221=\"\",\"--\",INDEX('lista do wyboru'!$B$3:$E$136,$G221,3))","v":"--"},{"$f":"IF($G221=\"\",\"--\",INDEX('lista do wyboru'!$B$3:$E$136,$G221,4))","v":"--"},0,null,{"$f":"IF(FALSE = ISERROR(MATCH(TRUE,OFFSET('lista do wyboru'!$H$3:$H$136,G220,0),0)),G220+MATCH(TRUE,OFFSET('lista do wyboru'!$H$3:$H$136,G220,0),0),\"\")","v":""}]
[{"$f":"IF($G222=\"\",\"--\",INDEX('lista do wyboru'!$B$3:$E$136,$G222,1))","v":"--"},{"$f":"IF($G222=\"\",\"--\",INDEX('lista do wyboru'!$B$3:$E$136,$G222,2))","v":"--"},{"$f":"IF($G222=\"\",\"--\",INDEX('lista do wyboru'!$B$3:$E$136,$G222,3))","v":"--"},{"$f":"IF($G222=\"\",\"--\",INDEX('lista do wyboru'!$B$3:$E$136,$G222,4))","v":"--"},0,null,{"$f":"IF(FALSE = ISERROR(MATCH(TRUE,OFFSET('lista do wyboru'!$H$3:$H$136,G221,0),0)),G221+MATCH(TRUE,OFFSET('lista do wyboru'!$H$3:$H$136,G221,0),0),\"\")","v":""}]
[{"$f":"IF($G223=\"\",\"--\",INDEX('lista do wyboru'!$B$3:$E$136,$G223,1))","v":"--"},{"$f":"IF($G223=\"\",\"--\",INDEX('lista do wyboru'!$B$3:$E$136,$G223,2))","v":"--"},{"$f":"IF($G223=\"\",\"--\",INDEX('lista do wyboru'!$B$3:$E$136,$G223,3))","v":"--"},{"$f":"IF($G223=\"\",\"--\",INDEX('lista do wyboru'!$B$3:$E$136,$G223,4))","v":"--"},0,null,{"$f":"IF(FALSE = ISERROR(MATCH(TRUE,OFFSET('lista do wyboru'!$H$3:$H$136,G222,0),0)),G222+MATCH(TRUE,OFFSET('lista do wyboru'!$H$3:$H$136,G222,0),0),\"\")","v":""}]
[{"$f":"IF($G224=\"\",\"--\",INDEX('lista do wyboru'!$B$3:$E$136,$G224,1))","v":"--"},{"$f":"IF($G224=\"\",\"--\",INDEX('lista do wyboru'!$B$3:$E$136,$G224,2))","v":"--"},{"$f":"IF($G224=\"\",\"--\",INDEX('lista do wyboru'!$B$3:$E$136,$G224,3))","v":"--"},{"$f":"IF($G224=\"\",\"--\",INDEX('lista do wyboru'!$B$3:$E$136,$G224,4))","v":"--"},0,null,{"$f":"IF(FALSE = ISERROR(MATCH(TRUE,OFFSET('lista do wyboru'!$H$3:$H$136,G223,0),0)),G223+MATCH(TRUE,OFFSET('lista do wyboru'!$H$3:$H$136,G223,0),0),\"\")","v":""}]
[{"$f":"IF($G225=\"\",\"--\",INDEX('lista do wyboru'!$B$3:$E$136,$G225,1))","v":"--"},{"$f":"IF($G225=\"\",\"--\",INDEX('lista do wyboru'!$B$3:$E$136,$G225,2))","v":"--"},{"$f":"IF($G225=\"\",\"--\",INDEX('lista do wyboru'!$B$3:$E$136,$G225,3))","v":"--"},{"$f":"IF($G225=\"\",\"--\",INDEX('lista do wyboru'!$B$3:$E$136,$G225,4))","v":"--"},0,null,{"$f":"IF(FALSE = ISERROR(MATCH(TRUE,OFFSET('lista do wyboru'!$H$3:$H$136,G224,0),0)),G224+MATCH(TRUE,OFFSET('lista do wyboru'!$H$3:$H$136,G224,0),0),\"\")","v":""}]
[{"$f":"IF($G226=\"\",\"--\",INDEX('lista do wyboru'!$B$3:$E$136,$G226,1))","v":"--"},{"$f":"IF($G226=\"\",\"--\",INDEX('lista do wyboru'!$B$3:$E$136,$G226,2))","v":"--"},{"$f":"IF($G226=\"\",\"--\",INDEX('lista do wyboru'!$B$3:$E$136,$G226,3))","v":"--"},{"$f":"IF($G226=\"\",\"--\",INDEX('lista do wyboru'!$B$3:$E$136,$G226,4))","v":"--"},0,null,{"$f":"IF(FALSE = ISERROR(MATCH(TRUE,OFFSET('lista do wyboru'!$H$3:$H$136,G225,0),0)),G225+MATCH(TRUE,OFFSET('lista do wyboru'!$H$3:$H$136,G225,0),0),\"\")","v":""}]
[{"$f":"IF($G227=\"\",\"--\",INDEX('lista do wyboru'!$B$3:$E$136,$G227,1))","v":"--"},{"$f":"IF($G227=\"\",\"--\",INDEX('lista do wyboru'!$B$3:$E$136,$G227,2))","v":"--"},{"$f":"IF($G227=\"\",\"--\",INDEX('lista do wyboru'!$B$3:$E$136,$G227,3))","v":"--"},{"$f":"IF($G227=\"\",\"--\",INDEX('lista do wyboru'!$B$3:$E$136,$G227,4))","v":"--"},0,null,{"$f":"IF(FALSE = ISERROR(MATCH(TRUE,OFFSET('lista do wyboru'!$H$3:$H$136,G226,0),0)),G226+MATCH(TRUE,OFFSET('lista do wyboru'!$H$3:$H$136,G226,0),0),\"\")","v":""}]
[{"$f":"IF($G228=\"\",\"--\",INDEX('lista do wyboru'!$B$3:$E$136,$G228,1))","v":"--"},{"$f":"IF($G228=\"\",\"--\",INDEX('lista do wyboru'!$B$3:$E$136,$G228,2))","v":"--"},{"$f":"IF($G228=\"\",\"--\",INDEX('lista do wyboru'!$B$3:$E$136,$G228,3))","v":"--"},{"$f":"IF($G228=\"\",\"--\",INDEX('lista do wyboru'!$B$3:$E$136,$G228,4))","v":"--"},0,null,{"$f":"IF(FALSE = ISERROR(MATCH(TRUE,OFFSET('lista do wyboru'!$H$3:$H$136,G227,0),0)),G227+MATCH(TRUE,OFFSET('lista do wyboru'!$H$3:$H$136,G227,0),0),\"\")","v":""}]
[{"$f":"IF($G229=\"\",\"--\",INDEX('lista do wyboru'!$B$3:$E$136,$G229,1))","v":"--"},{"$f":"IF($G229=\"\",\"--\",INDEX('lista do wyboru'!$B$3:$E$136,$G229,2))","v":"--"},{"$f":"IF($G229=\"\",\"--\",INDEX('lista do wyboru'!$B$3:$E$136,$G229,3))","v":"--"},{"$f":"IF($G229=\"\",\"--\",INDEX('lista do wyboru'!$B$3:$E$136,$G229,4))","v":"--"},0,null,{"$f":"IF(FALSE = ISERROR(MATCH(TRUE,OFFSET('lista do wyboru'!$H$3:$H$136,G228,0),0)),G228+MATCH(TRUE,OFFSET('lista do wyboru'!$H$3:$H$136,G228,0),0),\"\")","v":""}]
[{"$f":"IF($G230=\"\",\"--\",INDEX('lista do wyboru'!$B$3:$E$136,$G230,1))","v":"--"},{"$f":"IF($G230=\"\",\"--\",INDEX('lista do wyboru'!$B$3:$E$136,$G230,2))","v":"--"},{"$f":"IF($G230=\"\",\"--\",INDEX('lista do wyboru'!$B$3:$E$136,$G230,3))","v":"--"},{"$f":"IF($G230=\"\",\"--\",INDEX('lista do wyboru'!$B$3:$E$136,$G230,4))","v":"--"},0,null,{"$f":"IF(FALSE = ISERROR(MATCH(TRUE,OFFSET('lista do wyboru'!$H$3:$H$136,G229,0),0)),G229+MATCH(TRUE,OFFSET('lista do wyboru'!$H$3:$H$136,G229,0),0),\"\")","v":""}]
[{"$f":"IF($G231=\"\",\"--\",INDEX('lista do wyboru'!$B$3:$E$136,$G231,1))","v":"--"},{"$f":"IF($G231=\"\",\"--\",INDEX('lista do wyboru'!$B$3:$E$136,$G231,2))","v":"--"},{"$f":"IF($G231=\"\",\"--\",INDEX('lista do wyboru'!$B$3:$E$136,$G231,3))","v":"--"},{"$f":"IF($G231=\"\",\"--\",INDEX('lista do wyboru'!$B$3:$E$136,$G231,4))","v":"--"},0,null,{"$f":"IF(FALSE = ISERROR(MATCH(TRUE,OFFSET('lista do wyboru'!$H$3:$H$136,G230,0),0)),G230+MATCH(TRUE,OFFSET('lista do wyboru'!$H$3:$H$136,G230,0),0),\"\")","v":""}]
[{"$f":"IF($G232=\"\",\"--\",INDEX('lista do wyboru'!$B$3:$E$136,$G232,1))","v":"--"},{"$f":"IF($G232=\"\",\"--\",INDEX('lista do wyboru'!$B$3:$E$136,$G232,2))","v":"--"},{"$f":"IF($G232=\"\",\"--\",INDEX('lista do wyboru'!$B$3:$E$136,$G232,3))","v":"--"},{"$f":"IF($G232=\"\",\"--\",INDEX('lista do wyboru'!$B$3:$E$136,$G232,4))","v":"--"},0,null,{"$f":"IF(FALSE = ISERROR(MATCH(TRUE,OFFSET('lista do wyboru'!$H$3:$H$136,G231,0),0)),G231+MATCH(TRUE,OFFSET('lista do wyboru'!$H$3:$H$136,G231,0),0),\"\")","v":""}]
[{"$f":"IF($G233=\"\",\"--\",INDEX('lista do wyboru'!$B$3:$E$136,$G233,1))","v":"--"},{"$f":"IF($G233=\"\",\"--\",INDEX('lista do wyboru'!$B$3:$E$136,$G233,2))","v":"--"},{"$f":"IF($G233=\"\",\"--\",INDEX('lista do wyboru'!$B$3:$E$136,$G233,3))","v":"--"},{"$f":"IF($G233=\"\",\"--\",INDEX('lista do wyboru'!$B$3:$E$136,$G233,4))","v":"--"},0,null,{"$f":"IF(FALSE = ISERROR(MATCH(TRUE,OFFSET('lista do wyboru'!$H$3:$H$136,G232,0),0)),G232+MATCH(TRUE,OFFSET('lista do wyboru'!$H$3:$H$136,G232,0),0),\"\")","v":""}]
[{"$f":"IF($G234=\"\",\"--\",INDEX('lista do wyboru'!$B$3:$E$136,$G234,1))","v":"--"},{"$f":"IF($G234=\"\",\"--\",INDEX('lista do wyboru'!$B$3:$E$136,$G234,2))","v":"--"},{"$f":"IF($G234=\"\",\"--\",INDEX('lista do wyboru'!$B$3:$E$136,$G234,3))","v":"--"},{"$f":"IF($G234=\"\",\"--\",INDEX('lista do wyboru'!$B$3:$E$136,$G234,4))","v":"--"},0,null,{"$f":"IF(FALSE = ISERROR(MATCH(TRUE,OFFSET('lista do wyboru'!$H$3:$H$136,G233,0),0)),G233+MATCH(TRUE,OFFSET('lista do wyboru'!$H$3:$H$136,G233,0),0),\"\")","v":""}]
[{"$f":"IF($G235=\"\",\"--\",INDEX('lista do wyboru'!$B$3:$E$136,$G235,1))","v":"--"},{"$f":"IF($G235=\"\",\"--\",INDEX('lista do wyboru'!$B$3:$E$136,$G235,2))","v":"--"},{"$f":"IF($G235=\"\",\"--\",INDEX('lista do wyboru'!$B$3:$E$136,$G235,3))","v":"--"},{"$f":"IF($G235=\"\",\"--\",INDEX('lista do wyboru'!$B$3:$E$136,$G235,4))","v":"--"},0,null,{"$f":"IF(FALSE = ISERROR(MATCH(TRUE,OFFSET('lista do wyboru'!$H$3:$H$136,G234,0),0)),G234+MATCH(TRUE,OFFSET('lista do wyboru'!$H$3:$H$136,G234,0),0),\"\")","v":""}]
[{"$f":"IF($G236=\"\",\"--\",INDEX('lista do wyboru'!$B$3:$E$136,$G236,1))","v":"--"},{"$f":"IF($G236=\"\",\"--\",INDEX('lista do wyboru'!$B$3:$E$136,$G236,2))","v":"--"},{"$f":"IF($G236=\"\",\"--\",INDEX('lista do wyboru'!$B$3:$E$136,$G236,3))","v":"--"},{"$f":"IF($G236=\"\",\"--\",INDEX('lista do wyboru'!$B$3:$E$136,$G236,4))","v":"--"},0,null,{"$f":"IF(FALSE = ISERROR(MATCH(TRUE,OFFSET('lista do wyboru'!$H$3:$H$136,G235,0),0)),G235+MATCH(TRUE,OFFSET('lista do wyboru'!$H$3:$H$136,G235,0),0),\"\")","v":""}]
[{"$f":"IF($G237=\"\",\"--\",INDEX('lista do wyboru'!$B$3:$E$136,$G237,1))","v":"--"},{"$f":"IF($G237=\"\",\"--\",INDEX('lista do wyboru'!$B$3:$E$136,$G237,2))","v":"--"},{"$f":"IF($G237=\"\",\"--\",INDEX('lista do wyboru'!$B$3:$E$136,$G237,3))","v":"--"},{"$f":"IF($G237=\"\",\"--\",INDEX('lista do wyboru'!$B$3:$E$136,$G237,4))","v":"--"},0,null,{"$f":"IF(FALSE = ISERROR(MATCH(TRUE,OFFSET('lista do wyboru'!$H$3:$H$136,G236,0),0)),G236+MATCH(TRUE,OFFSET('lista do wyboru'!$H$3:$H$136,G236,0),0),\"\")","v":""}]
[{"$f":"IF($G238=\"\",\"--\",INDEX('lista do wyboru'!$B$3:$E$136,$G238,1))","v":"--"},{"$f":"IF($G238=\"\",\"--\",INDEX('lista do wyboru'!$B$3:$E$136,$G238,2))","v":"--"},{"$f":"IF($G238=\"\",\"--\",INDEX('lista do wyboru'!$B$3:$E$136,$G238,3))","v":"--"},{"$f":"IF($G238=\"\",\"--\",INDEX('lista do wyboru'!$B$3:$E$136,$G238,4))","v":"--"},0,null,{"$f":"IF(FALSE = ISERROR(MATCH(TRUE,OFFSET('lista do wyboru'!$H$3:$H$136,G237,0),0)),G237+MATCH(TRUE,OFFSET('lista do wyboru'!$H$3:$H$136,G237,0),0),\"\")","v":""}]
[{"$f":"IF($G239=\"\",\"--\",INDEX('lista do wyboru'!$B$3:$E$136,$G239,1))","v":"--"},{"$f":"IF($G239=\"\",\"--\",INDEX('lista do wyboru'!$B$3:$E$136,$G239,2))","v":"--"},{"$f":"IF($G239=\"\",\"--\",INDEX('lista do wyboru'!$B$3:$E$136,$G239,3))","v":"--"},{"$f":"IF($G239=\"\",\"--\",INDEX('lista do wyboru'!$B$3:$E$136,$G239,4))","v":"--"},0,null,{"$f":"IF(FALSE = ISERROR(MATCH(TRUE,OFFSET('lista do wyboru'!$H$3:$H$136,G238,0),0)),G238+MATCH(TRUE,OFFSET('lista do wyboru'!$H$3:$H$136,G238,0),0),\"\")","v":""}]
[{"$f":"IF($G240=\"\",\"--\",INDEX('lista do wyboru'!$B$3:$E$136,$G240,1))","v":"--"},{"$f":"IF($G240=\"\",\"--\",INDEX('lista do wyboru'!$B$3:$E$136,$G240,2))","v":"--"},{"$f":"IF($G240=\"\",\"--\",INDEX('lista do wyboru'!$B$3:$E$136,$G240,3))","v":"--"},{"$f":"IF($G240=\"\",\"--\",INDEX('lista do wyboru'!$B$3:$E$136,$G240,4))","v":"--"},0,null,{"$f":"IF(FALSE = ISERROR(MATCH(TRUE,OFFSET('lista do wyboru'!$H$3:$H$136,G239,0),0)),G239+MATCH(TRUE,OFFSET('lista do wyboru'!$H$3:$H$136,G239,0),0),\"\")","v":""}]
[{"$f":"IF($G241=\"\",\"--\",INDEX('lista do wyboru'!$B$3:$E$136,$G241,1))","v":"--"},{"$f":"IF($G241=\"\",\"--\",INDEX('lista do wyboru'!$B$3:$E$136,$G241,2))","v":"--"},{"$f":"IF($G241=\"\",\"--\",INDEX('lista do wyboru'!$B$3:$E$136,$G241,3))","v":"--"},{"$f":"IF($G241=\"\",\"--\",INDEX('lista do wyboru'!$B$3:$E$136,$G241,4))","v":"--"},0,null,{"$f":"IF(FALSE = ISERROR(MATCH(TRUE,OFFSET('lista do wyboru'!$H$3:$H$136,G240,0),0)),G240+MATCH(TRUE,OFFSET('lista do wyboru'!$H$3:$H$136,G240,0),0),\"\")","v":""}]
[{"$f":"IF($G242=\"\",\"--\",INDEX('lista do wyboru'!$B$3:$E$136,$G242,1))","v":"--"},{"$f":"IF($G242=\"\",\"--\",INDEX('lista do wyboru'!$B$3:$E$136,$G242,2))","v":"--"},{"$f":"IF($G242=\"\",\"--\",INDEX('lista do wyboru'!$B$3:$E$136,$G242,3))","v":"--"},{"$f":"IF($G242=\"\",\"--\",INDEX('lista do wyboru'!$B$3:$E$136,$G242,4))","v":"--"},0,null,{"$f":"IF(FALSE = ISERROR(MATCH(TRUE,OFFSET('lista do wyboru'!$H$3:$H$136,G241,0),0)),G241+MATCH(TRUE,OFFSET('lista do wyboru'!$H$3:$H$136,G241,0),0),\"\")","v":""}]
[{"$f":"IF($G243=\"\",\"--\",INDEX('lista do wyboru'!$B$3:$E$136,$G243,1))","v":"--"},{"$f":"IF($G243=\"\",\"--\",INDEX('lista do wyboru'!$B$3:$E$136,$G243,2))","v":"--"},{"$f":"IF($G243=\"\",\"--\",INDEX('lista do wyboru'!$B$3:$E$136,$G243,3))","v":"--"},{"$f":"IF($G243=\"\",\"--\",INDEX('lista do wyboru'!$B$3:$E$136,$G243,4))","v":"--"},0,null,{"$f":"IF(FALSE = ISERROR(MATCH(TRUE,OFFSET('lista do wyboru'!$H$3:$H$136,G242,0),0)),G242+MATCH(TRUE,OFFSET('lista do wyboru'!$H$3:$H$136,G242,0),0),\"\")","v":""}]
[{"$f":"IF($G244=\"\",\"--\",INDEX('lista do wyboru'!$B$3:$E$136,$G244,1))","v":"--"},{"$f":"IF($G244=\"\",\"--\",INDEX('lista do wyboru'!$B$3:$E$136,$G244,2))","v":"--"},{"$f":"IF($G244=\"\",\"--\",INDEX('lista do wyboru'!$B$3:$E$136,$G244,3))","v":"--"},{"$f":"IF($G244=\"\",\"--\",INDEX('lista do wyboru'!$B$3:$E$136,$G244,4))","v":"--"},0,null,{"$f":"IF(FALSE = ISERROR(MATCH(TRUE,OFFSET('lista do wyboru'!$H$3:$H$136,G243,0),0)),G243+MATCH(TRUE,OFFSET('lista do wyboru'!$H$3:$H$136,G243,0),0),\"\")","v":""}]
[{"$f":"IF($G245=\"\",\"--\",INDEX('lista do wyboru'!$B$3:$E$136,$G245,1))","v":"--"},{"$f":"IF($G245=\"\",\"--\",INDEX('lista do wyboru'!$B$3:$E$136,$G245,2))","v":"--"},{"$f":"IF($G245=\"\",\"--\",INDEX('lista do wyboru'!$B$3:$E$136,$G245,3))","v":"--"},{"$f":"IF($G245=\"\",\"--\",INDEX('lista do wyboru'!$B$3:$E$136,$G245,4))","v":"--"},0,null,{"$f":"IF(FALSE = ISERROR(MATCH(TRUE,OFFSET('lista do wyboru'!$H$3:$H$136,G244,0),0)),G244+MATCH(TRUE,OFFSET('lista do wyboru'!$H$3:$H$136,G244,0),0),\"\")","v":""}]
[{"$f":"IF($G246=\"\",\"--\",INDEX('lista do wyboru'!$B$3:$E$136,$G246,1))","v":"--"},{"$f":"IF($G246=\"\",\"--\",INDEX('lista do wyboru'!$B$3:$E$136,$G246,2))","v":"--"},{"$f":"IF($G246=\"\",\"--\",INDEX('lista do wyboru'!$B$3:$E$136,$G246,3))","v":"--"},{"$f":"IF($G246=\"\",\"--\",INDEX('lista do wyboru'!$B$3:$E$136,$G246,4))","v":"--"},0,null,{"$f":"IF(FALSE = ISERROR(MATCH(TRUE,OFFSET('lista do wyboru'!$H$3:$H$136,G245,0),0)),G245+MATCH(TRUE,OFFSET('lista do wyboru'!$H$3:$H$136,G245,0),0),\"\")","v":""}]
[{"$f":"IF($G247=\"\",\"--\",INDEX('lista do wyboru'!$B$3:$E$136,$G247,1))","v":"--"},{"$f":"IF($G247=\"\",\"--\",INDEX('lista do wyboru'!$B$3:$E$136,$G247,2))","v":"--"},{"$f":"IF($G247=\"\",\"--\",INDEX('lista do wyboru'!$B$3:$E$136,$G247,3))","v":"--"},{"$f":"IF($G247=\"\",\"--\",INDEX('lista do wyboru'!$B$3:$E$136,$G247,4))","v":"--"},0,null,{"$f":"IF(FALSE = ISERROR(MATCH(TRUE,OFFSET('lista do wyboru'!$H$3:$H$136,G246,0),0)),G246+MATCH(TRUE,OFFSET('lista do wyboru'!$H$3:$H$136,G246,0),0),\"\")","v":""}]
[{"$f":"IF($G248=\"\",\"--\",INDEX('lista do wyboru'!$B$3:$E$136,$G248,1))","v":"--"},{"$f":"IF($G248=\"\",\"--\",INDEX('lista do wyboru'!$B$3:$E$136,$G248,2))","v":"--"},{"$f":"IF($G248=\"\",\"--\",INDEX('lista do wyboru'!$B$3:$E$136,$G248,3))","v":"--"},{"$f":"IF($G248=\"\",\"--\",INDEX('lista do wyboru'!$B$3:$E$136,$G248,4))","v":"--"},0,null,{"$f":"IF(FALSE = ISERROR(MATCH(TRUE,OFFSET('lista do wyboru'!$H$3:$H$136,G247,0),0)),G247+MATCH(TRUE,OFFSET('lista do wyboru'!$H$3:$H$136,G247,0),0),\"\")","v":""}]
[{"$f":"IF($G249=\"\",\"--\",INDEX('lista do wyboru'!$B$3:$E$136,$G249,1))","v":"--"},{"$f":"IF($G249=\"\",\"--\",INDEX('lista do wyboru'!$B$3:$E$136,$G249,2))","v":"--"},{"$f":"IF($G249=\"\",\"--\",INDEX('lista do wyboru'!$B$3:$E$136,$G249,3))","v":"--"},{"$f":"IF($G249=\"\",\"--\",INDEX('lista do wyboru'!$B$3:$E$136,$G249,4))","v":"--"},0,null,{"$f":"IF(FALSE = ISERROR(MATCH(TRUE,OFFSET('lista do wyboru'!$H$3:$H$136,G248,0),0)),G248+MATCH(TRUE,OFFSET('lista do wyboru'!$H$3:$H$136,G248,0),0),\"\")","v":""}]
[{"$f":"IF($G250=\"\",\"--\",INDEX('lista do wyboru'!$B$3:$E$136,$G250,1))","v":"--"},{"$f":"IF($G250=\"\",\"--\",INDEX('lista do wyboru'!$B$3:$E$136,$G250,2))","v":"--"},{"$f":"IF($G250=\"\",\"--\",INDEX('lista do wyboru'!$B$3:$E$136,$G250,3))","v":"--"},{"$f":"IF($G250=\"\",\"--\",INDEX('lista do wyboru'!$B$3:$E$136,$G250,4))","v":"--"},0,null,{"$f":"IF(FALSE = ISERROR(MATCH(TRUE,OFFSET('lista do wyboru'!$H$3:$H$136,G249,0),0)),G249+MATCH(TRUE,OFFSET('lista do wyboru'!$H$3:$H$136,G249,0),0),\"\")","v":""}]
[{"$f":"IF($G251=\"\",\"--\",INDEX('lista do wyboru'!$B$3:$E$136,$G251,1))","v":"--"},{"$f":"IF($G251=\"\",\"--\",INDEX('lista do wyboru'!$B$3:$E$136,$G251,2))","v":"--"},{"$f":"IF($G251=\"\",\"--\",INDEX('lista do wyboru'!$B$3:$E$136,$G251,3))","v":"--"},{"$f":"IF($G251=\"\",\"--\",INDEX('lista do wyboru'!$B$3:$E$136,$G251,4))","v":"--"},0,null,{"$f":"IF(FALSE = ISERROR(MATCH(TRUE,OFFSET('lista do wyboru'!$H$3:$H$136,G250,0),0)),G250+MATCH(TRUE,OFFSET('lista do wyboru'!$H$3:$H$136,G250,0),0),\"\")","v":""}]
[{"$f":"IF($G252=\"\",\"--\",INDEX('lista do wyboru'!$B$3:$E$136,$G252,1))","v":"--"},{"$f":"IF($G252=\"\",\"--\",INDEX('lista do wyboru'!$B$3:$E$136,$G252,2))","v":"--"},{"$f":"IF($G252=\"\",\"--\",INDEX('lista do wyboru'!$B$3:$E$136,$G252,3))","v":"--"},{"$f":"IF($G252=\"\",\"--\",INDEX('lista do wyboru'!$B$3:$E$136,$G252,4))","v":"--"},0,null,{"$f":"IF(FALSE = ISERROR(MATCH(TRUE,OFFSET('lista do wyboru'!$H$3:$H$136,G251,0),0)),G251+MATCH(TRUE,OFFSET('lista do wyboru'!$H$3:$H$136,G251,0),0),\"\")","v":""}]
[{"$f":"IF($G253=\"\",\"--\",INDEX('lista do wyboru'!$B$3:$E$136,$G253,1))","v":"--"},{"$f":"IF($G253=\"\",\"--\",INDEX('lista do wyboru'!$B$3:$E$136,$G253,2))","v":"--"},{"$f":"IF($G253=\"\",\"--\",INDEX('lista do wyboru'!$B$3:$E$136,$G253,3))","v":"--"},{"$f":"IF($G253=\"\",\"--\",INDEX('lista do wyboru'!$B$3:$E$136,$G253,4))","v":"--"},0,null,{"$f":"IF(FALSE = ISERROR(MATCH(TRUE,OFFSET('lista do wyboru'!$H$3:$H$136,G252,0),0)),G252+MATCH(TRUE,OFFSET('lista do wyboru'!$H$3:$H$136,G252,0),0),\"\")","v":""}]
[{"$f":"IF($G254=\"\",\"--\",INDEX('lista do wyboru'!$B$3:$E$136,$G254,1))","v":"--"},{"$f":"IF($G254=\"\",\"--\",INDEX('lista do wyboru'!$B$3:$E$136,$G254,2))","v":"--"},{"$f":"IF($G254=\"\",\"--\",INDEX('lista do wyboru'!$B$3:$E$136,$G254,3))","v":"--"},{"$f":"IF($G254=\"\",\"--\",INDEX('lista do wyboru'!$B$3:$E$136,$G254,4))","v":"--"},0,null,{"$f":"IF(FALSE = ISERROR(MATCH(TRUE,OFFSET('lista do wyboru'!$H$3:$H$136,G253,0),0)),G253+MATCH(TRUE,OFFSET('lista do wyboru'!$H$3:$H$136,G253,0),0),\"\")","v":""}]
[{"$f":"IF($G255=\"\",\"--\",INDEX('lista do wyboru'!$B$3:$E$136,$G255,1))","v":"--"},{"$f":"IF($G255=\"\",\"--\",INDEX('lista do wyboru'!$B$3:$E$136,$G255,2))","v":"--"},{"$f":"IF($G255=\"\",\"--\",INDEX('lista do wyboru'!$B$3:$E$136,$G255,3))","v":"--"},{"$f":"IF($G255=\"\",\"--\",INDEX('lista do wyboru'!$B$3:$E$136,$G255,4))","v":"--"},0,null,{"$f":"IF(FALSE = ISERROR(MATCH(TRUE,OFFSET('lista do wyboru'!$H$3:$H$136,G254,0),0)),G254+MATCH(TRUE,OFFSET('lista do wyboru'!$H$3:$H$136,G254,0),0),\"\")","v":""}]
[{"$f":"IF($G256=\"\",\"--\",INDEX('lista do wyboru'!$B$3:$E$136,$G256,1))","v":"--"},{"$f":"IF($G256=\"\",\"--\",INDEX('lista do wyboru'!$B$3:$E$136,$G256,2))","v":"--"},{"$f":"IF($G256=\"\",\"--\",INDEX('lista do wyboru'!$B$3:$E$136,$G256,3))","v":"--"},{"$f":"IF($G256=\"\",\"--\",INDEX('lista do wyboru'!$B$3:$E$136,$G256,4))","v":"--"},0,null,{"$f":"IF(FALSE = ISERROR(MATCH(TRUE,OFFSET('lista do wyboru'!$H$3:$H$136,G255,0),0)),G255+MATCH(TRUE,OFFSET('lista do wyboru'!$H$3:$H$136,G255,0),0),\"\")","v":""}]
[{"$f":"IF($G257=\"\",\"--\",INDEX('lista do wyboru'!$B$3:$E$136,$G257,1))","v":"--"},{"$f":"IF($G257=\"\",\"--\",INDEX('lista do wyboru'!$B$3:$E$136,$G257,2))","v":"--"},{"$f":"IF($G257=\"\",\"--\",INDEX('lista do wyboru'!$B$3:$E$136,$G257,3))","v":"--"},{"$f":"IF($G257=\"\",\"--\",INDEX('lista do wyboru'!$B$3:$E$136,$G257,4))","v":"--"},0,null,{"$f":"IF(FALSE = ISERROR(MATCH(TRUE,OFFSET('lista do wyboru'!$H$3:$H$136,G256,0),0)),G256+MATCH(TRUE,OFFSET('lista do wyboru'!$H$3:$H$136,G256,0),0),\"\")","v":""}]
[{"$f":"IF($G258=\"\",\"--\",INDEX('lista do wyboru'!$B$3:$E$136,$G258,1))","v":"--"},{"$f":"IF($G258=\"\",\"--\",INDEX('lista do wyboru'!$B$3:$E$136,$G258,2))","v":"--"},{"$f":"IF($G258=\"\",\"--\",INDEX('lista do wyboru'!$B$3:$E$136,$G258,3))","v":"--"},{"$f":"IF($G258=\"\",\"--\",INDEX('lista do wyboru'!$B$3:$E$136,$G258,4))","v":"--"},0,null,{"$f":"IF(FALSE = ISERROR(MATCH(TRUE,OFFSET('lista do wyboru'!$H$3:$H$136,G257,0),0)),G257+MATCH(TRUE,OFFSET('lista do wyboru'!$H$3:$H$136,G257,0),0),\"\")","v":""}]
[{"$f":"IF($G259=\"\",\"--\",INDEX('lista do wyboru'!$B$3:$E$136,$G259,1))","v":"--"},{"$f":"IF($G259=\"\",\"--\",INDEX('lista do wyboru'!$B$3:$E$136,$G259,2))","v":"--"},{"$f":"IF($G259=\"\",\"--\",INDEX('lista do wyboru'!$B$3:$E$136,$G259,3))","v":"--"},{"$f":"IF($G259=\"\",\"--\",INDEX('lista do wyboru'!$B$3:$E$136,$G259,4))","v":"--"},0,null,{"$f":"IF(FALSE = ISERROR(MATCH(TRUE,OFFSET('lista do wyboru'!$H$3:$H$136,G258,0),0)),G258+MATCH(TRUE,OFFSET('lista do wyboru'!$H$3:$H$136,G258,0),0),\"\")","v":""}]
[{"$f":"IF($G260=\"\",\"--\",INDEX('lista do wyboru'!$B$3:$E$136,$G260,1))","v":"--"},{"$f":"IF($G260=\"\",\"--\",INDEX('lista do wyboru'!$B$3:$E$136,$G260,2))","v":"--"},{"$f":"IF($G260=\"\",\"--\",INDEX('lista do wyboru'!$B$3:$E$136,$G260,3))","v":"--"},{"$f":"IF($G260=\"\",\"--\",INDEX('lista do wyboru'!$B$3:$E$136,$G260,4))","v":"--"},0,null,{"$f":"IF(FALSE = ISERROR(MATCH(TRUE,OFFSET('lista do wyboru'!$H$3:$H$136,G259,0),0)),G259+MATCH(TRUE,OFFSET('lista do wyboru'!$H$3:$H$136,G259,0),0),\"\")","v":""}]
[{"$f":"IF($G261=\"\",\"--\",INDEX('lista do wyboru'!$B$3:$E$136,$G261,1))","v":"--"},{"$f":"IF($G261=\"\",\"--\",INDEX('lista do wyboru'!$B$3:$E$136,$G261,2))","v":"--"},{"$f":"IF($G261=\"\",\"--\",INDEX('lista do wyboru'!$B$3:$E$136,$G261,3))","v":"--"},{"$f":"IF($G261=\"\",\"--\",INDEX('lista do wyboru'!$B$3:$E$136,$G261,4))","v":"--"},{"$f":"IF(C261 = \"--\",0,D261*C261)","v":0},null,{"$f":"IF(FALSE = ISERROR(MATCH(TRUE,OFFSET('lista do wyboru'!$H$3:$H$136,G260,0),0)),G260+MATCH(TRUE,OFFSET('lista do wyboru'!$H$3:$H$136,G260,0),0),\"\")","v":""}]
[{"$f":"IF($G262=\"\",\"--\",INDEX('lista do wyboru'!$B$3:$E$136,$G262,1))","v":"--"},{"$f":"IF($G262=\"\",\"--\",INDEX('lista do wyboru'!$B$3:$E$136,$G262,2))","v":"--"},{"$f":"IF($G262=\"\",\"--\",INDEX('lista do wyboru'!$B$3:$E$136,$G262,3))","v":"--"},{"$f":"IF($G262=\"\",\"--\",INDEX('lista do wyboru'!$B$3:$E$136,$G262,4))","v":"--"},0,null,{"$f":"IF(FALSE = ISERROR(MATCH(TRUE,OFFSET('lista do wyboru'!$H$3:$H$136,G261,0),0)),G261+MATCH(TRUE,OFFSET('lista do wyboru'!$H$3:$H$136,G261,0),0),\"\")","v":""}]
[{"$f":"IF($G263=\"\",\"--\",INDEX('lista do wyboru'!$B$3:$E$136,$G263,1))","v":"--"},{"$f":"IF($G263=\"\",\"--\",INDEX('lista do wyboru'!$B$3:$E$136,$G263,2))","v":"--"},{"$f":"IF($G263=\"\",\"--\",INDEX('lista do wyboru'!$B$3:$E$136,$G263,3))","v":"--"},{"$f":"IF($G263=\"\",\"--\",INDEX('lista do wyboru'!$B$3:$E$136,$G263,4))","v":"--"},0,null,{"$f":"IF(FALSE = ISERROR(MATCH(TRUE,OFFSET('lista do wyboru'!$H$3:$H$136,G262,0),0)),G262+MATCH(TRUE,OFFSET('lista do wyboru'!$H$3:$H$136,G262,0),0),\"\")","v":""}]
[{"$f":"IF($G264=\"\",\"--\",INDEX('lista do wyboru'!$B$3:$E$136,$G264,1))","v":"--"},{"$f":"IF($G264=\"\",\"--\",INDEX('lista do wyboru'!$B$3:$E$136,$G264,2))","v":"--"},{"$f":"IF($G264=\"\",\"--\",INDEX('lista do wyboru'!$B$3:$E$136,$G264,3))","v":"--"},{"$f":"IF($G264=\"\",\"--\",INDEX('lista do wyboru'!$B$3:$E$136,$G264,4))","v":"--"},0,null,{"$f":"IF(FALSE = ISERROR(MATCH(TRUE,OFFSET('lista do wyboru'!$H$3:$H$136,G263,0),0)),G263+MATCH(TRUE,OFFSET('lista do wyboru'!$H$3:$H$136,G263,0),0),\"\")","v":""}]
[{"$f":"IF($G265=\"\",\"--\",INDEX('lista do wyboru'!$B$3:$E$136,$G265,1))","v":"--"},{"$f":"IF($G265=\"\",\"--\",INDEX('lista do wyboru'!$B$3:$E$136,$G265,2))","v":"--"},{"$f":"IF($G265=\"\",\"--\",INDEX('lista do wyboru'!$B$3:$E$136,$G265,3))","v":"--"},{"$f":"IF($G265=\"\",\"--\",INDEX('lista do wyboru'!$B$3:$E$136,$G265,4))","v":"--"},0,null,{"$f":"IF(FALSE = ISERROR(MATCH(TRUE,OFFSET('lista do wyboru'!$H$3:$H$136,G264,0),0)),G264+MATCH(TRUE,OFFSET('lista do wyboru'!$H$3:$H$136,G264,0),0),\"\")","v":""}]
[{"$f":"IF($G266=\"\",\"--\",INDEX('lista do wyboru'!$B$3:$E$136,$G266,1))","v":"--"},{"$f":"IF($G266=\"\",\"--\",INDEX('lista do wyboru'!$B$3:$E$136,$G266,2))","v":"--"},{"$f":"IF($G266=\"\",\"--\",INDEX('lista do wyboru'!$B$3:$E$136,$G266,3))","v":"--"},{"$f":"IF($G266=\"\",\"--\",INDEX('lista do wyboru'!$B$3:$E$136,$G266,4))","v":"--"},0,null,{"$f":"IF(FALSE = ISERROR(MATCH(TRUE,OFFSET('lista do wyboru'!$H$3:$H$136,G265,0),0)),G265+MATCH(TRUE,OFFSET('lista do wyboru'!$H$3:$H$136,G265,0),0),\"\")","v":""}]
[{"$f":"IF($G267=\"\",\"--\",INDEX('lista do wyboru'!$B$3:$E$136,$G267,1))","v":"--"},{"$f":"IF($G267=\"\",\"--\",INDEX('lista do wyboru'!$B$3:$E$136,$G267,2))","v":"--"},{"$f":"IF($G267=\"\",\"--\",INDEX('lista do wyboru'!$B$3:$E$136,$G267,3))","v":"--"},{"$f":"IF($G267=\"\",\"--\",INDEX('lista do wyboru'!$B$3:$E$136,$G267,4))","v":"--"},0,null,{"$f":"IF(FALSE = ISERROR(MATCH(TRUE,OFFSET('lista do wyboru'!$H$3:$H$136,G266,0),0)),G266+MATCH(TRUE,OFFSET('lista do wyboru'!$H$3:$H$136,G266,0),0),\"\")","v":""}]
[{"$f":"IF($G268=\"\",\"--\",INDEX('lista do wyboru'!$B$3:$E$136,$G268,1))","v":"--"},{"$f":"IF($G268=\"\",\"--\",INDEX('lista do wyboru'!$B$3:$E$136,$G268,2))","v":"--"},{"$f":"IF($G268=\"\",\"--\",INDEX('lista do wyboru'!$B$3:$E$136,$G268,3))","v":"--"},{"$f":"IF($G268=\"\",\"--\",INDEX('lista do wyboru'!$B$3:$E$136,$G268,4))","v":"--"},0,null,{"$f":"IF(FALSE = ISERROR(MATCH(TRUE,OFFSET('lista do wyboru'!$H$3:$H$136,G267,0),0)),G267+MATCH(TRUE,OFFSET('lista do wyboru'!$H$3:$H$136,G267,0),0),\"\")","v":""}]
[{"$f":"IF($G269=\"\",\"--\",INDEX('lista do wyboru'!$B$3:$E$136,$G269,1))","v":"--"},{"$f":"IF($G269=\"\",\"--\",INDEX('lista do wyboru'!$B$3:$E$136,$G269,2))","v":"--"},{"$f":"IF($G269=\"\",\"--\",INDEX('lista do wyboru'!$B$3:$E$136,$G269,3))","v":"--"},{"$f":"IF($G269=\"\",\"--\",INDEX('lista do wyboru'!$B$3:$E$136,$G269,4))","v":"--"},0,null,{"$f":"IF(FALSE = ISERROR(MATCH(TRUE,OFFSET('lista do wyboru'!$H$3:$H$136,G268,0),0)),G268+MATCH(TRUE,OFFSET('lista do wyboru'!$H$3:$H$136,G268,0),0),\"\")","v":""}]
[{"$f":"IF($G270=\"\",\"--\",INDEX('lista do wyboru'!$B$3:$E$136,$G270,1))","v":"--"},{"$f":"IF($G270=\"\",\"--\",INDEX('lista do wyboru'!$B$3:$E$136,$G270,2))","v":"--"},{"$f":"IF($G270=\"\",\"--\",INDEX('lista do wyboru'!$B$3:$E$136,$G270,3))","v":"--"},{"$f":"IF($G270=\"\",\"--\",INDEX('lista do wyboru'!$B$3:$E$136,$G270,4))","v":"--"},0,null,{"$f":"IF(FALSE = ISERROR(MATCH(TRUE,OFFSET('lista do wyboru'!$H$3:$H$136,G269,0),0)),G269+MATCH(TRUE,OFFSET('lista do wyboru'!$H$3:$H$136,G269,0),0),\"\")","v":""}]
[{"$f":"IF($G271=\"\",\"--\",INDEX('lista do wyboru'!$B$3:$E$136,$G271,1))","v":"--"},{"$f":"IF($G271=\"\",\"--\",INDEX('lista do wyboru'!$B$3:$E$136,$G271,2))","v":"--"},{"$f":"IF($G271=\"\",\"--\",INDEX('lista do wyboru'!$B$3:$E$136,$G271,3))","v":"--"},{"$f":"IF($G271=\"\",\"--\",INDEX('lista do wyboru'!$B$3:$E$136,$G271,4))","v":"--"},0,null,{"$f":"IF(FALSE = ISERROR(MATCH(TRUE,OFFSET('lista do wyboru'!$H$3:$H$136,G270,0),0)),G270+MATCH(TRUE,OFFSET('lista do wyboru'!$H$3:$H$136,G270,0),0),\"\")","v":""}]
[{"$f":"IF($G272=\"\",\"--\",INDEX('lista do wyboru'!$B$3:$E$136,$G272,1))","v":"--"},{"$f":"IF($G272=\"\",\"--\",INDEX('lista do wyboru'!$B$3:$E$136,$G272,2))","v":"--"},{"$f":"IF($G272=\"\",\"--\",INDEX('lista do wyboru'!$B$3:$E$136,$G272,3))","v":"--"},{"$f":"IF($G272=\"\",\"--\",INDEX('lista do wyboru'!$B$3:$E$136,$G272,4))","v":"--"},0,null,{"$f":"IF(FALSE = ISERROR(MATCH(TRUE,OFFSET('lista do wyboru'!$H$3:$H$136,G271,0),0)),G271+MATCH(TRUE,OFFSET('lista do wyboru'!$H$3:$H$136,G271,0),0),\"\")","v":""}]
[{"$f":"IF($G273=\"\",\"--\",INDEX('lista do wyboru'!$B$3:$E$136,$G273,1))","v":"--"},{"$f":"IF($G273=\"\",\"--\",INDEX('lista do wyboru'!$B$3:$E$136,$G273,2))","v":"--"},{"$f":"IF($G273=\"\",\"--\",INDEX('lista do wyboru'!$B$3:$E$136,$G273,3))","v":"--"},{"$f":"IF($G273=\"\",\"--\",INDEX('lista do wyboru'!$B$3:$E$136,$G273,4))","v":"--"},0,null,{"$f":"IF(FALSE = ISERROR(MATCH(TRUE,OFFSET('lista do wyboru'!$H$3:$H$136,G272,0),0)),G272+MATCH(TRUE,OFFSET('lista do wyboru'!$H$3:$H$136,G272,0),0),\"\")","v":""}]
[{"$f":"IF($G274=\"\",\"--\",INDEX('lista do wyboru'!$B$3:$E$136,$G274,1))","v":"--"},{"$f":"IF($G274=\"\",\"--\",INDEX('lista do wyboru'!$B$3:$E$136,$G274,2))","v":"--"},{"$f":"IF($G274=\"\",\"--\",INDEX('lista do wyboru'!$B$3:$E$136,$G274,3))","v":"--"},{"$f":"IF($G274=\"\",\"--\",INDEX('lista do wyboru'!$B$3:$E$136,$G274,4))","v":"--"},0,null,{"$f":"IF(FALSE = ISERROR(MATCH(TRUE,OFFSET('lista do wyboru'!$H$3:$H$136,G273,0),0)),G273+MATCH(TRUE,OFFSET('lista do wyboru'!$H$3:$H$136,G273,0),0),\"\")","v":""}]
[{"$f":"IF($G275=\"\",\"--\",INDEX('lista do wyboru'!$B$3:$E$136,$G275,1))","v":"--"},{"$f":"IF($G275=\"\",\"--\",INDEX('lista do wyboru'!$B$3:$E$136,$G275,2))","v":"--"},{"$f":"IF($G275=\"\",\"--\",INDEX('lista do wyboru'!$B$3:$E$136,$G275,3))","v":"--"},{"$f":"IF($G275=\"\",\"--\",INDEX('lista do wyboru'!$B$3:$E$136,$G275,4))","v":"--"},0,null,{"$f":"IF(FALSE = ISERROR(MATCH(TRUE,OFFSET('lista do wyboru'!$H$3:$H$136,G274,0),0)),G274+MATCH(TRUE,OFFSET('lista do wyboru'!$H$3:$H$136,G274,0),0),\"\")","v":""}]
[{"$f":"IF($G276=\"\",\"--\",INDEX('lista do wyboru'!$B$3:$E$136,$G276,1))","v":"--"},{"$f":"IF($G276=\"\",\"--\",INDEX('lista do wyboru'!$B$3:$E$136,$G276,2))","v":"--"},{"$f":"IF($G276=\"\",\"--\",INDEX('lista do wyboru'!$B$3:$E$136,$G276,3))","v":"--"},{"$f":"IF($G276=\"\",\"--\",INDEX('lista do wyboru'!$B$3:$E$136,$G276,4))","v":"--"},0,null,{"$f":"IF(FALSE = ISERROR(MATCH(TRUE,OFFSET('lista do wyboru'!$H$3:$H$136,G275,0),0)),G275+MATCH(TRUE,OFFSET('lista do wyboru'!$H$3:$H$136,G275,0),0),\"\")","v":""}]
[{"$f":"IF($G277=\"\",\"--\",INDEX('lista do wyboru'!$B$3:$E$136,$G277,1))","v":"--"},{"$f":"IF($G277=\"\",\"--\",INDEX('lista do wyboru'!$B$3:$E$136,$G277,2))","v":"--"},{"$f":"IF($G277=\"\",\"--\",INDEX('lista do wyboru'!$B$3:$E$136,$G277,3))","v":"--"},{"$f":"IF($G277=\"\",\"--\",INDEX('lista do wyboru'!$B$3:$E$136,$G277,4))","v":"--"},0,null,{"$f":"IF(FALSE = ISERROR(MATCH(TRUE,OFFSET('lista do wyboru'!$H$3:$H$136,G276,0),0)),G276+MATCH(TRUE,OFFSET('lista do wyboru'!$H$3:$H$136,G276,0),0),\"\")","v":""}]
[{"$f":"IF($G278=\"\",\"--\",INDEX('lista do wyboru'!$B$3:$E$136,$G278,1))","v":"--"},{"$f":"IF($G278=\"\",\"--\",INDEX('lista do wyboru'!$B$3:$E$136,$G278,2))","v":"--"},{"$f":"IF($G278=\"\",\"--\",INDEX('lista do wyboru'!$B$3:$E$136,$G278,3))","v":"--"},{"$f":"IF($G278=\"\",\"--\",INDEX('lista do wyboru'!$B$3:$E$136,$G278,4))","v":"--"},0,null,{"$f":"IF(FALSE = ISERROR(MATCH(TRUE,OFFSET('lista do wyboru'!$H$3:$H$136,G277,0),0)),G277+MATCH(TRUE,OFFSET('lista do wyboru'!$H$3:$H$136,G277,0),0),\"\")","v":""}]
[{"$f":"IF($G279=\"\",\"--\",INDEX('lista do wyboru'!$B$3:$E$136,$G279,1))","v":"--"},{"$f":"IF($G279=\"\",\"--\",INDEX('lista do wyboru'!$B$3:$E$136,$G279,2))","v":"--"},{"$f":"IF($G279=\"\",\"--\",INDEX('lista do wyboru'!$B$3:$E$136,$G279,3))","v":"--"},{"$f":"IF($G279=\"\",\"--\",INDEX('lista do wyboru'!$B$3:$E$136,$G279,4))","v":"--"},0,null,{"$f":"IF(FALSE = ISERROR(MATCH(TRUE,OFFSET('lista do wyboru'!$H$3:$H$136,G278,0),0)),G278+MATCH(TRUE,OFFSET('lista do wyboru'!$H$3:$H$136,G278,0),0),\"\")","v":""}]
[{"$f":"IF($G280=\"\",\"--\",INDEX('lista do wyboru'!$B$3:$E$136,$G280,1))","v":"--"},{"$f":"IF($G280=\"\",\"--\",INDEX('lista do wyboru'!$B$3:$E$136,$G280,2))","v":"--"},{"$f":"IF($G280=\"\",\"--\",INDEX('lista do wyboru'!$B$3:$E$136,$G280,3))","v":"--"},{"$f":"IF($G280=\"\",\"--\",INDEX('lista do wyboru'!$B$3:$E$136,$G280,4))","v":"--"},0,null,{"$f":"IF(FALSE = ISERROR(MATCH(TRUE,OFFSET('lista do wyboru'!$H$3:$H$136,G279,0),0)),G279+MATCH(TRUE,OFFSET('lista do wyboru'!$H$3:$H$136,G279,0),0),\"\")","v":""}]
[]
["Pieczęć szkoły:",null,"Podpis dyrektora:"]

{"sheet":"Arkusz2","index":2,"n_rows":7,"n_cols":1,"rows_kept":7,"cut":false,"hidden":true,"merged":[]}
["Wszystkie"]
["Aranżacje"]
["Doświadczenia"]
["Integrancja sensoryczna"]
["Moje Bambino"]
["Multimedia"]
["Stół kreatywny"]